NUMERO_MANDATO;RIGA_MANDATO;QUIET;IMPORTO_RIGA;IMPORTO_MANDATO;BENEFICIARIO;CIG;TITOLO_PAGAMENTO;DATA_MANDATO;CAPITOLO;ARTICOLO;NUMERO_IMPEGNO;TITOLO;DESCR_TITOLO;LIVELLO_II;DESCR_LIVELLO_II;LIVELLO_III;DESCR_LIVELLO_III;LIVELLO_IV;DESCR_LIVELLO_IV;LIVELLO_V;DESCR_LIVELLO_V;DATA_PAG_EFF
2566;1;9999999;551,12;1.759,49;ENEL ENERGIA SPA;77999756FD;SALDO Fatt.n. 004050596504  del 06/08/2020 LUGLIO 2020 - CONSUMI VILLA FARSETTI;01/09/2020;134;31;116;1;Spese correnti;3;Acquisto di beni e servizi;2;Acquisto di servizi;5;Utenze e canoni;4;Energia elettrica;03/09/2020
2566;2;9999999;1.208,37;1.759,49;ENEL ENERGIA SPA;77999756FD;SALDO Fatt.n. 004056307184  del 13/08/2020 LUGLIO 2020 - CONSUMI VILLA FARSETTI;01/09/2020;134;31;116;1;Spese correnti;3;Acquisto di beni e servizi;2;Acquisto di servizi;5;Utenze e canoni;4;Energia elettrica;03/09/2020
2567;1;9999999;41,5;41,5;ENEL ENERGIA SPA;77999756FD;SALDO Fatt.n. 004050596480  del 06/08/2020 LUGLIO 2020 - CONSUMI CIMITERO STIGLIANO - LAMPADE VOTIVE;01/09/2020;134;31;116;1;Spese correnti;3;Acquisto di beni e servizi;2;Acquisto di servizi;5;Utenze e canoni;4;Energia elettrica;03/09/2020
2568;1;9999999;1.581,58;1.581,58;ENEL ENERGIA SPA;77999756FD;SALDO Fatt.n. 004050596575  del 06/08/2020 LUGLIO 2020 - CONSUMI SEDE MUNICIPALE;01/09/2020;134;31;116;1;Spese correnti;3;Acquisto di beni e servizi;2;Acquisto di servizi;5;Utenze e canoni;4;Energia elettrica;03/09/2020
2569;1;9999999;41;41;ENEL ENERGIA SPA;77999756FD;ACCONTO Fatt.n. 004050596471  del 06/08/2020 LUGLIO 2020 - CONSUMI CIMITERO S.ANGELO - LAMPADE VOTIVE;01/09/2020;134;31;116;1;Spese correnti;3;Acquisto di beni e servizi;2;Acquisto di servizi;5;Utenze e canoni;4;Energia elettrica;03/09/2020
2570;1;9999999;51;364,17;ENEL ENERGIA SPA;77999756FD;SALDO Fatt.n. 004055455573  del 12/08/2020 LUGLIO 2020 - CONSUMI SC. ELEMENTARE SMS;01/09/2020;1334;30;117;1;Spese correnti;3;Acquisto di beni e servizi;2;Acquisto di servizi;5;Utenze e canoni;4;Energia elettrica;03/09/2020
2570;2;9999999;51,24;364,17;ENEL ENERGIA SPA;77999756FD;SALDO Fatt.n. 004050596481  del 06/08/2020 LUGLIO 2020 - CONSUMI SC. ELEMENTARE CALTANA;01/09/2020;1334;30;117;1;Spese correnti;3;Acquisto di beni e servizi;2;Acquisto di servizi;5;Utenze e canoni;4;Energia elettrica;03/09/2020
2570;3;9999999;63,84;364,17;ENEL ENERGIA SPA;77999756FD;SALDO Fatt.n. 004050596557  del 06/08/2020 LUGLIO 2020 - CONSUMI SC. ELEMENTARE CASELLE;01/09/2020;1334;30;117;1;Spese correnti;3;Acquisto di beni e servizi;2;Acquisto di servizi;5;Utenze e canoni;4;Energia elettrica;03/09/2020
2570;4;9999999;198,09;364,17;ENEL ENERGIA SPA;77999756FD;SALDO Fatt.n. 004050596553  del 06/08/2020 LUGLIO 2020 - CONSUMI SCUOLA MEDIA;01/09/2020;1334;30;117;1;Spese correnti;3;Acquisto di beni e servizi;2;Acquisto di servizi;5;Utenze e canoni;4;Energia elettrica;03/09/2020
2571;1;9999999;40,24;40,24;ENEL ENERGIA SPA;77999756FD;ACCONTO Fatt.n. 004050596562  del 06/08/2020 LUGLIO 2020 - CONSUMI PALESTRA CASELLE;01/09/2020;1334;30;117;1;Spese correnti;3;Acquisto di beni e servizi;2;Acquisto di servizi;5;Utenze e canoni;4;Energia elettrica;03/09/2020
2572;1;9999999;67,22;67,22;ENEL ENERGIA SPA;77999756FD;ACCONTO Fatt.n. 004050596535  del 06/08/2020 LUGLIO 2020 - CONSUMI PALESTRA CALTANA;01/09/2020;1334;30;117;1;Spese correnti;3;Acquisto di beni e servizi;2;Acquisto di servizi;5;Utenze e canoni;4;Energia elettrica;03/09/2020
2573;1;9999999;58;58;ENEL ENERGIA SPA;77999756FD;ACCONTO Fatt.n. 004050596529  del 06/08/2020 LUGLIO 2020 - CONSUMI SC. ELEMENTARE-PALESTRA STIGLIANO;01/09/2020;1334;30;117;1;Spese correnti;3;Acquisto di beni e servizi;2;Acquisto di servizi;5;Utenze e canoni;4;Energia elettrica;03/09/2020
2574;1;9999999;50,43;50,43;ENEL ENERGIA SPA;77999756FD;ACCONTO Fatt.n. 004050596529  del 06/08/2020 LUGLIO 2020 - CONSUMI SC. ELEMENTARE-PALESTRA STIGLIANO;01/09/2020;1334;30;117;1;Spese correnti;3;Acquisto di beni e servizi;2;Acquisto di servizi;5;Utenze e canoni;4;Energia elettrica;03/09/2020
2575;1;9999999;130,87;130,87;ENEL ENERGIA SPA;77999756FD;ACCONTO Fatt.n. 004050596558  del 06/08/2020 LUGLIO 2020 - CONSUMI PALESTRA SMS;01/09/2020;1334;30;117;1;Spese correnti;3;Acquisto di beni e servizi;2;Acquisto di servizi;5;Utenze e canoni;4;Energia elettrica;03/09/2020
2576;1;9999999;50;50;ENEL ENERGIA SPA;77999756FD;ACCONTO Fatt.n. 004050596486  del 06/08/2020 LUGLIO 2020 - CONSUMI SC. ELEMENTARE - PALESTRA VETERNIGO;01/09/2020;1334;30;117;1;Spese correnti;3;Acquisto di beni e servizi;2;Acquisto di servizi;5;Utenze e canoni;4;Energia elettrica;03/09/2020
2577;1;9999999;80,65;80,65;ENEL ENERGIA SPA;77999756FD;ACCONTO Fatt.n. 004050596486  del 06/08/2020 LUGLIO 2020 - CONSUMI SC. ELEMENTARE - PALESTRA VETERNIGO;01/09/2020;1334;30;117;1;Spese correnti;3;Acquisto di beni e servizi;2;Acquisto di servizi;5;Utenze e canoni;4;Energia elettrica;03/09/2020
2578;1;9999999;58;58;ENEL ENERGIA SPA;77999756FD;ACCONTO Fatt.n. 004050596526  del 06/08/2020 LUGLIO 2020 - CONSUMI SC.ELEMENTARE - PALESTRA -  ASILO S.ANGELO;01/09/2020;1334;30;117;1;Spese correnti;3;Acquisto di beni e servizi;2;Acquisto di servizi;5;Utenze e canoni;4;Energia elettrica;03/09/2020
2579;1;9999999;171,91;171,91;ENEL ENERGIA SPA;77999756FD;ACCONTO Fatt.n. 004050596526  del 06/08/2020 LUGLIO 2020 - CONSUMI SC.ELEMENTARE - PALESTRA -  ASILO S.ANGELO;01/09/2020;1334;30;117;1;Spese correnti;3;Acquisto di beni e servizi;2;Acquisto di servizi;5;Utenze e canoni;4;Energia elettrica;03/09/2020
2580;1;9999999;19,95;19,95;ENEL ENERGIA SPA;77999756FD;SALDO Fatt.n. 004050596531  del 06/08/2020 LUGLIO 2020 - CONSUMI  IMP. SPORT. SMS;01/09/2020;1934;0;119;1;Spese correnti;3;Acquisto di beni e servizi;2;Acquisto di servizi;5;Utenze e canoni;4;Energia elettrica;03/09/2020
2581;1;9999999;57,65;57,65;ENEL ENERGIA SPA;77999756FD;SALDO Fatt.n. 004050596470  del 06/08/2020 LUGLIO 2020 - CONSUMI IMP. SPORTIVO CASELLE;01/09/2020;1934;0;119;1;Spese correnti;3;Acquisto di beni e servizi;2;Acquisto di servizi;5;Utenze e canoni;4;Energia elettrica;03/09/2020
2582;1;9999999;40,24;40,24;ENEL ENERGIA SPA;77999756FD;SALDO Fatt.n. 004050596562  del 06/08/2020 LUGLIO 2020 - CONSUMI PALESTRA CASELLE;01/09/2020;1934;0;119;1;Spese correnti;3;Acquisto di beni e servizi;2;Acquisto di servizi;5;Utenze e canoni;4;Energia elettrica;03/09/2020
2583;1;9999999;67,22;67,22;ENEL ENERGIA SPA;77999756FD;SALDO Fatt.n. 004050596535  del 06/08/2020 LUGLIO 2020 - CONSUMI PALESTRA CALTANA;01/09/2020;1934;0;119;1;Spese correnti;3;Acquisto di beni e servizi;2;Acquisto di servizi;5;Utenze e canoni;4;Energia elettrica;03/09/2020
2584;1;9999999;58;58;ENEL ENERGIA SPA;77999756FD;SALDO Fatt.n. 004050596529  del 06/08/2020 LUGLIO 2020 - CONSUMI SC. ELEMENTARE-PALESTRA STIGLIANO;01/09/2020;1934;0;119;1;Spese correnti;3;Acquisto di beni e servizi;2;Acquisto di servizi;5;Utenze e canoni;4;Energia elettrica;03/09/2020
2585;1;9999999;130,87;130,87;ENEL ENERGIA SPA;77999756FD;SALDO Fatt.n. 004050596558  del 06/08/2020 LUGLIO 2020 - CONSUMI PALESTRA SMS;01/09/2020;1934;0;119;1;Spese correnti;3;Acquisto di beni e servizi;2;Acquisto di servizi;5;Utenze e canoni;4;Energia elettrica;03/09/2020
2586;1;9999999;50;50;ENEL ENERGIA SPA;77999756FD;SALDO Fatt.n. 004050596486  del 06/08/2020 LUGLIO 2020 - CONSUMI SC. ELEMENTARE - PALESTRA VETERNIGO;01/09/2020;1934;0;119;1;Spese correnti;3;Acquisto di beni e servizi;2;Acquisto di servizi;5;Utenze e canoni;4;Energia elettrica;03/09/2020
2587;1;9999999;58;58;ENEL ENERGIA SPA;77999756FD;SALDO Fatt.n. 004050596526  del 06/08/2020 LUGLIO 2020 - CONSUMI SC.ELEMENTARE - PALESTRA -  ASILO S.ANGELO;01/09/2020;1934;0;119;1;Spese correnti;3;Acquisto di beni e servizi;2;Acquisto di servizi;5;Utenze e canoni;4;Energia elettrica;03/09/2020
2588;1;9999999;245,43;245,43;ENEL ENERGIA SPA;77999756FD;SALDO Fatt.n. 004050596577  del 06/08/2020 LUGLIO 2020 - CONSUMI MAGAZZINO COMUNALE;01/09/2020;2734;0;120;1;Spese correnti;3;Acquisto di beni e servizi;2;Acquisto di servizi;5;Utenze e canoni;4;Energia elettrica;03/09/2020
2589;1;9999999;19,56;483,17;ENEL ENERGIA SPA;77999756FD;SALDO Fatt.n. 004050596510  del 06/08/2020 LUGLIO 2020 - CONSUMI FONTANA VETERNIGO;01/09/2020;2734;0;120;1;Spese correnti;3;Acquisto di beni e servizi;2;Acquisto di servizi;5;Utenze e canoni;4;Energia elettrica;03/09/2020
2589;2;9999999;40,91;483,17;ENEL ENERGIA SPA;77999756FD;SALDO Fatt.n. 004055455581  del 12/08/2020 LUGLIO 2020 - CONSUMI PARCHEGGIO C.C. PRISMA CASELLE;01/09/2020;2734;0;120;1;Spese correnti;3;Acquisto di beni e servizi;2;Acquisto di servizi;5;Utenze e canoni;4;Energia elettrica;03/09/2020
2589;3;9999999;41,41;483,17;ENEL ENERGIA SPA;77999756FD;SALDO Fatt.n. 004052107184  del 09/08/2020 LUGLIO 2020 - CONSUMI ALLOGGIO VIA DON GALLERANI CALTANA;01/09/2020;2734;0;120;1;Spese correnti;3;Acquisto di beni e servizi;2;Acquisto di servizi;5;Utenze e canoni;4;Energia elettrica;03/09/2020
2589;4;9999999;42,15;483,17;ENEL ENERGIA SPA;77999756FD;SALDO Fatt.n. 004055455579  del 12/08/2020 LUGLIO 2020 - CONSUMI MERCATO CALTANA;01/09/2020;2734;0;120;1;Spese correnti;3;Acquisto di beni e servizi;2;Acquisto di servizi;5;Utenze e canoni;4;Energia elettrica;03/09/2020
2589;5;9999999;46,36;483,17;ENEL ENERGIA SPA;77999756FD;SALDO Fatt.n. 004050596467  del 06/08/2020 LUGLIO 2020 - CONSUMI PARCHEGGIO VIA OLIMPIA SMS;01/09/2020;2734;0;120;1;Spese correnti;3;Acquisto di beni e servizi;2;Acquisto di servizi;5;Utenze e canoni;4;Energia elettrica;03/09/2020
2589;6;9999999;49,15;483,17;ENEL ENERGIA SPA;77999756FD;SALDO Fatt.n. 004055455572  del 12/08/2020 LUGLIO 2020 - CONSUMI ALLOGGIO VIA OLIMPIA SMS;01/09/2020;2734;0;120;1;Spese correnti;3;Acquisto di beni e servizi;2;Acquisto di servizi;5;Utenze e canoni;4;Energia elettrica;03/09/2020
2589;7;9999999;71,52;483,17;ENEL ENERGIA SPA;77999756FD;SALDO Fatt.n. 004050596546  del 06/08/2020 LUGLIO 2020 - CONSUMI MERCATO SMS;01/09/2020;2734;0;120;1;Spese correnti;3;Acquisto di beni e servizi;2;Acquisto di servizi;5;Utenze e canoni;4;Energia elettrica;03/09/2020
2589;8;9999999;72,59;483,17;ENEL ENERGIA SPA;77999756FD;SALDO Fatt.n. 004052107181  del 09/08/2020 LUGLIO 2020 - CONSUMI MERCATO CASELLE;01/09/2020;2734;0;120;1;Spese correnti;3;Acquisto di beni e servizi;2;Acquisto di servizi;5;Utenze e canoni;4;Energia elettrica;03/09/2020
2589;9;9999999;99,52;483,17;ENEL ENERGIA SPA;77999756FD;SALDO Fatt.n. 004050596512  del 06/08/2020 LUGLIO 2020 - CONSUMI PIAZZA S.D.A. CALTANA;01/09/2020;2734;0;120;1;Spese correnti;3;Acquisto di beni e servizi;2;Acquisto di servizi;5;Utenze e canoni;4;Energia elettrica;03/09/2020
2590;1;9999999;40,43;40,43;ENEL ENERGIA SPA;77999756FD;SALDO Fatt.n. 004050596508  del 06/08/2020 LUGLIO 2020 - CONSUMI ECOCENTRO COMUNALE;01/09/2020;2734;0;120;1;Spese correnti;3;Acquisto di beni e servizi;2;Acquisto di servizi;5;Utenze e canoni;4;Energia elettrica;03/09/2020
2591;1;9999999;37;37;ENEL ENERGIA SPA;77999756FD;ACCONTO Fatt.n. 004050596507  del 06/08/2020 LUGLIO 2020 - CONSUMI CIMITERO SMS - LAMPADE VOTIVE;01/09/2020;2734;0;120;1;Spese correnti;3;Acquisto di beni e servizi;2;Acquisto di servizi;5;Utenze e canoni;4;Energia elettrica;03/09/2020
2592;1;9999999;4,15;4,15;ENEL ENERGIA SPA;77999756FD;SALDO Fatt.n. 004050596507  del 06/08/2020 LUGLIO 2020 - CONSUMI CIMITERO SMS - LAMPADE VOTIVE;01/09/2020;2734;0;120;1;Spese correnti;3;Acquisto di beni e servizi;2;Acquisto di servizi;5;Utenze e canoni;4;Energia elettrica;03/09/2020
2593;1;9999999;40;40;ENEL ENERGIA SPA;77999756FD;ACCONTO Fatt.n. 004050596514  del 06/08/2020 LUGLIO 2020 - CONSUMI CIMITERO CASELLE - LAMPADE VOTIVE;01/09/2020;2734;0;120;1;Spese correnti;3;Acquisto di beni e servizi;2;Acquisto di servizi;5;Utenze e canoni;4;Energia elettrica;03/09/2020
2594;1;9999999;5,55;5,55;ENEL ENERGIA SPA;77999756FD;SALDO Fatt.n. 004050596514  del 06/08/2020 LUGLIO 2020 - CONSUMI CIMITERO CASELLE - LAMPADE VOTIVE;01/09/2020;2734;0;120;1;Spese correnti;3;Acquisto di beni e servizi;2;Acquisto di servizi;5;Utenze e canoni;4;Energia elettrica;03/09/2020
2595;1;9999999;36;36;ENEL ENERGIA SPA;77999756FD;ACCONTO Fatt.n. 004050596497  del 06/08/2020 LUGLIO 2020 - CONSUMI CIMITERO VETERNIGO - LAMPADE VOTIVE;01/09/2020;2734;0;120;1;Spese correnti;3;Acquisto di beni e servizi;2;Acquisto di servizi;5;Utenze e canoni;4;Energia elettrica;03/09/2020
2596;1;9999999;3,6;3,6;ENEL ENERGIA SPA;77999756FD;SALDO Fatt.n. 004050596497  del 06/08/2020 LUGLIO 2020 - CONSUMI CIMITERO VETERNIGO - LAMPADE VOTIVE;01/09/2020;2734;0;120;1;Spese correnti;3;Acquisto di beni e servizi;2;Acquisto di servizi;5;Utenze e canoni;4;Energia elettrica;03/09/2020
2597;1;9999999;85;85;ENEL ENERGIA SPA;77999756FD;ACCONTO Fatt.n. 004050596565  del 06/08/2020 LUGLIO 2020 - CONSUMI CIMITERO CALTANA - LAMPADE VOTIVE;01/09/2020;2734;0;120;1;Spese correnti;3;Acquisto di beni e servizi;2;Acquisto di servizi;5;Utenze e canoni;4;Energia elettrica;03/09/2020
2598;1;9999999;5,02;5,02;ENEL ENERGIA SPA;77999756FD;SALDO Fatt.n. 004050596565  del 06/08/2020 LUGLIO 2020 - CONSUMI CIMITERO CALTANA - LAMPADE VOTIVE;01/09/2020;2734;0;120;1;Spese correnti;3;Acquisto di beni e servizi;2;Acquisto di servizi;5;Utenze e canoni;4;Energia elettrica;03/09/2020
2599;1;9999999;5,04;5,04;ENEL ENERGIA SPA;77999756FD;SALDO Fatt.n. 004050596471  del 06/08/2020 LUGLIO 2020 - CONSUMI CIMITERO S.ANGELO - LAMPADE VOTIVE;01/09/2020;2734;0;120;1;Spese correnti;3;Acquisto di beni e servizi;2;Acquisto di servizi;5;Utenze e canoni;4;Energia elettrica;03/09/2020
2600;1;9999999;5,12;728,4;ENEL ENERGIA SPA;77999756FD;SALDO Fatt.n. 004050596473  del 06/08/2020 LUGLIO 2020 - CONSUMI ILLUMINAZIONE PUBBLICA;01/09/2020;3544;0;588;1;Spese correnti;3;Acquisto di beni e servizi;2;Acquisto di servizi;15;Contratti di servizio pubblico;15;Contratti di servizio per l'illuminazione pubblica;03/09/2020
2600;2;9999999;6,65;728,4;ENEL ENERGIA SPA;77999756FD;SALDO Fatt.n. 004050596466  del 06/08/2020 LUGLIO 2020 - CONSUMI ILLUMINAZIONE PUBBLICA;01/09/2020;3544;0;588;1;Spese correnti;3;Acquisto di beni e servizi;2;Acquisto di servizi;15;Contratti di servizio pubblico;15;Contratti di servizio per l'illuminazione pubblica;03/09/2020
2600;3;9999999;19,04;728,4;ENEL ENERGIA SPA;77999756FD;SALDO Fatt.n. 004050596475  del 06/08/2020 LUGLIO 2020 - CONSUMI ILLUMINAZIONE PUBBLICA;01/09/2020;3544;0;588;1;Spese correnti;3;Acquisto di beni e servizi;2;Acquisto di servizi;15;Contratti di servizio pubblico;15;Contratti di servizio per l'illuminazione pubblica;03/09/2020
2600;4;9999999;26,33;728,4;ENEL ENERGIA SPA;77999756FD;SALDO Fatt.n. 004050596478  del 06/08/2020 LUGLIO 2020 - CONSUMI ILLUMINAZIONE PUBBLICA;01/09/2020;3544;0;588;1;Spese correnti;3;Acquisto di beni e servizi;2;Acquisto di servizi;15;Contratti di servizio pubblico;15;Contratti di servizio per l'illuminazione pubblica;03/09/2020
2600;5;9999999;32,61;728,4;ENEL ENERGIA SPA;77999756FD;SALDO Fatt.n. 004050596468  del 06/08/2020 LUGLIO 2020 - CONSUMI ILLUMINAZIONE PUBBLICA;01/09/2020;3544;0;588;1;Spese correnti;3;Acquisto di beni e servizi;2;Acquisto di servizi;15;Contratti di servizio pubblico;15;Contratti di servizio per l'illuminazione pubblica;03/09/2020
2600;6;9999999;59,57;728,4;ENEL ENERGIA SPA;77999756FD;SALDO Fatt.n. 004050596474  del 06/08/2020 LUGLIO 2020 - CONSUMI ILLUMINAZIONE PUBBLICA;01/09/2020;3544;0;588;1;Spese correnti;3;Acquisto di beni e servizi;2;Acquisto di servizi;15;Contratti di servizio pubblico;15;Contratti di servizio per l'illuminazione pubblica;03/09/2020
2600;7;9999999;62,56;728,4;ENEL ENERGIA SPA;77999756FD;SALDO Fatt.n. 004050596469  del 06/08/2020 LUGLIO 2020 - CONSUMI ILLUMINAZIONE PUBBLICA;01/09/2020;3544;0;588;1;Spese correnti;3;Acquisto di beni e servizi;2;Acquisto di servizi;15;Contratti di servizio pubblico;15;Contratti di servizio per l'illuminazione pubblica;03/09/2020
2600;8;9999999;93,42;728,4;ENEL ENERGIA SPA;77999756FD;SALDO Fatt.n. 004050596476  del 06/08/2020 LUGLIO 2020 - CONSUMI ILLUMINAZIONE PUBBLICA;01/09/2020;3544;0;588;1;Spese correnti;3;Acquisto di beni e servizi;2;Acquisto di servizi;15;Contratti di servizio pubblico;15;Contratti di servizio per l'illuminazione pubblica;03/09/2020
2600;9;9999999;105,52;728,4;ENEL ENERGIA SPA;77999756FD;SALDO Fatt.n. 004050596472  del 06/08/2020 LUGLIO 2020 - CONSUMI ILLUMINAZIONE PUBBLICA;01/09/2020;3544;0;588;1;Spese correnti;3;Acquisto di beni e servizi;2;Acquisto di servizi;15;Contratti di servizio pubblico;15;Contratti di servizio per l'illuminazione pubblica;03/09/2020
2600;10;9999999;317,58;728,4;ENEL ENERGIA SPA;77999756FD;SALDO Fatt.n. 004050596477  del 06/08/2020 LUGLIO 2020 - CONSUMI ILLUMINAZIONE PUBBLICA;01/09/2020;3544;0;588;1;Spese correnti;3;Acquisto di beni e servizi;2;Acquisto di servizi;15;Contratti di servizio pubblico;15;Contratti di servizio per l'illuminazione pubblica;03/09/2020
2601;1;9999999;8,24;1.538,13;ENEL ENERGIA SPA;77999756FD;SALDO Fatt.n. 004050596490  del 06/08/2020 LUGLIO 2020 - CONSUMI ILLUMINAZIONE PUBBLICA;01/09/2020;3544;0;588;1;Spese correnti;3;Acquisto di beni e servizi;2;Acquisto di servizi;15;Contratti di servizio pubblico;15;Contratti di servizio per l'illuminazione pubblica;03/09/2020
2601;2;9999999;19,68;1.538,13;ENEL ENERGIA SPA;77999756FD;SALDO Fatt.n. 004050596491  del 06/08/2020 LUGLIO 2020 - CONSUMI ILLUMINAZIONE PUBBLICA;01/09/2020;3544;0;588;1;Spese correnti;3;Acquisto di beni e servizi;2;Acquisto di servizi;15;Contratti di servizio pubblico;15;Contratti di servizio per l'illuminazione pubblica;03/09/2020
2601;3;9999999;26,96;1.538,13;ENEL ENERGIA SPA;77999756FD;SALDO Fatt.n. 004050596485  del 06/08/2020 LUGLIO 2020 - CONSUMI ILLUMINAZIONE PUBBLICA;01/09/2020;3544;0;588;1;Spese correnti;3;Acquisto di beni e servizi;2;Acquisto di servizi;15;Contratti di servizio pubblico;15;Contratti di servizio per l'illuminazione pubblica;03/09/2020
2601;4;9999999;37,55;1.538,13;ENEL ENERGIA SPA;77999756FD;SALDO Fatt.n. 004050596488  del 06/08/2020 LUGLIO 2020 - CONSUMI ILLUMINAZIONE PUBBLICA;01/09/2020;3544;0;588;1;Spese correnti;3;Acquisto di beni e servizi;2;Acquisto di servizi;15;Contratti di servizio pubblico;15;Contratti di servizio per l'illuminazione pubblica;03/09/2020
2601;5;9999999;37,98;1.538,13;ENEL ENERGIA SPA;77999756FD;SALDO Fatt.n. 004050596483  del 06/08/2020 LUGLIO 2020 - CONSUMI ILLUMINAZIONE PUBBLICA;01/09/2020;3544;0;588;1;Spese correnti;3;Acquisto di beni e servizi;2;Acquisto di servizi;15;Contratti di servizio pubblico;15;Contratti di servizio per l'illuminazione pubblica;03/09/2020
2601;6;9999999;98,14;1.538,13;ENEL ENERGIA SPA;77999756FD;SALDO Fatt.n. 004050596484  del 06/08/2020 LUGLIO 2020 - CONSUMI ILLUMINAZIONE PUBBLICA;01/09/2020;3544;0;588;1;Spese correnti;3;Acquisto di beni e servizi;2;Acquisto di servizi;15;Contratti di servizio pubblico;15;Contratti di servizio per l'illuminazione pubblica;03/09/2020
2601;7;9999999;251,12;1.538,13;ENEL ENERGIA SPA;77999756FD;SALDO Fatt.n. 004050596479  del 06/08/2020 LUGLIO 2020 - CONSUMI ILLUMINAZIONE PUBBLICA;01/09/2020;3544;0;588;1;Spese correnti;3;Acquisto di beni e servizi;2;Acquisto di servizi;15;Contratti di servizio pubblico;15;Contratti di servizio per l'illuminazione pubblica;03/09/2020
2601;8;9999999;273,57;1.538,13;ENEL ENERGIA SPA;77999756FD;SALDO Fatt.n. 004050596487  del 06/08/2020 LUGLIO 2020 - CONSUMI ILLUMINAZIONE PUBBLICA;01/09/2020;3544;0;588;1;Spese correnti;3;Acquisto di beni e servizi;2;Acquisto di servizi;15;Contratti di servizio pubblico;15;Contratti di servizio per l'illuminazione pubblica;03/09/2020
2601;9;9999999;379,7;1.538,13;ENEL ENERGIA SPA;77999756FD;SALDO Fatt.n. 004050596482  del 06/08/2020 LUGLIO 2020 - CONSUMI ILLUMINAZIONE PUBBLICA;01/09/2020;3544;0;588;1;Spese correnti;3;Acquisto di beni e servizi;2;Acquisto di servizi;15;Contratti di servizio pubblico;15;Contratti di servizio per l'illuminazione pubblica;03/09/2020
2601;10;9999999;405,19;1.538,13;ENEL ENERGIA SPA;77999756FD;SALDO Fatt.n. 004050596489  del 06/08/2020 LUGLIO 2020 - CONSUMI ILLUMINAZIONE PUBBLICA;01/09/2020;3544;0;588;1;Spese correnti;3;Acquisto di beni e servizi;2;Acquisto di servizi;15;Contratti di servizio pubblico;15;Contratti di servizio per l'illuminazione pubblica;03/09/2020
2602;1;9999999;6,08;1.334,83;ENEL ENERGIA SPA;77999756FD;SALDO Fatt.n. 004050596501  del 06/08/2020 LUGLIO 2020 - CONSUMI ILLUMINAZIONE PUBBLICA;01/09/2020;3544;0;588;1;Spese correnti;3;Acquisto di beni e servizi;2;Acquisto di servizi;15;Contratti di servizio pubblico;15;Contratti di servizio per l'illuminazione pubblica;03/09/2020
2602;2;9999999;9,94;1.334,83;ENEL ENERGIA SPA;77999756FD;SALDO Fatt.n. 004050596493  del 06/08/2020 LUGLIO 2020 - CONSUMI ILLUMINAZIONE PUBBLICA;01/09/2020;3544;0;588;1;Spese correnti;3;Acquisto di beni e servizi;2;Acquisto di servizi;15;Contratti di servizio pubblico;15;Contratti di servizio per l'illuminazione pubblica;03/09/2020
2602;3;9999999;16,84;1.334,83;ENEL ENERGIA SPA;77999756FD;SALDO Fatt.n. 004050596494  del 06/08/2020 LUGLIO 2020 - CONSUMI ILLUMINAZIONE PUBBLICA;01/09/2020;3544;0;588;1;Spese correnti;3;Acquisto di beni e servizi;2;Acquisto di servizi;15;Contratti di servizio pubblico;15;Contratti di servizio per l'illuminazione pubblica;03/09/2020
2602;4;9999999;76,31;1.334,83;ENEL ENERGIA SPA;77999756FD;SALDO Fatt.n. 004050596502  del 06/08/2020 LUGLIO 2020 - CONSUMI ILLUMINAZIONE PUBBLICA;01/09/2020;3544;0;588;1;Spese correnti;3;Acquisto di beni e servizi;2;Acquisto di servizi;15;Contratti di servizio pubblico;15;Contratti di servizio per l'illuminazione pubblica;03/09/2020
2602;5;9999999;87,14;1.334,83;ENEL ENERGIA SPA;77999756FD;SALDO Fatt.n. 004050596500  del 06/08/2020 LUGLIO 2020 - CONSUMI ILLUMINAZIONE PUBBLICA;01/09/2020;3544;0;588;1;Spese correnti;3;Acquisto di beni e servizi;2;Acquisto di servizi;15;Contratti di servizio pubblico;15;Contratti di servizio per l'illuminazione pubblica;03/09/2020
2602;6;9999999;122,96;1.334,83;ENEL ENERGIA SPA;77999756FD;SALDO Fatt.n. 004050596495  del 06/08/2020 LUGLIO 2020 - CONSUMI ILLUMINAZIONE PUBBLICA;01/09/2020;3544;0;588;1;Spese correnti;3;Acquisto di beni e servizi;2;Acquisto di servizi;15;Contratti di servizio pubblico;15;Contratti di servizio per l'illuminazione pubblica;03/09/2020
2602;7;9999999;129,66;1.334,83;ENEL ENERGIA SPA;77999756FD;SALDO Fatt.n. 004050596499  del 06/08/2020 LUGLIO 2020 - CONSUMI ILLUMINAZIONE PUBBLICA;01/09/2020;3544;0;588;1;Spese correnti;3;Acquisto di beni e servizi;2;Acquisto di servizi;15;Contratti di servizio pubblico;15;Contratti di servizio per l'illuminazione pubblica;03/09/2020
2602;8;9999999;162,04;1.334,83;ENEL ENERGIA SPA;77999756FD;SALDO Fatt.n. 004050596492  del 06/08/2020 LUGLIO 2020 - CONSUMI ILLUMINAZIONE PUBBLICA;01/09/2020;3544;0;588;1;Spese correnti;3;Acquisto di beni e servizi;2;Acquisto di servizi;15;Contratti di servizio pubblico;15;Contratti di servizio per l'illuminazione pubblica;03/09/2020
2602;9;9999999;281,16;1.334,83;ENEL ENERGIA SPA;77999756FD;SALDO Fatt.n. 004050596503  del 06/08/2020 LUGLIO 2020 - CONSUMI ILLUMINAZIONE PUBBLICA;01/09/2020;3544;0;588;1;Spese correnti;3;Acquisto di beni e servizi;2;Acquisto di servizi;15;Contratti di servizio pubblico;15;Contratti di servizio per l'illuminazione pubblica;03/09/2020
2602;10;9999999;442,7;1.334,83;ENEL ENERGIA SPA;77999756FD;SALDO Fatt.n. 004050596496  del 06/08/2020 LUGLIO 2020 - CONSUMI ILLUMINAZIONE PUBBLICA;01/09/2020;3544;0;588;1;Spese correnti;3;Acquisto di beni e servizi;2;Acquisto di servizi;15;Contratti di servizio pubblico;15;Contratti di servizio per l'illuminazione pubblica;03/09/2020
2603;1;9999999;15,27;1.788,06;ENEL ENERGIA SPA;77999756FD;SALDO Fatt.n. 004050596516  del 06/08/2020 LUGLIO 2020 - CONSUMI ILLUMINAZIONE PUBBLICA;01/09/2020;3544;0;588;1;Spese correnti;3;Acquisto di beni e servizi;2;Acquisto di servizi;15;Contratti di servizio pubblico;15;Contratti di servizio per l'illuminazione pubblica;03/09/2020
2603;2;9999999;21,64;1.788,06;ENEL ENERGIA SPA;77999756FD;SALDO Fatt.n. 004050596511  del 06/08/2020 LUGLIO 2020 - CONSUMI ILLUMINAZIONE PUBBLICA;01/09/2020;3544;0;588;1;Spese correnti;3;Acquisto di beni e servizi;2;Acquisto di servizi;15;Contratti di servizio pubblico;15;Contratti di servizio per l'illuminazione pubblica;03/09/2020
2603;3;9999999;28,63;1.788,06;ENEL ENERGIA SPA;77999756FD;SALDO Fatt.n. 004050596513  del 06/08/2020 LUGLIO 2020 - CONSUMI ILLUMINAZIONE PUBBLICA;01/09/2020;3544;0;588;1;Spese correnti;3;Acquisto di beni e servizi;2;Acquisto di servizi;15;Contratti di servizio pubblico;15;Contratti di servizio per l'illuminazione pubblica;03/09/2020
2603;4;9999999;33,25;1.788,06;ENEL ENERGIA SPA;77999756FD;SALDO Fatt.n. 004050596509  del 06/08/2020 LUGLIO 2020 - CONSUMI ILLUMINAZIONE PUBBLICA;01/09/2020;3544;0;588;1;Spese correnti;3;Acquisto di beni e servizi;2;Acquisto di servizi;15;Contratti di servizio pubblico;15;Contratti di servizio per l'illuminazione pubblica;03/09/2020
2603;5;9999999;107,67;1.788,06;ENEL ENERGIA SPA;77999756FD;SALDO Fatt.n. 004050596515  del 06/08/2020 LUGLIO 2020 - CONSUMI ILLUMINAZIONE PUBBLICA;01/09/2020;3544;0;588;1;Spese correnti;3;Acquisto di beni e servizi;2;Acquisto di servizi;15;Contratti di servizio pubblico;15;Contratti di servizio per l'illuminazione pubblica;03/09/2020
2603;6;9999999;121,21;1.788,06;ENEL ENERGIA SPA;77999756FD;SALDO Fatt.n. 004050596518  del 06/08/2020 LUGLIO 2020 - CONSUMI ILLUMINAZIONE PUBBLICA;01/09/2020;3544;0;588;1;Spese correnti;3;Acquisto di beni e servizi;2;Acquisto di servizi;15;Contratti di servizio pubblico;15;Contratti di servizio per l'illuminazione pubblica;03/09/2020
2603;7;9999999;191,58;1.788,06;ENEL ENERGIA SPA;77999756FD;SALDO Fatt.n. 004050596506  del 06/08/2020 LUGLIO 2020 - CONSUMI ILLUMINAZIONE PUBBLICA;01/09/2020;3544;0;588;1;Spese correnti;3;Acquisto di beni e servizi;2;Acquisto di servizi;15;Contratti di servizio pubblico;15;Contratti di servizio per l'illuminazione pubblica;03/09/2020
2603;8;9999999;213,38;1.788,06;ENEL ENERGIA SPA;77999756FD;SALDO Fatt.n. 004050596505  del 06/08/2020 LUGLIO 2020 - CONSUMI ILLUMINAZIONE PUBBLICA;01/09/2020;3544;0;588;1;Spese correnti;3;Acquisto di beni e servizi;2;Acquisto di servizi;15;Contratti di servizio pubblico;15;Contratti di servizio per l'illuminazione pubblica;03/09/2020
2603;9;9999999;514,3;1.788,06;ENEL ENERGIA SPA;77999756FD;SALDO Fatt.n. 004050596517  del 06/08/2020 LUGLIO 2020 - CONSUMI ILLUMINAZIONE PUBBLICA;01/09/2020;3544;0;588;1;Spese correnti;3;Acquisto di beni e servizi;2;Acquisto di servizi;15;Contratti di servizio pubblico;15;Contratti di servizio per l'illuminazione pubblica;03/09/2020
2603;10;9999999;541,13;1.788,06;ENEL ENERGIA SPA;77999756FD;SALDO Fatt.n. 004050596519  del 06/08/2020 LUGLIO 2020 - CONSUMI ILLUMINAZIONE PUBBLICA;01/09/2020;3544;0;588;1;Spese correnti;3;Acquisto di beni e servizi;2;Acquisto di servizi;15;Contratti di servizio pubblico;15;Contratti di servizio per l'illuminazione pubblica;03/09/2020
2604;1;9999999;2,99;1.639,57;ENEL ENERGIA SPA;77999756FD;SALDO Fatt.n. 004050596528  del 06/08/2020 LUGLIO 2020 - CONSUMI ILLUMINAZIONE PUBBLICA;01/09/2020;3544;0;588;1;Spese correnti;3;Acquisto di beni e servizi;2;Acquisto di servizi;15;Contratti di servizio pubblico;15;Contratti di servizio per l'illuminazione pubblica;03/09/2020
2604;2;9999999;9,74;1.639,57;ENEL ENERGIA SPA;77999756FD;SALDO Fatt.n. 004050596521  del 06/08/2020 LUGLIO 2020 - CONSUMI ILLUMINAZIONE PUBBLICA;01/09/2020;3544;0;588;1;Spese correnti;3;Acquisto di beni e servizi;2;Acquisto di servizi;15;Contratti di servizio pubblico;15;Contratti di servizio per l'illuminazione pubblica;03/09/2020
2604;3;9999999;37,77;1.639,57;ENEL ENERGIA SPA;77999756FD;SALDO Fatt.n. 004050596524  del 06/08/2020 LUGLIO 2020 - CONSUMI ILLUMINAZIONE PUBBLICA;01/09/2020;3544;0;588;1;Spese correnti;3;Acquisto di beni e servizi;2;Acquisto di servizi;15;Contratti di servizio pubblico;15;Contratti di servizio per l'illuminazione pubblica;03/09/2020
2604;4;9999999;40,75;1.639,57;ENEL ENERGIA SPA;77999756FD;SALDO Fatt.n. 004050596523  del 06/08/2020 LUGLIO 2020 - CONSUMI ILLUMINAZIONE PUBBLICA;01/09/2020;3544;0;588;1;Spese correnti;3;Acquisto di beni e servizi;2;Acquisto di servizi;15;Contratti di servizio pubblico;15;Contratti di servizio per l'illuminazione pubblica;03/09/2020
2604;5;9999999;58,89;1.639,57;ENEL ENERGIA SPA;77999756FD;SALDO Fatt.n. 004050596520  del 06/08/2020 LUGLIO 2020 - CONSUMI ILLUMINAZIONE PUBBLICA;01/09/2020;3544;0;588;1;Spese correnti;3;Acquisto di beni e servizi;2;Acquisto di servizi;15;Contratti di servizio pubblico;15;Contratti di servizio per l'illuminazione pubblica;03/09/2020
2604;6;9999999;82,46;1.639,57;ENEL ENERGIA SPA;77999756FD;SALDO Fatt.n. 004050596532  del 06/08/2020 LUGLIO 2020 - CONSUMI ILLUMINAZIONE PUBBLICA;01/09/2020;3544;0;588;1;Spese correnti;3;Acquisto di beni e servizi;2;Acquisto di servizi;15;Contratti di servizio pubblico;15;Contratti di servizio per l'illuminazione pubblica;03/09/2020
2604;7;9999999;175,23;1.639,57;ENEL ENERGIA SPA;77999756FD;SALDO Fatt.n. 004050596522  del 06/08/2020 LUGLIO 2020 - CONSUMI ILLUMINAZIONE PUBBLICA;01/09/2020;3544;0;588;1;Spese correnti;3;Acquisto di beni e servizi;2;Acquisto di servizi;15;Contratti di servizio pubblico;15;Contratti di servizio per l'illuminazione pubblica;03/09/2020
2604;8;9999999;256,54;1.639,57;ENEL ENERGIA SPA;77999756FD;SALDO Fatt.n. 004050596530  del 06/08/2020 LUGLIO 2020 - CONSUMI ILLUMINAZIONE PUBBLICA;01/09/2020;3544;0;588;1;Spese correnti;3;Acquisto di beni e servizi;2;Acquisto di servizi;15;Contratti di servizio pubblico;15;Contratti di servizio per l'illuminazione pubblica;03/09/2020
2604;9;9999999;270,11;1.639,57;ENEL ENERGIA SPA;77999756FD;SALDO Fatt.n. 004050596525  del 06/08/2020 LUGLIO 2020 - CONSUMI ILLUMINAZIONE PUBBLICA;01/09/2020;3544;0;588;1;Spese correnti;3;Acquisto di beni e servizi;2;Acquisto di servizi;15;Contratti di servizio pubblico;15;Contratti di servizio per l'illuminazione pubblica;03/09/2020
2604;10;9999999;705,09;1.639,57;ENEL ENERGIA SPA;77999756FD;SALDO Fatt.n. 004050596527  del 06/08/2020 LUGLIO 2020 - CONSUMI ILLUMINAZIONE PUBBLICA;01/09/2020;3544;0;588;1;Spese correnti;3;Acquisto di beni e servizi;2;Acquisto di servizi;15;Contratti di servizio pubblico;15;Contratti di servizio per l'illuminazione pubblica;03/09/2020
2605;1;9999999;10,14;675,49;ENEL ENERGIA SPA;77999756FD;SALDO Fatt.n. 004050596542  del 06/08/2020 LUGLIO 2020 - CONSUMI ILLUMINAZIONE PUBBLICA;01/09/2020;3544;0;588;1;Spese correnti;3;Acquisto di beni e servizi;2;Acquisto di servizi;15;Contratti di servizio pubblico;15;Contratti di servizio per l'illuminazione pubblica;03/09/2020
2605;2;9999999;10,36;675,49;ENEL ENERGIA SPA;77999756FD;SALDO Fatt.n. 004050596536  del 06/08/2020 LUGLIO 2020 - CONSUMI ILLUMINAZIONE PUBBLICA;01/09/2020;3544;0;588;1;Spese correnti;3;Acquisto di beni e servizi;2;Acquisto di servizi;15;Contratti di servizio pubblico;15;Contratti di servizio per l'illuminazione pubblica;03/09/2020
2605;3;9999999;17,24;675,49;ENEL ENERGIA SPA;77999756FD;SALDO Fatt.n. 004050596538  del 06/08/2020 LUGLIO 2020 - CONSUMI ILLUMINAZIONE PUBBLICA;01/09/2020;3544;0;588;1;Spese correnti;3;Acquisto di beni e servizi;2;Acquisto di servizi;15;Contratti di servizio pubblico;15;Contratti di servizio per l'illuminazione pubblica;03/09/2020
2605;4;9999999;22,23;675,49;ENEL ENERGIA SPA;77999756FD;SALDO Fatt.n. 004050596534  del 06/08/2020 LUGLIO 2020 - CONSUMI ILLUMINAZIONE PUBBLICA;01/09/2020;3544;0;588;1;Spese correnti;3;Acquisto di beni e servizi;2;Acquisto di servizi;15;Contratti di servizio pubblico;15;Contratti di servizio per l'illuminazione pubblica;03/09/2020
2605;5;9999999;39,27;675,49;ENEL ENERGIA SPA;77999756FD;SALDO Fatt.n. 004050596540  del 06/08/2020 LUGLIO 2020 - CONSUMI ILLUMINAZIONE PUBBLICA;01/09/2020;3544;0;588;1;Spese correnti;3;Acquisto di beni e servizi;2;Acquisto di servizi;15;Contratti di servizio pubblico;15;Contratti di servizio per l'illuminazione pubblica;03/09/2020
2605;6;9999999;61,94;675,49;ENEL ENERGIA SPA;77999756FD;SALDO Fatt.n. 004050596543  del 06/08/2020 LUGLIO 2020 - CONSUMI ILLUMINAZIONE PUBBLICA;01/09/2020;3544;0;588;1;Spese correnti;3;Acquisto di beni e servizi;2;Acquisto di servizi;15;Contratti di servizio pubblico;15;Contratti di servizio per l'illuminazione pubblica;03/09/2020
2605;7;9999999;91,46;675,49;ENEL ENERGIA SPA;77999756FD;SALDO Fatt.n. 004050596539  del 06/08/2020 LUGLIO 2020 - CONSUMI ILLUMINAZIONE PUBBLICA;01/09/2020;3544;0;588;1;Spese correnti;3;Acquisto di beni e servizi;2;Acquisto di servizi;15;Contratti di servizio pubblico;15;Contratti di servizio per l'illuminazione pubblica;03/09/2020
2605;8;9999999;91,72;675,49;ENEL ENERGIA SPA;77999756FD;SALDO Fatt.n. 004050596537  del 06/08/2020 LUGLIO 2020 - CONSUMI ILLUMINAZIONE PUBBLICA;01/09/2020;3544;0;588;1;Spese correnti;3;Acquisto di beni e servizi;2;Acquisto di servizi;15;Contratti di servizio pubblico;15;Contratti di servizio per l'illuminazione pubblica;03/09/2020
2605;9;9999999;159,67;675,49;ENEL ENERGIA SPA;77999756FD;SALDO Fatt.n. 004050596533  del 06/08/2020 LUGLIO 2020 - CONSUMI ILLUMINAZIONE PUBBLICA;01/09/2020;3544;0;588;1;Spese correnti;3;Acquisto di beni e servizi;2;Acquisto di servizi;15;Contratti di servizio pubblico;15;Contratti di servizio per l'illuminazione pubblica;03/09/2020
2605;10;9999999;171,46;675,49;ENEL ENERGIA SPA;77999756FD;SALDO Fatt.n. 004050596541  del 06/08/2020 LUGLIO 2020 - CONSUMI ILLUMINAZIONE PUBBLICA;01/09/2020;3544;0;588;1;Spese correnti;3;Acquisto di beni e servizi;2;Acquisto di servizi;15;Contratti di servizio pubblico;15;Contratti di servizio per l'illuminazione pubblica;03/09/2020
2606;1;9999999;1,04;481,77;ENEL ENERGIA SPA;77999756FD;SALDO Fatt.n. 004050596555  del 06/08/2020 LUGLIO 2020 - CONSUMI ILLUMINAZIONE PUBBLICA;01/09/2020;3544;0;588;1;Spese correnti;3;Acquisto di beni e servizi;2;Acquisto di servizi;15;Contratti di servizio pubblico;15;Contratti di servizio per l'illuminazione pubblica;03/09/2020
2606;2;9999999;6,97;481,77;ENEL ENERGIA SPA;77999756FD;SALDO Fatt.n. 004050596549  del 06/08/2020 LUGLIO 2020 - CONSUMI ILLUMINAZIONE PUBBLICA;01/09/2020;3544;0;588;1;Spese correnti;3;Acquisto di beni e servizi;2;Acquisto di servizi;15;Contratti di servizio pubblico;15;Contratti di servizio per l'illuminazione pubblica;03/09/2020
2606;3;9999999;13,85;481,77;ENEL ENERGIA SPA;77999756FD;SALDO Fatt.n. 004050596544  del 06/08/2020 LUGLIO 2020 - CONSUMI ILLUMINAZIONE PUBBLICA;01/09/2020;3544;0;588;1;Spese correnti;3;Acquisto di beni e servizi;2;Acquisto di servizi;15;Contratti di servizio pubblico;15;Contratti di servizio per l'illuminazione pubblica;03/09/2020
2606;4;9999999;17,95;481,77;ENEL ENERGIA SPA;77999756FD;SALDO Fatt.n. 004050596556  del 06/08/2020 LUGLIO 2020 - CONSUMI ILLUMINAZIONE PUBBLICA;01/09/2020;3544;0;588;1;Spese correnti;3;Acquisto di beni e servizi;2;Acquisto di servizi;15;Contratti di servizio pubblico;15;Contratti di servizio per l'illuminazione pubblica;03/09/2020
2606;5;9999999;19,04;481,77;ENEL ENERGIA SPA;77999756FD;SALDO Fatt.n. 004050596545  del 06/08/2020 LUGLIO 2020 - CONSUMI ILLUMINAZIONE PUBBLICA;01/09/2020;3544;0;588;1;Spese correnti;3;Acquisto di beni e servizi;2;Acquisto di servizi;15;Contratti di servizio pubblico;15;Contratti di servizio per l'illuminazione pubblica;03/09/2020
2606;6;9999999;24,38;481,77;ENEL ENERGIA SPA;77999756FD;SALDO Fatt.n. 004050596552  del 06/08/2020 LUGLIO 2020 - CONSUMI ILLUMINAZIONE PUBBLICA;01/09/2020;3544;0;588;1;Spese correnti;3;Acquisto di beni e servizi;2;Acquisto di servizi;15;Contratti di servizio pubblico;15;Contratti di servizio per l'illuminazione pubblica;03/09/2020
2606;7;9999999;36,91;481,77;ENEL ENERGIA SPA;77999756FD;SALDO Fatt.n. 004050596551  del 06/08/2020 LUGLIO 2020 - CONSUMI ILLUMINAZIONE PUBBLICA;01/09/2020;3544;0;588;1;Spese correnti;3;Acquisto di beni e servizi;2;Acquisto di servizi;15;Contratti di servizio pubblico;15;Contratti di servizio per l'illuminazione pubblica;03/09/2020
2606;8;9999999;42,75;481,77;ENEL ENERGIA SPA;77999756FD;SALDO Fatt.n. 004050596547  del 06/08/2020 LUGLIO 2020 - CONSUMI ILLUMINAZIONE PUBBLICA;01/09/2020;3544;0;588;1;Spese correnti;3;Acquisto di beni e servizi;2;Acquisto di servizi;15;Contratti di servizio pubblico;15;Contratti di servizio per l'illuminazione pubblica;03/09/2020
2606;9;9999999;138,32;481,77;ENEL ENERGIA SPA;77999756FD;SALDO Fatt.n. 004050596550  del 06/08/2020 LUGLIO 2020 - CONSUMI ILLUMINAZIONE PUBBLICA;01/09/2020;3544;0;588;1;Spese correnti;3;Acquisto di beni e servizi;2;Acquisto di servizi;15;Contratti di servizio pubblico;15;Contratti di servizio per l'illuminazione pubblica;03/09/2020
2606;10;9999999;180,56;481,77;ENEL ENERGIA SPA;77999756FD;SALDO Fatt.n. 004050596548  del 06/08/2020 LUGLIO 2020 - CONSUMI ILLUMINAZIONE PUBBLICA;01/09/2020;3544;0;588;1;Spese correnti;3;Acquisto di beni e servizi;2;Acquisto di servizi;15;Contratti di servizio pubblico;15;Contratti di servizio per l'illuminazione pubblica;03/09/2020
2607;1;9999999;3,21;635,73;ENEL ENERGIA SPA;77999756FD;SALDO Fatt.n. 004050596567  del 06/08/2020 LUGLIO 2020 - CONSUMI ILLUMINAZIONE PUBBLICA;01/09/2020;3544;0;588;1;Spese correnti;3;Acquisto di beni e servizi;2;Acquisto di servizi;15;Contratti di servizio pubblico;15;Contratti di servizio per l'illuminazione pubblica;03/09/2020
2607;2;9999999;6,27;635,73;ENEL ENERGIA SPA;77999756FD;SALDO Fatt.n. 004050596569  del 06/08/2020 LUGLIO 2020 - CONSUMI ILLUMINAZIONE PUBBLICA;01/09/2020;3544;0;588;1;Spese correnti;3;Acquisto di beni e servizi;2;Acquisto di servizi;15;Contratti di servizio pubblico;15;Contratti di servizio per l'illuminazione pubblica;03/09/2020
2607;3;9999999;8,24;635,73;ENEL ENERGIA SPA;77999756FD;SALDO Fatt.n. 004050596560  del 06/08/2020 LUGLIO 2020 - CONSUMI ILLUMINAZIONE PUBBLICA;01/09/2020;3544;0;588;1;Spese correnti;3;Acquisto di beni e servizi;2;Acquisto di servizi;15;Contratti di servizio pubblico;15;Contratti di servizio per l'illuminazione pubblica;03/09/2020
2607;4;9999999;20,07;635,73;ENEL ENERGIA SPA;77999756FD;SALDO Fatt.n. 004050596564  del 06/08/2020 LUGLIO 2020 - CONSUMI ILLUMINAZIONE PUBBLICA;01/09/2020;3544;0;588;1;Spese correnti;3;Acquisto di beni e servizi;2;Acquisto di servizi;15;Contratti di servizio pubblico;15;Contratti di servizio per l'illuminazione pubblica;03/09/2020
2607;5;9999999;59,37;635,73;ENEL ENERGIA SPA;77999756FD;SALDO Fatt.n. 004050596559  del 06/08/2020 LUGLIO 2020 - CONSUMI ILLUMINAZIONE PUBBLICA;01/09/2020;3544;0;588;1;Spese correnti;3;Acquisto di beni e servizi;2;Acquisto di servizi;15;Contratti di servizio pubblico;15;Contratti di servizio per l'illuminazione pubblica;03/09/2020
2607;6;9999999;75,47;635,73;ENEL ENERGIA SPA;77999756FD;SALDO Fatt.n. 004050596568  del 06/08/2020 LUGLIO 2020 - CONSUMI ILLUMINAZIONE PUBBLICA;01/09/2020;3544;0;588;1;Spese correnti;3;Acquisto di beni e servizi;2;Acquisto di servizi;15;Contratti di servizio pubblico;15;Contratti di servizio per l'illuminazione pubblica;03/09/2020
2607;7;9999999;86,27;635,73;ENEL ENERGIA SPA;77999756FD;SALDO Fatt.n. 004050596563  del 06/08/2020 LUGLIO 2020 - CONSUMI ILLUMINAZIONE PUBBLICA;01/09/2020;3544;0;588;1;Spese correnti;3;Acquisto di beni e servizi;2;Acquisto di servizi;15;Contratti di servizio pubblico;15;Contratti di servizio per l'illuminazione pubblica;03/09/2020
2607;8;9999999;98,54;635,73;ENEL ENERGIA SPA;77999756FD;SALDO Fatt.n. 004050596566  del 06/08/2020 LUGLIO 2020 - CONSUMI ILLUMINAZIONE PUBBLICA;01/09/2020;3544;0;588;1;Spese correnti;3;Acquisto di beni e servizi;2;Acquisto di servizi;15;Contratti di servizio pubblico;15;Contratti di servizio per l'illuminazione pubblica;03/09/2020
2607;9;9999999;119,95;635,73;ENEL ENERGIA SPA;77999756FD;SALDO Fatt.n. 004050596561  del 06/08/2020 LUGLIO 2020 - CONSUMI ILLUMINAZIONE PUBBLICA;01/09/2020;3544;0;588;1;Spese correnti;3;Acquisto di beni e servizi;2;Acquisto di servizi;15;Contratti di servizio pubblico;15;Contratti di servizio per l'illuminazione pubblica;03/09/2020
2607;10;9999999;158,34;635,73;ENEL ENERGIA SPA;77999756FD;SALDO Fatt.n. 004050596570  del 06/08/2020 LUGLIO 2020 - CONSUMI ILLUMINAZIONE PUBBLICA;01/09/2020;3544;0;588;1;Spese correnti;3;Acquisto di beni e servizi;2;Acquisto di servizi;15;Contratti di servizio pubblico;15;Contratti di servizio per l'illuminazione pubblica;03/09/2020
2608;1;9999999;6,08;822,22;ENEL ENERGIA SPA;77999756FD;SALDO Fatt.n. 004050596574  del 06/08/2020 LUGLIO 2020 - CONSUMI ILLUMINAZIONE PUBBLICA;01/09/2020;3544;0;588;1;Spese correnti;3;Acquisto di beni e servizi;2;Acquisto di servizi;15;Contratti di servizio pubblico;15;Contratti di servizio per l'illuminazione pubblica;03/09/2020
2608;2;9999999;10,21;822,22;ENEL ENERGIA SPA;77999756FD;SALDO Fatt.n. 004050596579  del 06/08/2020 LUGLIO 2020 - CONSUMI ILLUMINAZIONE PUBBLICA;01/09/2020;3544;0;588;1;Spese correnti;3;Acquisto di beni e servizi;2;Acquisto di servizi;15;Contratti di servizio pubblico;15;Contratti di servizio per l'illuminazione pubblica;03/09/2020
2608;3;9999999;19,04;822,22;ENEL ENERGIA SPA;77999756FD;SALDO Fatt.n. 004050596571  del 06/08/2020 LUGLIO 2020 - CONSUMI ILLUMINAZIONE PUBBLICA;01/09/2020;3544;0;588;1;Spese correnti;3;Acquisto di beni e servizi;2;Acquisto di servizi;15;Contratti di servizio pubblico;15;Contratti di servizio per l'illuminazione pubblica;03/09/2020
2608;4;9999999;30,46;822,22;ENEL ENERGIA SPA;77999756FD;SALDO Fatt.n. 004051051746  del 08/08/2020 LUGLIO 2020 - CONSUMI ILLUMINAZIONE PUBBLICA;01/09/2020;3544;0;588;1;Spese correnti;3;Acquisto di beni e servizi;2;Acquisto di servizi;15;Contratti di servizio pubblico;15;Contratti di servizio per l'illuminazione pubblica;03/09/2020
2608;5;9999999;46,35;822,22;ENEL ENERGIA SPA;77999756FD;SALDO Fatt.n. 004051051745  del 08/08/2020 LUGLIO 2020 - CONSUMI ILLUMINAZIONE PUBBLICA;01/09/2020;3544;0;588;1;Spese correnti;3;Acquisto di beni e servizi;2;Acquisto di servizi;15;Contratti di servizio pubblico;15;Contratti di servizio per l'illuminazione pubblica;03/09/2020
2608;6;9999999;55,68;822,22;ENEL ENERGIA SPA;77999756FD;SALDO Fatt.n. 004050596578  del 06/08/2020 LUGLIO 2020 - CONSUMI ILLUMINAZIONE PUBBLICA;01/09/2020;3544;0;588;1;Spese correnti;3;Acquisto di beni e servizi;2;Acquisto di servizi;15;Contratti di servizio pubblico;15;Contratti di servizio per l'illuminazione pubblica;03/09/2020
2608;7;9999999;65,39;822,22;ENEL ENERGIA SPA;77999756FD;SALDO Fatt.n. 004051051744  del 08/08/2020 LUGLIO 2020 - CONSUMI ILLUMINAZIONE PUBBLICA;01/09/2020;3544;0;588;1;Spese correnti;3;Acquisto di beni e servizi;2;Acquisto di servizi;15;Contratti di servizio pubblico;15;Contratti di servizio per l'illuminazione pubblica;03/09/2020
2608;8;9999999;105,92;822,22;ENEL ENERGIA SPA;77999756FD;SALDO Fatt.n. 004050596573  del 06/08/2020 LUGLIO 2020 - CONSUMI ILLUMINAZIONE PUBBLICA;01/09/2020;3544;0;588;1;Spese correnti;3;Acquisto di beni e servizi;2;Acquisto di servizi;15;Contratti di servizio pubblico;15;Contratti di servizio per l'illuminazione pubblica;03/09/2020
2608;9;9999999;212,98;822,22;ENEL ENERGIA SPA;77999756FD;SALDO Fatt.n. 004050596572  del 06/08/2020 LUGLIO 2020 - CONSUMI ILLUMINAZIONE PUBBLICA;01/09/2020;3544;0;588;1;Spese correnti;3;Acquisto di beni e servizi;2;Acquisto di servizi;15;Contratti di servizio pubblico;15;Contratti di servizio per l'illuminazione pubblica;03/09/2020
2608;10;9999999;270,11;822,22;ENEL ENERGIA SPA;77999756FD;SALDO Fatt.n. 004050596576  del 06/08/2020 LUGLIO 2020 - CONSUMI ILLUMINAZIONE PUBBLICA;01/09/2020;3544;0;588;1;Spese correnti;3;Acquisto di beni e servizi;2;Acquisto di servizi;15;Contratti di servizio pubblico;15;Contratti di servizio per l'illuminazione pubblica;03/09/2020
2609;1;9999999;16,84;1.630,09;ENEL ENERGIA SPA;77999756FD;SALDO Fatt.n. 004052107183  del 09/08/2020 LUGLIO 2020 - CONSUMI ILLUMINAZIONE PUBBLICA;01/09/2020;3544;0;588;1;Spese correnti;3;Acquisto di beni e servizi;2;Acquisto di servizi;15;Contratti di servizio pubblico;15;Contratti di servizio per l'illuminazione pubblica;03/09/2020
2609;2;9999999;17,65;1.630,09;ENEL ENERGIA SPA;77999756FD;SALDO Fatt.n. 004052107180  del 09/08/2020 LUGLIO 2020 - CONSUMI ILLUMINAZIONE PUBBLICA;01/09/2020;3544;0;588;1;Spese correnti;3;Acquisto di beni e servizi;2;Acquisto di servizi;15;Contratti di servizio pubblico;15;Contratti di servizio per l'illuminazione pubblica;03/09/2020
2609;3;9999999;56,53;1.630,09;ENEL ENERGIA SPA;77999756FD;SALDO Fatt.n. 004052107177  del 09/08/2020 LUGLIO 2020 - CONSUMI ILLUMINAZIONE PUBBLICA;01/09/2020;3544;0;588;1;Spese correnti;3;Acquisto di beni e servizi;2;Acquisto di servizi;15;Contratti di servizio pubblico;15;Contratti di servizio per l'illuminazione pubblica;03/09/2020
2609;4;9999999;65,2;1.630,09;ENEL ENERGIA SPA;77999756FD;SALDO Fatt.n. 004052107182  del 09/08/2020 LUGLIO 2020 - CONSUMI ILLUMINAZIONE PUBBLICA;01/09/2020;3544;0;588;1;Spese correnti;3;Acquisto di beni e servizi;2;Acquisto di servizi;15;Contratti di servizio pubblico;15;Contratti di servizio per l'illuminazione pubblica;03/09/2020
2609;5;9999999;71,85;1.630,09;ENEL ENERGIA SPA;77999756FD;SALDO Fatt.n. 004052107185  del 09/08/2020 LUGLIO 2020 - CONSUMI ILLUMINAZIONE PUBBLICA;01/09/2020;3544;0;588;1;Spese correnti;3;Acquisto di beni e servizi;2;Acquisto di servizi;15;Contratti di servizio pubblico;15;Contratti di servizio per l'illuminazione pubblica;03/09/2020
2609;6;9999999;100,6;1.630,09;ENEL ENERGIA SPA;77999756FD;SALDO Fatt.n. 004054892477  del 11/08/2020 LUGLIO 2020 - CONSUMI ILLUMINAZIONE PUBBLICA;01/09/2020;3544;0;588;1;Spese correnti;3;Acquisto di beni e servizi;2;Acquisto di servizi;15;Contratti di servizio pubblico;15;Contratti di servizio per l'illuminazione pubblica;03/09/2020
2609;7;9999999;227,37;1.630,09;ENEL ENERGIA SPA;77999756FD;SALDO Fatt.n. 004054892478  del 11/08/2020 LUGLIO 2020 - CONSUMI ILLUMINAZIONE PUBBLICA;01/09/2020;3544;0;588;1;Spese correnti;3;Acquisto di beni e servizi;2;Acquisto di servizi;15;Contratti di servizio pubblico;15;Contratti di servizio per l'illuminazione pubblica;03/09/2020
2609;8;9999999;275,29;1.630,09;ENEL ENERGIA SPA;77999756FD;SALDO Fatt.n. 004052107178  del 09/08/2020 LUGLIO 2020 - CONSUMI ILLUMINAZIONE PUBBLICA;01/09/2020;3544;0;588;1;Spese correnti;3;Acquisto di beni e servizi;2;Acquisto di servizi;15;Contratti di servizio pubblico;15;Contratti di servizio per l'illuminazione pubblica;03/09/2020
2609;9;9999999;365,71;1.630,09;ENEL ENERGIA SPA;77999756FD;SALDO Fatt.n. 004052107179  del 09/08/2020 LUGLIO 2020 - CONSUMI ILLUMINAZIONE PUBBLICA;01/09/2020;3544;0;588;1;Spese correnti;3;Acquisto di beni e servizi;2;Acquisto di servizi;15;Contratti di servizio pubblico;15;Contratti di servizio per l'illuminazione pubblica;03/09/2020
2609;10;9999999;433,05;1.630,09;ENEL ENERGIA SPA;77999756FD;SALDO Fatt.n. 004054892479  del 11/08/2020 LUGLIO 2020 - CONSUMI ILLUMINAZIONE PUBBLICA;01/09/2020;3544;0;588;1;Spese correnti;3;Acquisto di beni e servizi;2;Acquisto di servizi;15;Contratti di servizio pubblico;15;Contratti di servizio per l'illuminazione pubblica;03/09/2020
2610;1;9999999;10,14;1.458,09;ENEL ENERGIA SPA;77999756FD;SALDO Fatt.n. 004055455575  del 12/08/2020 LUGLIO 2020 - CONSUMI ILLUMINAZIONE PUBBLICA;01/09/2020;3544;0;588;1;Spese correnti;3;Acquisto di beni e servizi;2;Acquisto di servizi;15;Contratti di servizio pubblico;15;Contratti di servizio per l'illuminazione pubblica;03/09/2020
2610;2;9999999;11,48;1.458,09;ENEL ENERGIA SPA;77999756FD;SALDO Fatt.n. 004055455574  del 12/08/2020 LUGLIO 2020 - CONSUMI ILLUMINAZIONE PUBBLICA;01/09/2020;3544;0;588;1;Spese correnti;3;Acquisto di beni e servizi;2;Acquisto di servizi;15;Contratti di servizio pubblico;15;Contratti di servizio per l'illuminazione pubblica;03/09/2020
2610;3;9999999;71,85;1.458,09;ENEL ENERGIA SPA;77999756FD;SALDO Fatt.n. 004054892480  del 11/08/2020 LUGLIO 2020 - CONSUMI ILLUMINAZIONE PUBBLICA;01/09/2020;3544;0;588;1;Spese correnti;3;Acquisto di beni e servizi;2;Acquisto di servizi;15;Contratti di servizio pubblico;15;Contratti di servizio per l'illuminazione pubblica;03/09/2020
2610;4;9999999;81,8;1.458,09;ENEL ENERGIA SPA;77999756FD;SALDO Fatt.n. 004054892482  del 11/08/2020 LUGLIO 2020 - CONSUMI ILLUMINAZIONE PUBBLICA;01/09/2020;3544;0;588;1;Spese correnti;3;Acquisto di beni e servizi;2;Acquisto di servizi;15;Contratti di servizio pubblico;15;Contratti di servizio per l'illuminazione pubblica;03/09/2020
2610;5;9999999;105,31;1.458,09;ENEL ENERGIA SPA;77999756FD;SALDO Fatt.n. 004054892484  del 11/08/2020 LUGLIO 2020 - CONSUMI ILLUMINAZIONE PUBBLICA;01/09/2020;3544;0;588;1;Spese correnti;3;Acquisto di beni e servizi;2;Acquisto di servizi;15;Contratti di servizio pubblico;15;Contratti di servizio per l'illuminazione pubblica;03/09/2020
2610;6;9999999;120,58;1.458,09;ENEL ENERGIA SPA;77999756FD;SALDO Fatt.n. 004055455576  del 12/08/2020 LUGLIO 2020 - CONSUMI ILLUMINAZIONE PUBBLICA;01/09/2020;3544;0;588;1;Spese correnti;3;Acquisto di beni e servizi;2;Acquisto di servizi;15;Contratti di servizio pubblico;15;Contratti di servizio per l'illuminazione pubblica;03/09/2020
2610;7;9999999;127,86;1.458,09;ENEL ENERGIA SPA;77999756FD;SALDO Fatt.n. 004054892483  del 11/08/2020 LUGLIO 2020 - CONSUMI ILLUMINAZIONE PUBBLICA;01/09/2020;3544;0;588;1;Spese correnti;3;Acquisto di beni e servizi;2;Acquisto di servizi;15;Contratti di servizio pubblico;15;Contratti di servizio per l'illuminazione pubblica;03/09/2020
2610;8;9999999;135,88;1.458,09;ENEL ENERGIA SPA;77999756FD;SALDO Fatt.n. 004055455577  del 12/08/2020 LUGLIO 2020 - CONSUMI ILLUMINAZIONE PUBBLICA;01/09/2020;3544;0;588;1;Spese correnti;3;Acquisto di beni e servizi;2;Acquisto di servizi;15;Contratti di servizio pubblico;15;Contratti di servizio per l'illuminazione pubblica;03/09/2020
2610;9;9999999;315,93;1.458,09;ENEL ENERGIA SPA;77999756FD;SALDO Fatt.n. 004054892481  del 11/08/2020 LUGLIO 2020 - CONSUMI ILLUMINAZIONE PUBBLICA;01/09/2020;3544;0;588;1;Spese correnti;3;Acquisto di beni e servizi;2;Acquisto di servizi;15;Contratti di servizio pubblico;15;Contratti di servizio per l'illuminazione pubblica;03/09/2020
2610;10;9999999;477,26;1.458,09;ENEL ENERGIA SPA;77999756FD;SALDO Fatt.n. 004055455578  del 12/08/2020 LUGLIO 2020 - CONSUMI ILLUMINAZIONE PUBBLICA;01/09/2020;3544;0;588;1;Spese correnti;3;Acquisto di beni e servizi;2;Acquisto di servizi;15;Contratti di servizio pubblico;15;Contratti di servizio per l'illuminazione pubblica;03/09/2020
2611;1;9999999;0,23;1.052,99;ENEL ENERGIA SPA;77999756FD;SALDO Fatt.n. 004057143918  del 16/08/2020 LUGLIO 2020 - CONSUMI ILLUMINAZIONE PUBBLICA;01/09/2020;3544;0;588;1;Spese correnti;3;Acquisto di beni e servizi;2;Acquisto di servizi;15;Contratti di servizio pubblico;15;Contratti di servizio per l'illuminazione pubblica;03/09/2020
2611;2;9999999;13,57;1.052,99;ENEL ENERGIA SPA;77999756FD;SALDO Fatt.n. 004056307193  del 13/08/2020 LUGLIO 2020 - CONSUMI ILLUMINAZIONE PUBBLICA;01/09/2020;3544;0;588;1;Spese correnti;3;Acquisto di beni e servizi;2;Acquisto di servizi;15;Contratti di servizio pubblico;15;Contratti di servizio per l'illuminazione pubblica;03/09/2020
2611;3;9999999;27,17;1.052,99;ENEL ENERGIA SPA;77999756FD;SALDO Fatt.n. 004055455580  del 12/08/2020 LUGLIO 2020 - CONSUMI ILLUMINAZIONE PUBBLICA;01/09/2020;3544;0;588;1;Spese correnti;3;Acquisto di beni e servizi;2;Acquisto di servizi;15;Contratti di servizio pubblico;15;Contratti di servizio per l'illuminazione pubblica;03/09/2020
2611;4;9999999;28,02;1.052,99;ENEL ENERGIA SPA;77999756FD;SALDO Fatt.n. 004056307190  del 13/08/2020 LUGLIO 2020 - CONSUMI ILLUMINAZIONE PUBBLICA;01/09/2020;3544;0;588;1;Spese correnti;3;Acquisto di beni e servizi;2;Acquisto di servizi;15;Contratti di servizio pubblico;15;Contratti di servizio per l'illuminazione pubblica;03/09/2020
2611;5;9999999;39,88;1.052,99;ENEL ENERGIA SPA;77999756FD;SALDO Fatt.n. 004056307194  del 13/08/2020 LUGLIO 2020 - CONSUMI ILLUMINAZIONE PUBBLICA;01/09/2020;3544;0;588;1;Spese correnti;3;Acquisto di beni e servizi;2;Acquisto di servizi;15;Contratti di servizio pubblico;15;Contratti di servizio per l'illuminazione pubblica;03/09/2020
2611;6;9999999;51,79;1.052,99;ENEL ENERGIA SPA;77999756FD;SALDO Fatt.n. 004056307185  del 13/08/2020 LUGLIO 2020 - CONSUMI ILLUMINAZIONE PUBBLICA;01/09/2020;3544;0;588;1;Spese correnti;3;Acquisto di beni e servizi;2;Acquisto di servizi;15;Contratti di servizio pubblico;15;Contratti di servizio per l'illuminazione pubblica;03/09/2020
2611;7;9999999;53,44;1.052,99;ENEL ENERGIA SPA;77999756FD;SALDO Fatt.n. 004056307187  del 13/08/2020 LUGLIO 2020 - CONSUMI ILLUMINAZIONE PUBBLICA;01/09/2020;3544;0;588;1;Spese correnti;3;Acquisto di beni e servizi;2;Acquisto di servizi;15;Contratti di servizio pubblico;15;Contratti di servizio per l'illuminazione pubblica;03/09/2020
2611;8;9999999;82,22;1.052,99;ENEL ENERGIA SPA;77999756FD;SALDO Fatt.n. 004056307189  del 13/08/2020 LUGLIO 2020 - CONSUMI ILLUMINAZIONE PUBBLICA;01/09/2020;3544;0;588;1;Spese correnti;3;Acquisto di beni e servizi;2;Acquisto di servizi;15;Contratti di servizio pubblico;15;Contratti di servizio per l'illuminazione pubblica;03/09/2020
2611;9;9999999;103,57;1.052,99;ENEL ENERGIA SPA;77999756FD;SALDO Fatt.n. 004056307192  del 13/08/2020 LUGLIO 2020 - CONSUMI ILLUMINAZIONE PUBBLICA;01/09/2020;3544;0;588;1;Spese correnti;3;Acquisto di beni e servizi;2;Acquisto di servizi;15;Contratti di servizio pubblico;15;Contratti di servizio per l'illuminazione pubblica;03/09/2020
2611;10;9999999;127,77;1.052,99;ENEL ENERGIA SPA;77999756FD;SALDO Fatt.n. 004056307195  del 13/08/2020 LUGLIO 2020 - CONSUMI ILLUMINAZIONE PUBBLICA;01/09/2020;3544;0;588;1;Spese correnti;3;Acquisto di beni e servizi;2;Acquisto di servizi;15;Contratti di servizio pubblico;15;Contratti di servizio per l'illuminazione pubblica;03/09/2020
2611;11;9999999;135,05;1.052,99;ENEL ENERGIA SPA;77999756FD;SALDO Fatt.n. 004056307186  del 13/08/2020 LUGLIO 2020 - CONSUMI ILLUMINAZIONE PUBBLICA;01/09/2020;3544;0;588;1;Spese correnti;3;Acquisto di beni e servizi;2;Acquisto di servizi;15;Contratti di servizio pubblico;15;Contratti di servizio per l'illuminazione pubblica;03/09/2020
2611;12;9999999;150,21;1.052,99;ENEL ENERGIA SPA;77999756FD;SALDO Fatt.n. 004056307191  del 13/08/2020 LUGLIO 2020 - CONSUMI ILLUMINAZIONE PUBBLICA;01/09/2020;3544;0;588;1;Spese correnti;3;Acquisto di beni e servizi;2;Acquisto di servizi;15;Contratti di servizio pubblico;15;Contratti di servizio per l'illuminazione pubblica;03/09/2020
2611;13;9999999;240,07;1.052,99;ENEL ENERGIA SPA;77999756FD;SALDO Fatt.n. 004056307188  del 13/08/2020 LUGLIO 2020 - CONSUMI ILLUMINAZIONE PUBBLICA;01/09/2020;3544;0;588;1;Spese correnti;3;Acquisto di beni e servizi;2;Acquisto di servizi;15;Contratti di servizio pubblico;15;Contratti di servizio per l'illuminazione pubblica;03/09/2020
2612;1;9999999;144,53;144,53;ABACO S.P.A.;766214493F;SALDO Fatt.n. 2020120003262  del 05/08/2020 AGGIO RISCOSSIONE ICP E DPA CONTO ABACO SPA RENDICONTO DELLA GESTIONE DAL 01/07/2020 A 31/07/2020 CIG.766214493F;01/09/2020;332;0;1228;1;Spese correnti;3;Acquisto di beni e servizi;2;Acquisto di servizi;3;Aggi di riscossione;999;Altri aggi di riscossione n.a.c.;04/09/2020
2613;1;9999999;7,05;7,05;ABACO S.P.A.;Z4B0FF1CA6;SALDO Fatt.n. 2020140002910  del 03/08/2020 AGGIO RISCOSSIONE COATTIVA CDS LOTTO 1  RENDICONTO LUGLIO 2020;01/09/2020;332;0;0;1;Spese correnti;3;Acquisto di beni e servizi;2;Acquisto di servizi;3;Aggi di riscossione;999;Altri aggi di riscossione n.a.c.;04/09/2020
2614;1;9999999;250,1;250,1;ABACO S.P.A.;5325258DE8;SALDO Fatt.n. 2020140002911  del 03/08/2020 AGGIO RISCOSSIONE COATTIVA ICI IMU TASI LOTTO 5 RENDICONTO LUGLIO 2020 CIG.5325258DE8;01/09/2020;332;0;0;1;Spese correnti;3;Acquisto di beni e servizi;2;Acquisto di servizi;3;Aggi di riscossione;999;Altri aggi di riscossione n.a.c.;04/09/2020
2615;1;9999999;10,5;10,5;ABACO S.P.A.;5325258DE8;SALDO Fatt.n. 2020140002912  del 03/08/2020 AGGIO RISCOSSIONE COATTITTIVA ICI IMU E TASI LOTTO 6 RENDICONTO LUGLIO 2020;01/09/2020;332;0;0;1;Spese correnti;3;Acquisto di beni e servizi;2;Acquisto di servizi;3;Aggi di riscossione;999;Altri aggi di riscossione n.a.c.;04/09/2020
2616;1;9999999;31,96;31,96;C/C/P 15453301 SERVIZIO DI TESORERIA COM; ;PRELEVAMENTO N. 11-2020 - AGOSTO 2020;02/09/2020;146;0;0;1;Spese correnti;3;Acquisto di beni e servizi;2;Acquisto di servizi;17;Servizi finanziari;999;Spese per servizi finanziari n.a.c.;04/09/2020
2617;1;9999999;1.177,54;1.177,54;ABACO S.P.A.;766214493F;SALDO Fatt.n. 2020120003245  del 03/08/2020 LISTE DI INESIGIBILITA' INVIATE E SPESE GESTIONE DEL SERVIZIO PUBBLICITA' -RENDICONTO DELLA GESTIONE DAL 01/01/2020 A 31/12/2020 cig 766214493F;02/09/2020;332;0;1228;1;Spese correnti;3;Acquisto di beni e servizi;2;Acquisto di servizi;3;Aggi di riscossione;999;Altri aggi di riscossione n.a.c.;04/09/2020
2618;1;9999999;360,58;360,58;ABACO S.P.A.;766214493F;SALDO Fatt.n. 2020120003263  del 05/08/2020 AGGIO RISCOSSIONE ICP E DPA CONTO ENTE RENDICONTO DELLA GESTIONE LUGLIO 2020 CIG. 766214493F;02/09/2020;332;0;1228;1;Spese correnti;3;Acquisto di beni e servizi;2;Acquisto di servizi;3;Aggi di riscossione;999;Altri aggi di riscossione n.a.c.;04/09/2020
2622;1;9999999;53.844,08;53.844,08;AZIENDA ULSS N. 3 SERENISSIMA; ;SALDO ANNO 2019 QUOTA PARTE SOCIALE SERVIZI SOCIALI E SOCIO SANITARI;07/09/2020;3851;0;672;1;Spese correnti;4;Trasferimenti correnti;1;Trasferimenti correnti a Amministrazioni Pubbliche;2;Trasferimenti correnti a Amministrazioni Locali;11;Trasferimenti correnti a Aziende sanitarie locali  n.a.f.;09/09/2020
2623;1;9999999;1.300,00;1.300,00;LABS LABORATORIO SOLIDALE ONLUS; ;CONTRIBUTO MANIFESTAZIONE CINEMA SOTTO LE STELLE;07/09/2020;1859;0;97;1;Spese correnti;4;Trasferimenti correnti;4;Trasferimenti correnti a Istituzioni Sociali Private;1;Trasferimenti correnti a Istituzioni Sociali Private;1;Trasferimenti correnti a Istituzioni Sociali Private;09/09/2020
2624;1;9999999;149.034,28;149.034,28;OMESSO NOMINATIVO NEL RISPETTO DELLA NORMATIVA SULLA PROTEZIONE DATI PERSONALI; ;DISTRETTO DI MIRANO DOLO ANNO 2020 SOCIALE PAGAMENTO 3 ACCONTO GESTIONE SERVIZI SOCIALI E SOCIO SANITARI;07/09/2020;3851;0;664;1;Spese correnti;4;Trasferimenti correnti;1;Trasferimenti correnti a Amministrazioni Pubbliche;2;Trasferimenti correnti a Amministrazioni Locali;11;Trasferimenti correnti a Aziende sanitarie locali  n.a.f.;09/09/2020
2625;1;9999999;220;220;OMESSO NOMINATIVO NEL RISPETTO DELLA NORMATIVA SULLA PROTEZIONE DATI PERSONALI; ;RATA SETTEMBRE 2020 ASSEGNI DI SOLLIEVO II TRANCHE;07/09/2020;3957;50;639;1;Spese correnti;4;Trasferimenti correnti;2;Trasferimenti correnti a Famiglie;2;Interventi assistenziali;999;Altri assegni e sussidi assistenziali;23/09/2020
2627;1;9999999;220;220;OMESSO NOMINATIVO NEL RISPETTO DELLA NORMATIVA SULLA PROTEZIONE DATI PERSONALI; ;RATA SETTEMBRE 2020 ASSEGNI DI SOLLIEVO;07/09/2020;3957;50;644;1;Spese correnti;4;Trasferimenti correnti;2;Trasferimenti correnti a Famiglie;2;Interventi assistenziali;999;Altri assegni e sussidi assistenziali;09/09/2020
2628;1;9999999;13.675,00;30.700,00;UNICOMM SRL SOC. UNIPERSONALE; ;NOTE NN.257/457EMERGENZA COVID  BUONI SPESA MAGGIO 2020;07/09/2020;4122;0;462;1;Spese correnti;3;Acquisto di beni e servizi;1;Acquisto di beni;2;Altri beni di consumo;11;Generi alimentari;09/09/2020
2628;2;9999999;17.025,00;30.700,00;UNICOMM SRL SOC. UNIPERSONALE; ;NOTE NN.257/457EMERGENZA COVID  BUONI SPESA APRILE 2020;07/09/2020;4122;0;462;1;Spese correnti;3;Acquisto di beni e servizi;1;Acquisto di beni;2;Altri beni di consumo;11;Generi alimentari;09/09/2020
2629;1;9999999;1.890,00;1.890,00;OMESSO NOMINATIVO NEL RISPETTO DELLA NORMATIVA SULLA PROTEZIONE DATI PERSONALI; ;ARRETRATI FEBBRAIO AGOSTO 2020 INT.RETTA CASA DI RIPOSO;07/09/2020;3844;0;666;1;Spese correnti;3;Acquisto di beni e servizi;2;Acquisto di servizi;15;Contratti di servizio pubblico;8;Contratti di servizio di assistenza sociale residenziale e semiresidenziale;09/09/2020
2630;1;9999999;150;150;OMESSO NOMINATIVO NEL RISPETTO DELLA NORMATIVA SULLA PROTEZIONE DATI PERSONALI; ;SETTEMBRE 2020 AFFIDO FAMILIARE;07/09/2020;3757;50;591;1;Spese correnti;4;Trasferimenti correnti;2;Trasferimenti correnti a Famiglie;2;Interventi assistenziali;999;Altri assegni e sussidi assistenziali;09/09/2020
2633;1;9999999;77,36;77,36;AGENZIA DELLE ENTRATE - IVA; ;LIQUIDAZIONE IVA COMMERCIALE MESE DI AGOSTO 2020;09/09/2020;291;0;686;1;Spese correnti;10;Altre spese correnti;3;Versamenti IVA a debito;1;Versamenti IVA a debito per le gestioni commerciali;1;Versamenti IVA a debito per le gestioni commerciali;16/09/2020
2634;1;9999999;1.930,75;1.930,75;OMESSO NOMINATIVO NEL RISPETTO DELLA NORMATIVA SULLA PROTEZIONE DATI PERSONALI; ;LUGLIO 2020 RETTA;09/09/2020;3844;0;599;1;Spese correnti;3;Acquisto di beni e servizi;2;Acquisto di servizi;15;Contratti di servizio pubblico;8;Contratti di servizio di assistenza sociale residenziale e semiresidenziale;10/09/2020
2635;1;9999999;462,95;462,95;TIM SPA - TELECOM ITALIA SPA;ZEB27AA043;SALDO Fatt.n. 7X02923064  del 14/08/2020 5 BIM 2020 - CONVENZIONE CONSIP TELEFONIA MOBILE 7;09/09/2020;134;0;246;1;Spese correnti;3;Acquisto di beni e servizi;2;Acquisto di servizi;5;Utenze e canoni;2;Telefonia mobile;11/09/2020
2636;1;9999999;1.097,98;1.097,98;TIM SPA - TELECOM ITALIA SPA;ZE027DF92B;SALDO Fatt.n. 4220420800034092  del 13/08/2020 5 BIM 2020 - CONNETTIVITA FIBRA GBE;09/09/2020;134;0;379;1;Spese correnti;3;Acquisto di beni e servizi;2;Acquisto di servizi;5;Utenze e canoni;999;Utenze e canoni per altri servizi n.a.c.;11/09/2020
2637;1;9999999;85,4;183;TIM SPA - TELECOM ITALIA SPA;ZE92C24A41;SALDO Fatt.n. 8E00575154  del 13/08/2020 5 BIM 2020 - UTENZA FAX POLIZIA LOCALE;09/09/2020;134;0;203;1;Spese correnti;3;Acquisto di beni e servizi;2;Acquisto di servizi;5;Utenze e canoni;1;Telefonia fissa;11/09/2020
2637;2;9999999;97,6;183;TIM SPA - TELECOM ITALIA SPA;ZE92C24A41;SALDO Fatt.n. 8E00573266  del 13/08/2020 5 BIM 2020 - UTENZA SERVIZI SOCIALI;09/09/2020;134;0;203;1;Spese correnti;3;Acquisto di beni e servizi;2;Acquisto di servizi;5;Utenze e canoni;1;Telefonia fissa;11/09/2020
2638;1;9999999;439,2;439,2;VEDETTA 2 MONDIALPOL SPA;Z5A29219B1;SALDO Fatt.n. VZ-10688  del 09/07/2020 PERIODO OTTOBRE   - DICEMBRE 2019 - SERVIZIO DI VIGILANZA MAGAZZINO COMUNALE - PROTEZIONE CIVILE  VIA FERRARIS 1 - SMS;09/09/2020;548;0;780;1;Spese correnti;3;Acquisto di beni e servizi;2;Acquisto di servizi;9;Manutenzione ordinaria e riparazioni;8;Manutenzione ordinaria e riparazioni di beni immobili;11/09/2020
2639;1;9999999;248;248;E.S.A. ELECOMP SERVIZI ASCENSORI SRL;Z0A2C6C034;SALDO Fatt.n. FC0028650-0  del 04/08/2020 MANUTENZIONE ELEVATORI SCUOLA S.ANGELO/VETERNIGO /SEDE MUNICIPALE /SC.MEDIA I SEMESTRE 2020;09/09/2020;1938;0;352;1;Spese correnti;3;Acquisto di beni e servizi;2;Acquisto di servizi;9;Manutenzione ordinaria e riparazioni;11;Manutenzione ordinaria e riparazioni di altri beni materiali;11/09/2020
2640;1;9999999;112,55;112,55;A.C.I. - AUTOMOBILE CLUB D'ITALIA;ZAE2C3B9B7;SALDO Fatt.n. 0000018884  del 05/08/2020 FORNITURA DATI STATISTICI PER PAESC;09/09/2020;2649;0;304;1;Spese correnti;3;Acquisto di beni e servizi;2;Acquisto di servizi;99;Altri servizi;999;Altri servizi diversi n.a.c.;11/09/2020
2641;1;9999999;-0,77;1.252,52;SOENERGY S.R.L.;8300710A94;SALDO Fatt.n. 201227057  del 13/08/2020 NOTA DI ACCREDITO PER CONG. CONSUMI GIUGNO+LUGLIO 2020;09/09/2020;134;31;451;1;Spese correnti;3;Acquisto di beni e servizi;2;Acquisto di servizi;5;Utenze e canoni;6;Gas;11/09/2020
2641;2;9999999;1.253,29;1.252,52;SOENERGY S.R.L.;8300710A94;SALDO Fatt.n. 201227058  del 13/08/2020 LUGLIO 2020 - CONSUMI SEDE MUNICIPALE;09/09/2020;134;31;451;1;Spese correnti;3;Acquisto di beni e servizi;2;Acquisto di servizi;5;Utenze e canoni;6;Gas;11/09/2020
2642;1;9999999;11,41;11,41;SOENERGY S.R.L.;8300710A94;SALDO Fatt.n. 201227051  del 13/08/2020 LUGLIO 2020 - CONSUMI ALLOGGIO VIA DON GALLERANI CALTANA;09/09/2020;134;31;451;1;Spese correnti;3;Acquisto di beni e servizi;2;Acquisto di servizi;5;Utenze e canoni;6;Gas;11/09/2020
2643;1;9999999;165,26;165,26;SOENERGY S.R.L.;8300710A94;SALDO Fatt.n. 201234706  del 13/08/2020 LUGLIO 2020 - CONSUMI ALLOGGIO VIA OLIMPIA SMS;09/09/2020;134;31;451;1;Spese correnti;3;Acquisto di beni e servizi;2;Acquisto di servizi;5;Utenze e canoni;6;Gas;11/09/2020
2644;1;9999999;8;8;SOENERGY S.R.L.;8300710A94;ACCONTO Fatt.n. 201227053  del 13/08/2020 LUGLIO 2020 - CONSUMI  SC. ELEMENTARE - PALESTRA CASELLE;09/09/2020;1334;30;452;1;Spese correnti;3;Acquisto di beni e servizi;2;Acquisto di servizi;5;Utenze e canoni;6;Gas;11/09/2020
2645;1;9999999;23,88;23,88;SOENERGY S.R.L.;8300710A94;ACCONTO Fatt.n. 201227053  del 13/08/2020 LUGLIO 2020 - CONSUMI  SC. ELEMENTARE - PALESTRA CASELLE;09/09/2020;1334;30;452;1;Spese correnti;3;Acquisto di beni e servizi;2;Acquisto di servizi;5;Utenze e canoni;6;Gas;11/09/2020
2646;1;9999999;0,8;0,8;SOENERGY S.R.L.;8300710A94;ACCONTO Fatt.n. 201227055  del 13/08/2020 LUGLIO 2020 - CONSUMI  SC. ELEMENTARE  - PALESTRA VETERNIGO;09/09/2020;1334;30;452;1;Spese correnti;3;Acquisto di beni e servizi;2;Acquisto di servizi;5;Utenze e canoni;6;Gas;11/09/2020
2647;1;9999999;1,36;1,36;SOENERGY S.R.L.;8300710A94;ACCONTO Fatt.n. 201227055  del 13/08/2020 LUGLIO 2020 - CONSUMI  SC. ELEMENTARE  - PALESTRA VETERNIGO;09/09/2020;1334;30;452;1;Spese correnti;3;Acquisto di beni e servizi;2;Acquisto di servizi;5;Utenze e canoni;6;Gas;11/09/2020
2648;1;9999999;8;8;SOENERGY S.R.L.;8300710A94;ACCONTO Fatt.n. 201227054  del 13/08/2020 LUGLIO 2020 - CONSUMI SC. ELEMENTARE - PALESTRA - ASILO S.ANGELO;09/09/2020;1334;30;452;1;Spese correnti;3;Acquisto di beni e servizi;2;Acquisto di servizi;5;Utenze e canoni;6;Gas;11/09/2020
2649;1;9999999;23,88;23,88;SOENERGY S.R.L.;8300710A94;ACCONTO Fatt.n. 201227054  del 13/08/2020 LUGLIO 2020 - CONSUMI SC. ELEMENTARE - PALESTRA - ASILO S.ANGELO;09/09/2020;1334;30;452;1;Spese correnti;3;Acquisto di beni e servizi;2;Acquisto di servizi;5;Utenze e canoni;6;Gas;11/09/2020
2650;1;9999999;19,94;19,94;SOENERGY S.R.L.;8300710A94;ACCONTO Fatt.n. 201227056  del 13/08/2020 LUGLIO 2020 - CONSUMI PALESTRA CALTANA;09/09/2020;1334;30;452;1;Spese correnti;3;Acquisto di beni e servizi;2;Acquisto di servizi;5;Utenze e canoni;6;Gas;11/09/2020
2651;1;9999999;39,88;39,88;SOENERGY S.R.L.;8300710A94;SALDO Fatt.n. 201227048  del 13/08/2020 LUGLIO 2020 - CONSUMI SC. ELEMENTARE - SCUOLA MEDIA SMS;09/09/2020;1334;30;452;1;Spese correnti;3;Acquisto di beni e servizi;2;Acquisto di servizi;5;Utenze e canoni;6;Gas;11/09/2020
2652;1;9999999;39,88;39,88;SOENERGY S.R.L.;8300710A94;SALDO Fatt.n. 201227050  del 13/08/2020 LUGLIO 2020 - CONSUMI SC. ELEMENTARE CALTANA;09/09/2020;1334;30;452;1;Spese correnti;3;Acquisto di beni e servizi;2;Acquisto di servizi;5;Utenze e canoni;6;Gas;11/09/2020
2653;1;9999999;14;14;SOENERGY S.R.L.;8300710A94;ACCONTO Fatt.n. 201227046  del 13/08/2020 LUGLIO 2020 - CONSUMI SC. ELEMENTARE - PALESTRA STIGLIANO;09/09/2020;1334;30;452;1;Spese correnti;3;Acquisto di beni e servizi;2;Acquisto di servizi;5;Utenze e canoni;6;Gas;11/09/2020
2654;1;9999999;11,88;11,88;SOENERGY S.R.L.;8300710A94;ACCONTO Fatt.n. 201227046  del 13/08/2020 LUGLIO 2020 - CONSUMI SC. ELEMENTARE - PALESTRA STIGLIANO;09/09/2020;1334;30;452;1;Spese correnti;3;Acquisto di beni e servizi;2;Acquisto di servizi;5;Utenze e canoni;6;Gas;11/09/2020
2655;1;9999999;19,94;19,94;SOENERGY S.R.L.;8300710A94;ACCONTO Fatt.n. 201227047  del 13/08/2020 LUGLIO 2020 - CONSUMI PALESTRA SMS;09/09/2020;1334;30;452;1;Spese correnti;3;Acquisto di beni e servizi;2;Acquisto di servizi;5;Utenze e canoni;6;Gas;11/09/2020
2656;1;9999999;8;8;SOENERGY S.R.L.;8300710A94;SALDO Fatt.n. 201227053  del 13/08/2020 LUGLIO 2020 - CONSUMI  SC. ELEMENTARE - PALESTRA CASELLE;09/09/2020;1934;0;454;1;Spese correnti;3;Acquisto di beni e servizi;2;Acquisto di servizi;5;Utenze e canoni;6;Gas;11/09/2020
2657;1;9999999;0,8;0,8;SOENERGY S.R.L.;8300710A94;SALDO Fatt.n. 201227055  del 13/08/2020 LUGLIO 2020 - CONSUMI  SC. ELEMENTARE  - PALESTRA VETERNIGO;09/09/2020;1934;0;454;1;Spese correnti;3;Acquisto di beni e servizi;2;Acquisto di servizi;5;Utenze e canoni;6;Gas;11/09/2020
2658;1;9999999;8;8;SOENERGY S.R.L.;8300710A94;SALDO Fatt.n. 201227054  del 13/08/2020 LUGLIO 2020 - CONSUMI SC. ELEMENTARE - PALESTRA - ASILO S.ANGELO;09/09/2020;1934;0;454;1;Spese correnti;3;Acquisto di beni e servizi;2;Acquisto di servizi;5;Utenze e canoni;6;Gas;11/09/2020
2659;1;9999999;19,94;19,94;SOENERGY S.R.L.;8300710A94;SALDO Fatt.n. 201227056  del 13/08/2020 LUGLIO 2020 - CONSUMI PALESTRA CALTANA;09/09/2020;1934;0;454;1;Spese correnti;3;Acquisto di beni e servizi;2;Acquisto di servizi;5;Utenze e canoni;6;Gas;11/09/2020
2660;1;9999999;14;14;SOENERGY S.R.L.;8300710A94;SALDO Fatt.n. 201227046  del 13/08/2020 LUGLIO 2020 - CONSUMI SC. ELEMENTARE - PALESTRA STIGLIANO;09/09/2020;1934;0;454;1;Spese correnti;3;Acquisto di beni e servizi;2;Acquisto di servizi;5;Utenze e canoni;6;Gas;11/09/2020
2661;1;9999999;52,59;52,59;SOENERGY S.R.L.;8300710A94;SALDO Fatt.n. 201227052  del 13/08/2020 LUGLIO 2020 - CONSUMI IMP. SPORTIVO CASELLE;09/09/2020;1934;0;454;1;Spese correnti;3;Acquisto di beni e servizi;2;Acquisto di servizi;5;Utenze e canoni;6;Gas;11/09/2020
2662;1;9999999;19,94;19,94;SOENERGY S.R.L.;8300710A94;SALDO Fatt.n. 201227047  del 13/08/2020 LUGLIO 2020 - CONSUMI PALESTRA SMS;09/09/2020;1934;0;454;1;Spese correnti;3;Acquisto di beni e servizi;2;Acquisto di servizi;5;Utenze e canoni;6;Gas;11/09/2020
2663;1;9999999;40,25;40,25;SOENERGY S.R.L.;8300710A94;SALDO Fatt.n. 201227049  del 13/08/2020 LUGLIO 2020 - CONSUMI VILLA FARSETTI;09/09/2020;4234;0;456;1;Spese correnti;3;Acquisto di beni e servizi;2;Acquisto di servizi;5;Utenze e canoni;6;Gas;11/09/2020
2665;1;9999999;150;150;OMESSO NOMINATIVO NEL RISPETTO DELLA NORMATIVA SULLA PROTEZIONE DATI PERSONALI; ;SETTEMBRE 2020 MINIMO VITALE;15/09/2020;4157;0;520;1;Spese correnti;4;Trasferimenti correnti;2;Trasferimenti correnti a Famiglie;2;Interventi assistenziali;999;Altri assegni e sussidi assistenziali;22/09/2020
2666;1;9999999;100;100;OMESSO NOMINATIVO NEL RISPETTO DELLA NORMATIVA SULLA PROTEZIONE DATI PERSONALI; ;SETTEMBRE 2020 MINIMO VITALE;15/09/2020;4157;0;580;1;Spese correnti;4;Trasferimenti correnti;2;Trasferimenti correnti a Famiglie;2;Interventi assistenziali;999;Altri assegni e sussidi assistenziali;23/09/2020
2667;1;9999999;200;200;OMESSO NOMINATIVO NEL RISPETTO DELLA NORMATIVA SULLA PROTEZIONE DATI PERSONALI; ;SETTEMBRE 2020 MINIMO VITALE;15/09/2020;4157;0;654;1;Spese correnti;4;Trasferimenti correnti;2;Trasferimenti correnti a Famiglie;2;Interventi assistenziali;999;Altri assegni e sussidi assistenziali;09/10/2020
2668;1;9999999;130;130;OMESSO NOMINATIVO NEL RISPETTO DELLA NORMATIVA SULLA PROTEZIONE DATI PERSONALI; ;SETTEMBRE 2020 MINIMO VITALE;15/09/2020;4157;0;353;1;Spese correnti;4;Trasferimenti correnti;2;Trasferimenti correnti a Famiglie;2;Interventi assistenziali;999;Altri assegni e sussidi assistenziali;29/09/2020
2669;1;9999999;200;200;OMESSO NOMINATIVO NEL RISPETTO DELLA NORMATIVA SULLA PROTEZIONE DATI PERSONALI; ;SETTEMBRE 2020 MINIMO VITALE;15/09/2020;4157;0;655;1;Spese correnti;4;Trasferimenti correnti;2;Trasferimenti correnti a Famiglie;2;Interventi assistenziali;999;Altri assegni e sussidi assistenziali;22/09/2020
2670;1;9999999;150;150;OMESSO NOMINATIVO NEL RISPETTO DELLA NORMATIVA SULLA PROTEZIONE DATI PERSONALI; ;SETTEMBRE 2020 MINIMO VITALE;15/09/2020;4157;0;657;1;Spese correnti;4;Trasferimenti correnti;2;Trasferimenti correnti a Famiglie;2;Interventi assistenziali;999;Altri assegni e sussidi assistenziali;22/09/2020
2671;1;9999999;150;150;OMESSO NOMINATIVO NEL RISPETTO DELLA NORMATIVA SULLA PROTEZIONE DATI PERSONALI; ;SETTEMBRE 2020 MINIMO VITALE;15/09/2020;4157;0;656;1;Spese correnti;4;Trasferimenti correnti;2;Trasferimenti correnti a Famiglie;2;Interventi assistenziali;999;Altri assegni e sussidi assistenziali;22/09/2020
2672;1;9999999;100;100;OMESSO NOMINATIVO NEL RISPETTO DELLA NORMATIVA SULLA PROTEZIONE DATI PERSONALI; ;SETTEMBRE 2020 MINIMO VITALE;15/09/2020;4157;0;524;1;Spese correnti;4;Trasferimenti correnti;2;Trasferimenti correnti a Famiglie;2;Interventi assistenziali;999;Altri assegni e sussidi assistenziali;12/10/2020
2673;1;9999999;200;200;OMESSO NOMINATIVO NEL RISPETTO DELLA NORMATIVA SULLA PROTEZIONE DATI PERSONALI; ;SETTEMBRE 2020 MINIMO VITALE;15/09/2020;4157;0;658;1;Spese correnti;4;Trasferimenti correnti;2;Trasferimenti correnti a Famiglie;2;Interventi assistenziali;999;Altri assegni e sussidi assistenziali;23/09/2020
2674;1;9999999;600;600;OMESSO NOMINATIVO NEL RISPETTO DELLA NORMATIVA SULLA PROTEZIONE DATI PERSONALI; ;SETTEMBRE 2020 PROGETTO RILEVANZA SOCIALE;15/09/2020;4157;0;31;1;Spese correnti;4;Trasferimenti correnti;2;Trasferimenti correnti a Famiglie;2;Interventi assistenziali;999;Altri assegni e sussidi assistenziali;18/09/2020
2675;1;9999999;304,05;304,05;MUFFATO CLAUDIO;ZD32BDA7D7;SALDO Fatt.n. 251  del 26/08/2020 MANUTENZIONE ATTREZZATURE PER VERDE;15/09/2020;2538;0;114;1;Spese correnti;3;Acquisto di beni e servizi;2;Acquisto di servizi;9;Manutenzione ordinaria e riparazioni;5;Manutenzione ordinaria e riparazioni di attrezzature;18/09/2020
2676;1;9999999;897,62;897,62;V.E.R.I.T.A.S. SPA; ;SALDO Fatt.n. 9500000681  del 19/08/2020 1 TRIM 2020 - DERATIZZAZIONE - DISINFESTAZIONE;15/09/2020;2549;0;623;1;Spese correnti;3;Acquisto di beni e servizi;2;Acquisto di servizi;99;Altri servizi;9;Acquisto di sevizi per verde e arredo urbano;18/09/2020
2677;1;9999999;183;413,82;MYO SPA;ZBC2DDA561;SALDO Fatt.n. 2040/200020343  del 25/08/2020  MANIFESTO CONVOCAZIONE COMIZI;15/09/2020;649;0;622;1;Spese correnti;3;Acquisto di beni e servizi;2;Acquisto di servizi;99;Altri servizi;4;Altre spese per consultazioni elettorali dell'ente;18/09/2020
2677;2;9999999;230,82;413,82;MYO SPA;ZBC2DDA561;SALDO Fatt.n. 2040/200020344  del 25/08/2020 MANIFESTO 12AR ASSEGNAZIONE SEGGI - VENETO - FORMULA REGIONALI COMPRESO RENDICONTO;15/09/2020;649;0;622;1;Spese correnti;3;Acquisto di beni e servizi;2;Acquisto di servizi;99;Altri servizi;4;Altre spese per consultazioni elettorali dell'ente;18/09/2020
2678;1;9999999;720;720;OMESSO NOMINATIVO NEL RISPETTO DELLA NORMATIVA SULLA PROTEZIONE DATI PERSONALI; ;CONTRIBUTO IMPEGNATIVA DI CURA DOMICILIARE ICD B 1 SEMESTRE 2020;16/09/2020;3957;50;688;1;Spese correnti;4;Trasferimenti correnti;2;Trasferimenti correnti a Famiglie;2;Interventi assistenziali;999;Altri assegni e sussidi assistenziali;21/09/2020
2679;1;9999999;720;720;OMESSO NOMINATIVO NEL RISPETTO DELLA NORMATIVA SULLA PROTEZIONE DATI PERSONALI; ;CONTRIBUTO IMPEGNATIVA DI CURA DOMICILIARE ICD B 1 SEMESTRE 2020;16/09/2020;3957;50;689;1;Spese correnti;4;Trasferimenti correnti;2;Trasferimenti correnti a Famiglie;2;Interventi assistenziali;999;Altri assegni e sussidi assistenziali;21/09/2020
2680;1;9999999;720;720;OMESSO NOMINATIVO NEL RISPETTO DELLA NORMATIVA SULLA PROTEZIONE DATI PERSONALI; ;CONTRIBUTO IMPEGNATIVA DI CURA DOMICILIARE ICD B 1 SEMESTRE 2020;16/09/2020;3957;50;690;1;Spese correnti;4;Trasferimenti correnti;2;Trasferimenti correnti a Famiglie;2;Interventi assistenziali;999;Altri assegni e sussidi assistenziali;21/09/2020
2681;1;9999999;720;720;OMESSO NOMINATIVO NEL RISPETTO DELLA NORMATIVA SULLA PROTEZIONE DATI PERSONALI; ;CONTRIBUTO IMPEGNATIVA DI CURA DOMICILIARE ICD B 1 SEMESTRE 2020;16/09/2020;3957;50;691;1;Spese correnti;4;Trasferimenti correnti;2;Trasferimenti correnti a Famiglie;2;Interventi assistenziali;999;Altri assegni e sussidi assistenziali;21/09/2020
2682;1;9999999;600;600;OMESSO NOMINATIVO NEL RISPETTO DELLA NORMATIVA SULLA PROTEZIONE DATI PERSONALI; ;CONTRIBUTO IMPEGNATIVA DI CURA DOMICILIARE ICD B 1 SEMESTRE 2020;16/09/2020;3957;50;692;1;Spese correnti;4;Trasferimenti correnti;2;Trasferimenti correnti a Famiglie;2;Interventi assistenziali;999;Altri assegni e sussidi assistenziali;21/09/2020
2683;1;9999999;720;720;OMESSO NOMINATIVO NEL RISPETTO DELLA NORMATIVA SULLA PROTEZIONE DATI PERSONALI; ;CONTRIBUTO IMPEGNATIVA DI CURA DOMICILIARE ICD B 1 SEMESTRE 2020;16/09/2020;3957;50;693;1;Spese correnti;4;Trasferimenti correnti;2;Trasferimenti correnti a Famiglie;2;Interventi assistenziali;999;Altri assegni e sussidi assistenziali;21/09/2020
2684;1;9999999;720;720;OMESSO NOMINATIVO NEL RISPETTO DELLA NORMATIVA SULLA PROTEZIONE DATI PERSONALI; ;CONTRIBUTO IMPEGNATIVA DI CURA DOMICILIARE ICD B 1 SEMESTRE 2020;16/09/2020;3957;50;694;1;Spese correnti;4;Trasferimenti correnti;2;Trasferimenti correnti a Famiglie;2;Interventi assistenziali;999;Altri assegni e sussidi assistenziali;21/09/2020
2685;1;9999999;720;720;OMESSO NOMINATIVO NEL RISPETTO DELLA NORMATIVA SULLA PROTEZIONE DATI PERSONALI; ;CONTRIBUTO IMPEGNATIVA DI CURA DOMICILIARE ICD B 1 SEMESTRE 2020;16/09/2020;3957;50;695;1;Spese correnti;4;Trasferimenti correnti;2;Trasferimenti correnti a Famiglie;2;Interventi assistenziali;999;Altri assegni e sussidi assistenziali;21/09/2020
2686;1;9999999;720;720;OMESSO NOMINATIVO NEL RISPETTO DELLA NORMATIVA SULLA PROTEZIONE DATI PERSONALI; ;CONTRIBUTO IMPEGNATIVA DI CURA DOMICILIARE ICD B 1 SEMESTRE 2020;16/09/2020;3957;50;696;1;Spese correnti;4;Trasferimenti correnti;2;Trasferimenti correnti a Famiglie;2;Interventi assistenziali;999;Altri assegni e sussidi assistenziali;21/09/2020
2687;1;9999999;720;720;OMESSO NOMINATIVO NEL RISPETTO DELLA NORMATIVA SULLA PROTEZIONE DATI PERSONALI; ;CONTRIBUTO IMPEGNATIVA DI CURA DOMICILIARE ICD B 1 SEMESTRE 2020;16/09/2020;3957;50;697;1;Spese correnti;4;Trasferimenti correnti;2;Trasferimenti correnti a Famiglie;2;Interventi assistenziali;999;Altri assegni e sussidi assistenziali;21/09/2020
2688;1;9999999;720;720;OMESSO NOMINATIVO NEL RISPETTO DELLA NORMATIVA SULLA PROTEZIONE DATI PERSONALI; ;CONTRIBUTO IMPEGNATIVA DI CURA DOMICILIARE ICD B 1 SEMESTRE 2020;16/09/2020;3957;50;698;1;Spese correnti;4;Trasferimenti correnti;2;Trasferimenti correnti a Famiglie;2;Interventi assistenziali;999;Altri assegni e sussidi assistenziali;21/09/2020
2689;1;9999999;720;720;OMESSO NOMINATIVO NEL RISPETTO DELLA NORMATIVA SULLA PROTEZIONE DATI PERSONALI; ;CONTRIBUTO IMPEGNATIVA DI CURA DOMICILIARE ICD B 1 SEMESTRE 2020;16/09/2020;3957;50;699;1;Spese correnti;4;Trasferimenti correnti;2;Trasferimenti correnti a Famiglie;2;Interventi assistenziali;999;Altri assegni e sussidi assistenziali;21/09/2020
2690;1;9999999;720;720;OMESSO NOMINATIVO NEL RISPETTO DELLA NORMATIVA SULLA PROTEZIONE DATI PERSONALI; ;CONTRIBUTO IMPEGNATIVA DI CURA DOMICILIARE ICD B 1 SEMESTRE 2020;16/09/2020;3957;50;700;1;Spese correnti;4;Trasferimenti correnti;2;Trasferimenti correnti a Famiglie;2;Interventi assistenziali;999;Altri assegni e sussidi assistenziali;21/09/2020
2691;1;9999999;720;720;OMESSO NOMINATIVO NEL RISPETTO DELLA NORMATIVA SULLA PROTEZIONE DATI PERSONALI; ;CONTRIBUTO IMPEGNATIVA DI CURA DOMICILIARE ICD B 1 SEMESTRE 2020;16/09/2020;3957;50;701;1;Spese correnti;4;Trasferimenti correnti;2;Trasferimenti correnti a Famiglie;2;Interventi assistenziali;999;Altri assegni e sussidi assistenziali;21/09/2020
2692;1;9999999;720;720;OMESSO NOMINATIVO NEL RISPETTO DELLA NORMATIVA SULLA PROTEZIONE DATI PERSONALI; ;CONTRIBUTO IMPEGNATIVA DI CURA DOMICILIARE ICD B 1 SEMESTRE 2020;16/09/2020;3957;50;702;1;Spese correnti;4;Trasferimenti correnti;2;Trasferimenti correnti a Famiglie;2;Interventi assistenziali;999;Altri assegni e sussidi assistenziali;21/09/2020
2693;1;9999999;720;720;OMESSO NOMINATIVO NEL RISPETTO DELLA NORMATIVA SULLA PROTEZIONE DATI PERSONALI; ;CONTRIBUTO IMPEGNATIVA DI CURA DOMICILIARE ICD B 1 SEMESTRE 2020;16/09/2020;3957;50;704;1;Spese correnti;4;Trasferimenti correnti;2;Trasferimenti correnti a Famiglie;2;Interventi assistenziali;999;Altri assegni e sussidi assistenziali;21/09/2020
2694;1;9999999;480;480;OMESSO NOMINATIVO NEL RISPETTO DELLA NORMATIVA SULLA PROTEZIONE DATI PERSONALI; ;CONTRIBUTO IMPEGNATIVA DI CURA DOMICILIARE ICD B 1 SEMESTRE 2020;16/09/2020;3957;50;705;1;Spese correnti;4;Trasferimenti correnti;2;Trasferimenti correnti a Famiglie;2;Interventi assistenziali;999;Altri assegni e sussidi assistenziali;21/09/2020
2695;1;9999999;240;240;OMESSO NOMINATIVO NEL RISPETTO DELLA NORMATIVA SULLA PROTEZIONE DATI PERSONALI; ;CONTRIBUTO IMPEGNATIVA DI CURA DOMICILIARE ICD B 1 SEMESTRE 2020;16/09/2020;3957;50;706;1;Spese correnti;4;Trasferimenti correnti;2;Trasferimenti correnti a Famiglie;2;Interventi assistenziali;999;Altri assegni e sussidi assistenziali;21/09/2020
2696;1;9999999;720;720;OMESSO NOMINATIVO NEL RISPETTO DELLA NORMATIVA SULLA PROTEZIONE DATI PERSONALI; ;CONTRIBUTO IMPEGNATIVA DI CURA DOMICILIARE ICD B 1 SEMESTRE 2020;16/09/2020;3957;50;707;1;Spese correnti;4;Trasferimenti correnti;2;Trasferimenti correnti a Famiglie;2;Interventi assistenziali;999;Altri assegni e sussidi assistenziali;21/09/2020
2697;1;9999999;720;720;OMESSO NOMINATIVO NEL RISPETTO DELLA NORMATIVA SULLA PROTEZIONE DATI PERSONALI; ;CONTRIBUTO IMPEGNATIVA DI CURA DOMICILIARE ICD B 1 SEMESTRE 2020;16/09/2020;3957;50;709;1;Spese correnti;4;Trasferimenti correnti;2;Trasferimenti correnti a Famiglie;2;Interventi assistenziali;999;Altri assegni e sussidi assistenziali;21/09/2020
2698;1;9999999;720;720;OMESSO NOMINATIVO NEL RISPETTO DELLA NORMATIVA SULLA PROTEZIONE DATI PERSONALI; ;CONTRIBUTO IMPEGNATIVA DI CURA DOMICILIARE ICD B 1 SEMESTRE 2020;16/09/2020;3957;50;710;1;Spese correnti;4;Trasferimenti correnti;2;Trasferimenti correnti a Famiglie;2;Interventi assistenziali;999;Altri assegni e sussidi assistenziali;21/09/2020
2699;1;9999999;720;720;OMESSO NOMINATIVO NEL RISPETTO DELLA NORMATIVA SULLA PROTEZIONE DATI PERSONALI; ;CONTRIBUTO IMPEGNATIVA DI CURA DOMICILIARE ICD B 1 SEMESTRE 2020;16/09/2020;3957;50;711;1;Spese correnti;4;Trasferimenti correnti;2;Trasferimenti correnti a Famiglie;2;Interventi assistenziali;999;Altri assegni e sussidi assistenziali;21/09/2020
2700;1;9999999;720;720;OMESSO NOMINATIVO NEL RISPETTO DELLA NORMATIVA SULLA PROTEZIONE DATI PERSONALI; ;CONTRIBUTO IMPEGNATIVA DI CURA DOMICILIARE ICD B 1 SEMESTRE 2020;16/09/2020;3957;50;712;1;Spese correnti;4;Trasferimenti correnti;2;Trasferimenti correnti a Famiglie;2;Interventi assistenziali;999;Altri assegni e sussidi assistenziali;21/09/2020
2701;1;9999999;600;600;OMESSO NOMINATIVO NEL RISPETTO DELLA NORMATIVA SULLA PROTEZIONE DATI PERSONALI; ;CONTRIBUTO IMPEGNATIVA DI CURA DOMICILIARE ICD B 1 SEMESTRE 2020;16/09/2020;3957;50;713;1;Spese correnti;4;Trasferimenti correnti;2;Trasferimenti correnti a Famiglie;2;Interventi assistenziali;999;Altri assegni e sussidi assistenziali;21/09/2020
2702;1;9999999;720;720;OMESSO NOMINATIVO NEL RISPETTO DELLA NORMATIVA SULLA PROTEZIONE DATI PERSONALI; ;CONTRIBUTO IMPEGNATIVA DI CURA DOMICILIARE ICD B  ARRETRATO II SEMESTRE 19;16/09/2020;3957;50;246;1;Spese correnti;4;Trasferimenti correnti;2;Trasferimenti correnti a Famiglie;2;Interventi assistenziali;999;Altri assegni e sussidi assistenziali;21/09/2020
2703;1;9999999;720;720;OMESSO NOMINATIVO NEL RISPETTO DELLA NORMATIVA SULLA PROTEZIONE DATI PERSONALI; ;CONTRIBUTO IMPEGNATIVA DI CURA DOMICILIARE ICD B 1 SEMESTRE 2020;16/09/2020;3957;50;714;1;Spese correnti;4;Trasferimenti correnti;2;Trasferimenti correnti a Famiglie;2;Interventi assistenziali;999;Altri assegni e sussidi assistenziali;21/09/2020
2704;1;9999999;720;720;OMESSO NOMINATIVO NEL RISPETTO DELLA NORMATIVA SULLA PROTEZIONE DATI PERSONALI; ;CONTRIBUTO IMPEGNATIVA DI CURA DOMICILIARE ICD B 1 SEMESTRE 2020;16/09/2020;3957;50;715;1;Spese correnti;4;Trasferimenti correnti;2;Trasferimenti correnti a Famiglie;2;Interventi assistenziali;999;Altri assegni e sussidi assistenziali;21/09/2020
2705;1;9999999;720;720;OMESSO NOMINATIVO NEL RISPETTO DELLA NORMATIVA SULLA PROTEZIONE DATI PERSONALI; ;CONTRIBUTO IMPEGNATIVA DI CURA DOMICILIARE ICD B 1 SEMESTRE 2020;16/09/2020;3957;50;716;1;Spese correnti;4;Trasferimenti correnti;2;Trasferimenti correnti a Famiglie;2;Interventi assistenziali;999;Altri assegni e sussidi assistenziali;21/09/2020
2706;1;9999999;720;720;OMESSO NOMINATIVO NEL RISPETTO DELLA NORMATIVA SULLA PROTEZIONE DATI PERSONALI; ;CONTRIBUTO IMPEGNATIVA DI CURA DOMICILIARE ICD B 1 SEMESTRE 2020;16/09/2020;3957;50;717;1;Spese correnti;4;Trasferimenti correnti;2;Trasferimenti correnti a Famiglie;2;Interventi assistenziali;999;Altri assegni e sussidi assistenziali;21/09/2020
2707;1;9999999;720;720;OMESSO NOMINATIVO NEL RISPETTO DELLA NORMATIVA SULLA PROTEZIONE DATI PERSONALI; ;CONTRIBUTO IMPEGNATIVA DI CURA DOMICILIARE ICD B 1 SEMESTRE 2020;16/09/2020;3957;50;718;1;Spese correnti;4;Trasferimenti correnti;2;Trasferimenti correnti a Famiglie;2;Interventi assistenziali;999;Altri assegni e sussidi assistenziali;21/09/2020
2708;1;9999999;720;720;OMESSO NOMINATIVO NEL RISPETTO DELLA NORMATIVA SULLA PROTEZIONE DATI PERSONALI; ;CONTRIBUTO IMPEGNATIVA DI CURA DOMICILIARE ICD B 1 SEMESTRE 2020;16/09/2020;3957;50;719;1;Spese correnti;4;Trasferimenti correnti;2;Trasferimenti correnti a Famiglie;2;Interventi assistenziali;999;Altri assegni e sussidi assistenziali;21/09/2020
2709;1;9999999;720;720;OMESSO NOMINATIVO NEL RISPETTO DELLA NORMATIVA SULLA PROTEZIONE DATI PERSONALI; ;CONTRIBUTO IMPEGNATIVA DI CURA DOMICILIARE ICD B 1 SEMESTRE 2020;16/09/2020;3957;50;720;1;Spese correnti;4;Trasferimenti correnti;2;Trasferimenti correnti a Famiglie;2;Interventi assistenziali;999;Altri assegni e sussidi assistenziali;21/09/2020
2710;1;9999999;720;720;OMESSO NOMINATIVO NEL RISPETTO DELLA NORMATIVA SULLA PROTEZIONE DATI PERSONALI; ;CONTRIBUTO IMPEGNATIVA DI CURA DOMICILIARE ICD B 1 SEMESTRE 2020;16/09/2020;3957;50;721;1;Spese correnti;4;Trasferimenti correnti;2;Trasferimenti correnti a Famiglie;2;Interventi assistenziali;999;Altri assegni e sussidi assistenziali;21/09/2020
2711;1;9999999;720;720;OMESSO NOMINATIVO NEL RISPETTO DELLA NORMATIVA SULLA PROTEZIONE DATI PERSONALI; ;CONTRIBUTO IMPEGNATIVA DI CURA DOMICILIARE ICD B 1 SEMESTRE 2020;16/09/2020;3957;50;722;1;Spese correnti;4;Trasferimenti correnti;2;Trasferimenti correnti a Famiglie;2;Interventi assistenziali;999;Altri assegni e sussidi assistenziali;21/09/2020
2712;1;9999999;720;720;OMESSO NOMINATIVO NEL RISPETTO DELLA NORMATIVA SULLA PROTEZIONE DATI PERSONALI; ;CONTRIBUTO IMPEGNATIVA DI CURA DOMICILIARE ICD B 1 SEMESTRE 2020;16/09/2020;3957;50;723;1;Spese correnti;4;Trasferimenti correnti;2;Trasferimenti correnti a Famiglie;2;Interventi assistenziali;999;Altri assegni e sussidi assistenziali;21/09/2020
2713;1;9999999;720;720;OMESSO NOMINATIVO NEL RISPETTO DELLA NORMATIVA SULLA PROTEZIONE DATI PERSONALI; ;CONTRIBUTO IMPEGNATIVA DI CURA DOMICILIARE ICD B 1 SEMESTRE 2020;16/09/2020;3957;50;724;1;Spese correnti;4;Trasferimenti correnti;2;Trasferimenti correnti a Famiglie;2;Interventi assistenziali;999;Altri assegni e sussidi assistenziali;21/09/2020
2714;1;9999999;720;720;OMESSO NOMINATIVO NEL RISPETTO DELLA NORMATIVA SULLA PROTEZIONE DATI PERSONALI; ;CONTRIBUTO IMPEGNATIVA DI CURA DOMICILIARE ICD B 1 SEMESTRE 2020;16/09/2020;3957;50;725;1;Spese correnti;4;Trasferimenti correnti;2;Trasferimenti correnti a Famiglie;2;Interventi assistenziali;999;Altri assegni e sussidi assistenziali;21/09/2020
2715;1;9999999;720;720;OMESSO NOMINATIVO NEL RISPETTO DELLA NORMATIVA SULLA PROTEZIONE DATI PERSONALI; ;CONTRIBUTO IMPEGNATIVA DI CURA DOMICILIARE ICD B 1 SEMESTRE 2020;16/09/2020;3957;50;726;1;Spese correnti;4;Trasferimenti correnti;2;Trasferimenti correnti a Famiglie;2;Interventi assistenziali;999;Altri assegni e sussidi assistenziali;21/09/2020
2716;1;9999999;720;720;OMESSO NOMINATIVO NEL RISPETTO DELLA NORMATIVA SULLA PROTEZIONE DATI PERSONALI; ;CONTRIBUTO IMPEGNATIVA DI CURA DOMICILIARE ICD B 1 SEMESTRE 2020 per michieletto giovannina;16/09/2020;3957;50;727;1;Spese correnti;4;Trasferimenti correnti;2;Trasferimenti correnti a Famiglie;2;Interventi assistenziali;999;Altri assegni e sussidi assistenziali;21/09/2020
2717;1;9999999;720;720;OMESSO NOMINATIVO NEL RISPETTO DELLA NORMATIVA SULLA PROTEZIONE DATI PERSONALI; ;CONTRIBUTO IMPEGNATIVA DI CURA DOMICILIARE ICD B 1 SEMESTRE 2020;16/09/2020;3957;50;728;1;Spese correnti;4;Trasferimenti correnti;2;Trasferimenti correnti a Famiglie;2;Interventi assistenziali;999;Altri assegni e sussidi assistenziali;21/09/2020
2718;1;9999999;720;720;OMESSO NOMINATIVO NEL RISPETTO DELLA NORMATIVA SULLA PROTEZIONE DATI PERSONALI; ;CONTRIBUTO IMPEGNATIVA DI CURA DOMICILIARE ICD B 1 SEMESTRE 2020;16/09/2020;3957;50;729;1;Spese correnti;4;Trasferimenti correnti;2;Trasferimenti correnti a Famiglie;2;Interventi assistenziali;999;Altri assegni e sussidi assistenziali;21/09/2020
2719;1;9999999;720;720;OMESSO NOMINATIVO NEL RISPETTO DELLA NORMATIVA SULLA PROTEZIONE DATI PERSONALI; ;CONTRIBUTO IMPEGNATIVA DI CURA DOMICILIARE ICD B 1 SEMESTRE 2020;16/09/2020;3957;50;730;1;Spese correnti;4;Trasferimenti correnti;2;Trasferimenti correnti a Famiglie;2;Interventi assistenziali;999;Altri assegni e sussidi assistenziali;21/09/2020
2720;1;9999999;120;120;OMESSO NOMINATIVO NEL RISPETTO DELLA NORMATIVA SULLA PROTEZIONE DATI PERSONALI; ;CONTRIBUTO IMPEGNATIVA DI CURA DOMICILIARE ICD B 1 SEMESTRE 2020;16/09/2020;3957;50;731;1;Spese correnti;4;Trasferimenti correnti;2;Trasferimenti correnti a Famiglie;2;Interventi assistenziali;999;Altri assegni e sussidi assistenziali;21/09/2020
2721;1;9999999;480;480;OMESSO NOMINATIVO NEL RISPETTO DELLA NORMATIVA SULLA PROTEZIONE DATI PERSONALI; ;CONTRIBUTO IMPEGNATIVA DI CURA DOMICILIARE ICD B 1 SEMESTRE 2020;16/09/2020;3957;50;732;1;Spese correnti;4;Trasferimenti correnti;2;Trasferimenti correnti a Famiglie;2;Interventi assistenziali;999;Altri assegni e sussidi assistenziali;16/10/2020
2722;1;9999999;720;720;OMESSO NOMINATIVO NEL RISPETTO DELLA NORMATIVA SULLA PROTEZIONE DATI PERSONALI; ;CONTRIBUTO IMPEGNATIVA DI CURA DOMICILIARE ICD B 1 SEMESTRE 2020;16/09/2020;3957;50;733;1;Spese correnti;4;Trasferimenti correnti;2;Trasferimenti correnti a Famiglie;2;Interventi assistenziali;999;Altri assegni e sussidi assistenziali;21/09/2020
2723;1;9999999;720;720;OMESSO NOMINATIVO NEL RISPETTO DELLA NORMATIVA SULLA PROTEZIONE DATI PERSONALI; ;CONTRIBUTO IMPEGNATIVA DI CURA DOMICILIARE ICD B 1 SEMESTRE 2020;16/09/2020;3957;50;734;1;Spese correnti;4;Trasferimenti correnti;2;Trasferimenti correnti a Famiglie;2;Interventi assistenziali;999;Altri assegni e sussidi assistenziali;14/10/2020
2724;1;9999999;720;720;OMESSO NOMINATIVO NEL RISPETTO DELLA NORMATIVA SULLA PROTEZIONE DATI PERSONALI; ;CONTRIBUTO IMPEGNATIVA DI CURA DOMICILIARE ICD B 1 SEMESTRE 2020;16/09/2020;3957;50;735;1;Spese correnti;4;Trasferimenti correnti;2;Trasferimenti correnti a Famiglie;2;Interventi assistenziali;999;Altri assegni e sussidi assistenziali;21/09/2020
2725;1;9999999;720;720;OMESSO NOMINATIVO NEL RISPETTO DELLA NORMATIVA SULLA PROTEZIONE DATI PERSONALI; ;CONTRIBUTO IMPEGNATIVA DI CURA DOMICILIARE ICD B 1 SEMESTRE 2020;16/09/2020;3957;50;736;1;Spese correnti;4;Trasferimenti correnti;2;Trasferimenti correnti a Famiglie;2;Interventi assistenziali;999;Altri assegni e sussidi assistenziali;21/09/2020
2726;1;9999999;720;720;OMESSO NOMINATIVO NEL RISPETTO DELLA NORMATIVA SULLA PROTEZIONE DATI PERSONALI; ;CONTRIBUTO IMPEGNATIVA DI CURA DOMICILIARE ICD B 1 SEMESTRE 2020;16/09/2020;3957;50;737;1;Spese correnti;4;Trasferimenti correnti;2;Trasferimenti correnti a Famiglie;2;Interventi assistenziali;999;Altri assegni e sussidi assistenziali;21/09/2020
2727;1;9999999;720;720;OMESSO NOMINATIVO NEL RISPETTO DELLA NORMATIVA SULLA PROTEZIONE DATI PERSONALI; ;CONTRIBUTO IMPEGNATIVA DI CURA DOMICILIARE ICD B 1 SEMESTRE 2020;16/09/2020;3957;50;738;1;Spese correnti;4;Trasferimenti correnti;2;Trasferimenti correnti a Famiglie;2;Interventi assistenziali;999;Altri assegni e sussidi assistenziali;21/09/2020
2728;1;9999999;720;720;OMESSO NOMINATIVO NEL RISPETTO DELLA NORMATIVA SULLA PROTEZIONE DATI PERSONALI; ;CONTRIBUTO IMPEGNATIVA DI CURA DOMICILIARE ICD B 1 SEMESTRE 2020;16/09/2020;3957;50;739;1;Spese correnti;4;Trasferimenti correnti;2;Trasferimenti correnti a Famiglie;2;Interventi assistenziali;999;Altri assegni e sussidi assistenziali;12/10/2020
2729;1;9999999;720;720;OMESSO NOMINATIVO NEL RISPETTO DELLA NORMATIVA SULLA PROTEZIONE DATI PERSONALI; ;CONTRIBUTO IMPEGNATIVA DI CURA DOMICILIARE ICD B 1 SEMESTRE 2020;16/09/2020;3957;50;740;1;Spese correnti;4;Trasferimenti correnti;2;Trasferimenti correnti a Famiglie;2;Interventi assistenziali;999;Altri assegni e sussidi assistenziali;21/09/2020
2730;1;9999999;720;720;OMESSO NOMINATIVO NEL RISPETTO DELLA NORMATIVA SULLA PROTEZIONE DATI PERSONALI; ;CONTRIBUTO IMPEGNATIVA DI CURA DOMICILIARE ICD B 1 SEMESTRE 2020;16/09/2020;3957;50;741;1;Spese correnti;4;Trasferimenti correnti;2;Trasferimenti correnti a Famiglie;2;Interventi assistenziali;999;Altri assegni e sussidi assistenziali;21/09/2020
2731;1;9999999;720;720;OMESSO NOMINATIVO NEL RISPETTO DELLA NORMATIVA SULLA PROTEZIONE DATI PERSONALI; ;CONTRIBUTO IMPEGNATIVA DI CURA DOMICILIARE ICD B 1 SEMESTRE 2020;16/09/2020;3957;50;742;1;Spese correnti;4;Trasferimenti correnti;2;Trasferimenti correnti a Famiglie;2;Interventi assistenziali;999;Altri assegni e sussidi assistenziali;21/09/2020
2732;1;9999999;720;720;OMESSO NOMINATIVO NEL RISPETTO DELLA NORMATIVA SULLA PROTEZIONE DATI PERSONALI; ;CONTRIBUTO IMPEGNATIVA DI CURA DOMICILIARE ICD B 1 SEMESTRE 2020;16/09/2020;3957;50;743;1;Spese correnti;4;Trasferimenti correnti;2;Trasferimenti correnti a Famiglie;2;Interventi assistenziali;999;Altri assegni e sussidi assistenziali;21/09/2020
2733;1;9999999;720;720;OMESSO NOMINATIVO NEL RISPETTO DELLA NORMATIVA SULLA PROTEZIONE DATI PERSONALI; ;CONTRIBUTO IMPEGNATIVA DI CURA DOMICILIARE ICD B 1 SEMESTRE 2020;16/09/2020;3957;50;744;1;Spese correnti;4;Trasferimenti correnti;2;Trasferimenti correnti a Famiglie;2;Interventi assistenziali;999;Altri assegni e sussidi assistenziali;21/09/2020
2734;1;9999999;720;720;OMESSO NOMINATIVO NEL RISPETTO DELLA NORMATIVA SULLA PROTEZIONE DATI PERSONALI; ;CONTRIBUTO IMPEGNATIVA DI CURA DOMICILIARE ICD B 1 SEMESTRE 2020;16/09/2020;3957;50;745;1;Spese correnti;4;Trasferimenti correnti;2;Trasferimenti correnti a Famiglie;2;Interventi assistenziali;999;Altri assegni e sussidi assistenziali;21/09/2020
2735;1;9999999;720;720;OMESSO NOMINATIVO NEL RISPETTO DELLA NORMATIVA SULLA PROTEZIONE DATI PERSONALI; ;CONTRIBUTO IMPEGNATIVA DI CURA DOMICILIARE ICD B 1 SEMESTRE 2020;16/09/2020;3957;50;746;1;Spese correnti;4;Trasferimenti correnti;2;Trasferimenti correnti a Famiglie;2;Interventi assistenziali;999;Altri assegni e sussidi assistenziali;21/09/2020
2736;1;9999999;720;720;OMESSO NOMINATIVO NEL RISPETTO DELLA NORMATIVA SULLA PROTEZIONE DATI PERSONALI; ;CONTRIBUTO IMPEGNATIVA DI CURA DOMICILIARE ICD B 1 SEMESTRE 2020;16/09/2020;3957;50;747;1;Spese correnti;4;Trasferimenti correnti;2;Trasferimenti correnti a Famiglie;2;Interventi assistenziali;999;Altri assegni e sussidi assistenziali;21/09/2020
2737;1;9999999;720;720;OMESSO NOMINATIVO NEL RISPETTO DELLA NORMATIVA SULLA PROTEZIONE DATI PERSONALI; ;CONTRIBUTO IMPEGNATIVA DI CURA DOMICILIARE ICD B 1 SEMESTRE 2020;16/09/2020;3957;50;748;1;Spese correnti;4;Trasferimenti correnti;2;Trasferimenti correnti a Famiglie;2;Interventi assistenziali;999;Altri assegni e sussidi assistenziali;21/09/2020
2738;1;9999999;480;480;OMESSO NOMINATIVO NEL RISPETTO DELLA NORMATIVA SULLA PROTEZIONE DATI PERSONALI; ;CONTRIBUTO IMPEGNATIVA DI CURA DOMICILIARE ICD B 1 SEMESTRE 2020;16/09/2020;3957;50;749;1;Spese correnti;4;Trasferimenti correnti;2;Trasferimenti correnti a Famiglie;2;Interventi assistenziali;999;Altri assegni e sussidi assistenziali;21/09/2020
2739;1;9999999;720;720;OMESSO NOMINATIVO NEL RISPETTO DELLA NORMATIVA SULLA PROTEZIONE DATI PERSONALI; ;CONTRIBUTO IMPEGNATIVA DI CURA DOMICILIARE ICD B 1 SEMESTRE 2020;16/09/2020;3957;50;750;1;Spese correnti;4;Trasferimenti correnti;2;Trasferimenti correnti a Famiglie;2;Interventi assistenziali;999;Altri assegni e sussidi assistenziali;21/09/2020
2740;1;9999999;720;720;OMESSO NOMINATIVO NEL RISPETTO DELLA NORMATIVA SULLA PROTEZIONE DATI PERSONALI; ;CONTRIBUTO IMPEGNATIVA DI CURA DOMICILIARE ICD B 1 SEMESTRE 2020;16/09/2020;3957;50;751;1;Spese correnti;4;Trasferimenti correnti;2;Trasferimenti correnti a Famiglie;2;Interventi assistenziali;999;Altri assegni e sussidi assistenziali;21/09/2020
2741;1;9999999;720;720;OMESSO NOMINATIVO NEL RISPETTO DELLA NORMATIVA SULLA PROTEZIONE DATI PERSONALI; ;CONTRIBUTO IMPEGNATIVA DI CURA DOMICILIARE ICD B 1 SEMESTRE 2020;16/09/2020;3957;50;752;1;Spese correnti;4;Trasferimenti correnti;2;Trasferimenti correnti a Famiglie;2;Interventi assistenziali;999;Altri assegni e sussidi assistenziali;21/09/2020
2742;1;9999999;360;360;OMESSO NOMINATIVO NEL RISPETTO DELLA NORMATIVA SULLA PROTEZIONE DATI PERSONALI; ;CONTRIBUTO IMPEGNATIVA DI CURA DOMICILIARE ICD B 1 SEMESTRE 2020;16/09/2020;3957;50;753;1;Spese correnti;4;Trasferimenti correnti;2;Trasferimenti correnti a Famiglie;2;Interventi assistenziali;999;Altri assegni e sussidi assistenziali;21/09/2020
2743;1;9999999;720;720;OMESSO NOMINATIVO NEL RISPETTO DELLA NORMATIVA SULLA PROTEZIONE DATI PERSONALI; ;CONTRIBUTO IMPEGNATIVA DI CURA DOMICILIARE ICD B 1 SEMESTRE 2020;16/09/2020;3957;50;754;1;Spese correnti;4;Trasferimenti correnti;2;Trasferimenti correnti a Famiglie;2;Interventi assistenziali;999;Altri assegni e sussidi assistenziali;21/09/2020
2744;1;9999999;720;720;OMESSO NOMINATIVO NEL RISPETTO DELLA NORMATIVA SULLA PROTEZIONE DATI PERSONALI; ;CONTRIBUTO IMPEGNATIVA DI CURA DOMICILIARE ICD B 1 SEMESTRE 2020;16/09/2020;3957;50;755;1;Spese correnti;4;Trasferimenti correnti;2;Trasferimenti correnti a Famiglie;2;Interventi assistenziali;999;Altri assegni e sussidi assistenziali;21/09/2020
2745;1;9999999;720;720;OMESSO NOMINATIVO NEL RISPETTO DELLA NORMATIVA SULLA PROTEZIONE DATI PERSONALI; ;CONTRIBUTO IMPEGNATIVA DI CURA DOMICILIARE ICD B 1 SEMESTRE 2020;16/09/2020;3957;50;756;1;Spese correnti;4;Trasferimenti correnti;2;Trasferimenti correnti a Famiglie;2;Interventi assistenziali;999;Altri assegni e sussidi assistenziali;21/09/2020
2746;1;9999999;720;720;OMESSO NOMINATIVO NEL RISPETTO DELLA NORMATIVA SULLA PROTEZIONE DATI PERSONALI; ;CONTRIBUTO IMPEGNATIVA DI CURA DOMICILIARE ICD B 1 SEMESTRE 2020;16/09/2020;3957;50;757;1;Spese correnti;4;Trasferimenti correnti;2;Trasferimenti correnti a Famiglie;2;Interventi assistenziali;999;Altri assegni e sussidi assistenziali;12/10/2020
2747;1;9999999;720;720;OMESSO NOMINATIVO NEL RISPETTO DELLA NORMATIVA SULLA PROTEZIONE DATI PERSONALI; ;CONTRIBUTO IMPEGNATIVA DI CURA DOMICILIARE ICD B 1 SEMESTRE 2020;16/09/2020;3957;50;758;1;Spese correnti;4;Trasferimenti correnti;2;Trasferimenti correnti a Famiglie;2;Interventi assistenziali;999;Altri assegni e sussidi assistenziali;21/09/2020
2748;1;9999999;720;720;OMESSO NOMINATIVO NEL RISPETTO DELLA NORMATIVA SULLA PROTEZIONE DATI PERSONALI; ;CONTRIBUTO IMPEGNATIVA DI CURA DOMICILIARE ICD B 1 SEMESTRE 2020;16/09/2020;3957;50;759;1;Spese correnti;4;Trasferimenti correnti;2;Trasferimenti correnti a Famiglie;2;Interventi assistenziali;999;Altri assegni e sussidi assistenziali;21/09/2020
2749;1;9999999;720;720;OMESSO NOMINATIVO NEL RISPETTO DELLA NORMATIVA SULLA PROTEZIONE DATI PERSONALI; ;CONTRIBUTO IMPEGNATIVA DI CURA DOMICILIARE ICD B 1 SEMESTRE 2020;16/09/2020;3957;50;760;1;Spese correnti;4;Trasferimenti correnti;2;Trasferimenti correnti a Famiglie;2;Interventi assistenziali;999;Altri assegni e sussidi assistenziali;21/09/2020
2750;1;9999999;720;720;OMESSO NOMINATIVO NEL RISPETTO DELLA NORMATIVA SULLA PROTEZIONE DATI PERSONALI; ;CONTRIBUTO IMPEGNATIVA DI CURA DOMICILIARE ICD B 1 SEMESTRE 2020;16/09/2020;3957;50;703;1;Spese correnti;4;Trasferimenti correnti;2;Trasferimenti correnti a Famiglie;2;Interventi assistenziali;999;Altri assegni e sussidi assistenziali;07/10/2020
2751;1;9999999;720;720;OMESSO NOMINATIVO NEL RISPETTO DELLA NORMATIVA SULLA PROTEZIONE DATI PERSONALI; ;CONTRIBUTO IMPEGNATIVA DI CURA DOMICILIARE ICD B 1 SEMESTRE 2020 PER CORRADIN ADDA;16/09/2020;3957;50;708;1;Spese correnti;4;Trasferimenti correnti;2;Trasferimenti correnti a Famiglie;2;Interventi assistenziali;999;Altri assegni e sussidi assistenziali;21/09/2020
2752;1;9999999;1.200,00;1.200,00;OMESSO NOMINATIVO NEL RISPETTO DELLA NORMATIVA SULLA PROTEZIONE DATI PERSONALI; ;"CONTRIBUTO ICD ""M"" 2 TRIMESTRE 2020.";17/09/2020;3957;50;761;1;Spese correnti;4;Trasferimenti correnti;2;Trasferimenti correnti a Famiglie;2;Interventi assistenziali;999;Altri assegni e sussidi assistenziali;21/09/2020
2753;1;9999999;1.200,00;1.200,00;OMESSO NOMINATIVO NEL RISPETTO DELLA NORMATIVA SULLA PROTEZIONE DATI PERSONALI; ;"CONTRIBUTO ICD ""M"" 2 TRIMESTRE 2020.";17/09/2020;3957;50;762;1;Spese correnti;4;Trasferimenti correnti;2;Trasferimenti correnti a Famiglie;2;Interventi assistenziali;999;Altri assegni e sussidi assistenziali;21/09/2020
2754;1;9999999;1.200,00;1.200,00;OMESSO NOMINATIVO NEL RISPETTO DELLA NORMATIVA SULLA PROTEZIONE DATI PERSONALI; ;"CONTRIBUTO ICD ""M"" 2 TRIMESTRE 2020.";17/09/2020;3957;50;763;1;Spese correnti;4;Trasferimenti correnti;2;Trasferimenti correnti a Famiglie;2;Interventi assistenziali;999;Altri assegni e sussidi assistenziali;21/09/2020
2755;1;9999999;1.200,00;1.200,00;OMESSO NOMINATIVO NEL RISPETTO DELLA NORMATIVA SULLA PROTEZIONE DATI PERSONALI; ;"CONTRIBUTO ICD ""M"" 2 TRIMESTRE 2020.";17/09/2020;3957;50;764;1;Spese correnti;4;Trasferimenti correnti;2;Trasferimenti correnti a Famiglie;2;Interventi assistenziali;999;Altri assegni e sussidi assistenziali;21/09/2020
2756;1;9999999;1.200,00;1.200,00;OMESSO NOMINATIVO NEL RISPETTO DELLA NORMATIVA SULLA PROTEZIONE DATI PERSONALI; ;"CONTRIBUTO ICD ""M"" 2 TRIMESTRE 2020.";17/09/2020;3957;50;765;1;Spese correnti;4;Trasferimenti correnti;2;Trasferimenti correnti a Famiglie;2;Interventi assistenziali;999;Altri assegni e sussidi assistenziali;21/09/2020
2757;1;9999999;1.200,00;1.200,00;OMESSO NOMINATIVO NEL RISPETTO DELLA NORMATIVA SULLA PROTEZIONE DATI PERSONALI; ;"CONTRIBUTO ICD ""M"" 2 TRIMESTRE 2020.";17/09/2020;3957;50;766;1;Spese correnti;4;Trasferimenti correnti;2;Trasferimenti correnti a Famiglie;2;Interventi assistenziali;999;Altri assegni e sussidi assistenziali;21/09/2020
2758;1;9999999;1.200,00;1.200,00;OMESSO NOMINATIVO NEL RISPETTO DELLA NORMATIVA SULLA PROTEZIONE DATI PERSONALI; ;"CONTRIBUTO ICD ""M"" 2 TRIMESTRE 2020.";17/09/2020;3957;50;767;1;Spese correnti;4;Trasferimenti correnti;2;Trasferimenti correnti a Famiglie;2;Interventi assistenziali;999;Altri assegni e sussidi assistenziali;21/09/2020
2759;1;9999999;1.200,00;1.200,00;OMESSO NOMINATIVO NEL RISPETTO DELLA NORMATIVA SULLA PROTEZIONE DATI PERSONALI; ;"CONTRIBUTO ICD ""M"" 2 TRIMESTRE 2020.";17/09/2020;3957;50;768;1;Spese correnti;4;Trasferimenti correnti;2;Trasferimenti correnti a Famiglie;2;Interventi assistenziali;999;Altri assegni e sussidi assistenziali;21/09/2020
2760;1;9999999;1.200,00;1.200,00;OMESSO NOMINATIVO NEL RISPETTO DELLA NORMATIVA SULLA PROTEZIONE DATI PERSONALI; ;"CONTRIBUTO ICD ""M"" 2 TRIMESTRE 2020.";17/09/2020;3957;50;769;1;Spese correnti;4;Trasferimenti correnti;2;Trasferimenti correnti a Famiglie;2;Interventi assistenziali;999;Altri assegni e sussidi assistenziali;21/09/2020
2761;1;9999999;1.200,00;1.200,00;OMESSO NOMINATIVO NEL RISPETTO DELLA NORMATIVA SULLA PROTEZIONE DATI PERSONALI; ;"CONTRIBUTO ICD ""M"" 2 TRIMESTRE 2020.";17/09/2020;3957;50;770;1;Spese correnti;4;Trasferimenti correnti;2;Trasferimenti correnti a Famiglie;2;Interventi assistenziali;999;Altri assegni e sussidi assistenziali;21/09/2020
2762;1;9999999;1.200,00;1.200,00;OMESSO NOMINATIVO NEL RISPETTO DELLA NORMATIVA SULLA PROTEZIONE DATI PERSONALI; ;"CONTRIBUTO ICD ""M"" 2 TRIMESTRE 2020.";17/09/2020;3957;50;771;1;Spese correnti;4;Trasferimenti correnti;2;Trasferimenti correnti a Famiglie;2;Interventi assistenziali;999;Altri assegni e sussidi assistenziali;21/09/2020
2763;1;9999999;1.200,00;1.200,00;OMESSO NOMINATIVO NEL RISPETTO DELLA NORMATIVA SULLA PROTEZIONE DATI PERSONALI; ;"CONTRIBUTO ICD ""M"" 2 TRIMESTRE 2020.";17/09/2020;3957;50;772;1;Spese correnti;4;Trasferimenti correnti;2;Trasferimenti correnti a Famiglie;2;Interventi assistenziali;999;Altri assegni e sussidi assistenziali;21/09/2020
2764;1;9999999;1.200,00;1.200,00;OMESSO NOMINATIVO NEL RISPETTO DELLA NORMATIVA SULLA PROTEZIONE DATI PERSONALI; ;"CONTRIBUTO ICD ""M"" 2 TRIMESTRE 2020.";17/09/2020;3957;50;773;1;Spese correnti;4;Trasferimenti correnti;2;Trasferimenti correnti a Famiglie;2;Interventi assistenziali;999;Altri assegni e sussidi assistenziali;21/09/2020
2765;1;9999999;1.200,00;1.200,00;OMESSO NOMINATIVO NEL RISPETTO DELLA NORMATIVA SULLA PROTEZIONE DATI PERSONALI; ;"CONTRIBUTO ICD ""M"" 2 TRIMESTRE 2020.";17/09/2020;3957;50;774;1;Spese correnti;4;Trasferimenti correnti;2;Trasferimenti correnti a Famiglie;2;Interventi assistenziali;999;Altri assegni e sussidi assistenziali;21/09/2020
2766;1;9999999;1.200,00;1.200,00;OMESSO NOMINATIVO NEL RISPETTO DELLA NORMATIVA SULLA PROTEZIONE DATI PERSONALI; ;"CONTRIBUTO ICD ""M"" 2 TRIMESTRE 2020.";17/09/2020;3957;50;776;1;Spese correnti;4;Trasferimenti correnti;2;Trasferimenti correnti a Famiglie;2;Interventi assistenziali;999;Altri assegni e sussidi assistenziali;21/09/2020
2767;1;9999999;1.200,00;1.200,00;OMESSO NOMINATIVO NEL RISPETTO DELLA NORMATIVA SULLA PROTEZIONE DATI PERSONALI; ;"CONTRIBUTO ICD ""M"" 2 TRIMESTRE 2020.";17/09/2020;3957;50;777;1;Spese correnti;4;Trasferimenti correnti;2;Trasferimenti correnti a Famiglie;2;Interventi assistenziali;999;Altri assegni e sussidi assistenziali;21/09/2020
2768;1;9999999;1.200,00;1.200,00;OMESSO NOMINATIVO NEL RISPETTO DELLA NORMATIVA SULLA PROTEZIONE DATI PERSONALI; ;"CONTRIBUTO ICD ""M"" 2 TRIMESTRE 2020.";17/09/2020;3957;50;778;1;Spese correnti;4;Trasferimenti correnti;2;Trasferimenti correnti a Famiglie;2;Interventi assistenziali;999;Altri assegni e sussidi assistenziali;21/09/2020
2769;1;9999999;1.200,00;1.200,00;OMESSO NOMINATIVO NEL RISPETTO DELLA NORMATIVA SULLA PROTEZIONE DATI PERSONALI; ;"CONTRIBUTO ICD ""M"" 2 TRIMESTRE 2020.";17/09/2020;3957;50;779;1;Spese correnti;4;Trasferimenti correnti;2;Trasferimenti correnti a Famiglie;2;Interventi assistenziali;999;Altri assegni e sussidi assistenziali;21/09/2020
2773;1;9999999;14,58;14,58;COMUNE DI S.MARIA DI SALA; ;CONTRIBUTO IFEL RISCOSSIONE IMU RENDICONTAZIONE DEL 18/08/2020;17/09/2020;332;0;0;1;Spese correnti;3;Acquisto di beni e servizi;2;Acquisto di servizi;3;Aggi di riscossione;999;Altri aggi di riscossione n.a.c.;18/09/2020
2774;1;9999999;5,37;5,37;COMUNE DI S.MARIA DI SALA; ;CONTRIBUTO IFEL RISCOSSIONE IMU RENDICONTAZIONE DEL 15/09/2020;17/09/2020;332;0;0;1;Spese correnti;3;Acquisto di beni e servizi;2;Acquisto di servizi;3;Aggi di riscossione;999;Altri aggi di riscossione n.a.c.;18/09/2020
2775;1;9999999;4.499,99;4.499,99;BONETTO ENRICO;Z1E2DEA9C2;SALDO Fatt.n. 69/001  del 14/09/2020 INDAGINE E VERIFICHE SUI SOLAI E CONTROSOFFITTI EDIFICI SCOLASTICI DELLA SCUOLA SECONDARIA F. E P. CORDENONS;17/09/2020;540;0;633;1;Spese correnti;3;Acquisto di beni e servizi;2;Acquisto di servizi;11;Prestazioni professionali e specialistiche;999;Altre prestazioni professionali e specialistiche n.a.c.;21/09/2020
2776;1;9999999;439,2;439,2;VEDETTA 2 MONDIALPOL SPA;Z5A29219B1;SALDO Fatt.n. VZ-10883  del 16/07/2020 PERIODO APRILE  - GIUGNO 2020 - SERVIZIO DI VIGILANZA MAGAZZINO COMUNALE - PROTEZIONE CIVILE  VIA FERRARIS 1 - SMS;17/09/2020;548;0;780;1;Spese correnti;3;Acquisto di beni e servizi;2;Acquisto di servizi;9;Manutenzione ordinaria e riparazioni;8;Manutenzione ordinaria e riparazioni di beni immobili;21/09/2020
2777;1;9999999;91,99;91,99;SARV ANTINCENDI SRL;Z0A238DAD1;ACCONTO Fatt.n. PA0000009  del 24/08/2020 SALDO PRIMO SEMESTRE 2020 CONTROLLO  ESTINTORI PORTATILI;17/09/2020;1338;0;371;1;Spese correnti;3;Acquisto di beni e servizi;2;Acquisto di servizi;9;Manutenzione ordinaria e riparazioni;11;Manutenzione ordinaria e riparazioni di altri beni materiali;21/09/2020
2778;1;9999999;138.586,21;138.586,21;UNIASFALTI S.R.L.;8,32E+34;SALDO Fatt.n. 16/PA  del 24/08/2020 INTERVENTI DI AMMODERNAMENTO DELLE STRUTTURE VIARIE ESISTENTI A FAVORE DELLA MOBILITA E SICUREZZA STRADALE -CERTIFICATO DI PAGAMENTO N. 1;17/09/2020;8558;0;457;2;Spese in conto capitale;2;Investimenti fissi lordi e acquisto di terreni;1;Beni materiali;9;Beni immobili;12;Infrastrutture stradali;21/09/2020
2779;1;9999999;29,26;29,26;ENI SPA DIVISIONE REFINING & MARKETING;Z7A2B73F0F;ACCONTO Fatt.n. 29799436  del 31/07/2020 LUGLIO 2020 - FORNITURA METANO;17/09/2020;521;0;77;1;Spese correnti;3;Acquisto di beni e servizi;1;Acquisto di beni;2;Altri beni di consumo;2;Carburanti, combustibili e lubrificanti;18/09/2020
2780;1;9999999;6,44;6,44;ENI SPA DIVISIONE REFINING & MARKETING;Z7A2B73F0F;SALDO Fatt.n. 29799436  del 31/07/2020 LUGLIO 2020 - FORNITURA METANO;17/09/2020;521;0;77;1;Spese correnti;3;Acquisto di beni e servizi;1;Acquisto di beni;2;Altri beni di consumo;2;Carburanti, combustibili e lubrificanti;18/09/2020
2781;1;9999999;312,66;312,66;KYOCERA DOCUMENT SOLUTIONS ITALIA SPA;ZCC25B593E;SALDO Fatt.n. 1010630335  del 25/08/2020 FOTOCOPIATRICI 29 L3 - 36 MESI - CANONE PERIODO DAL 15.05.2020 al 14.08.2020;17/09/2020;1136;0;1243;1;Spese correnti;3;Acquisto di beni e servizi;2;Acquisto di servizi;7;Utilizzo di beni di terzi;8;Noleggi di impianti e macchinari;21/09/2020
2782;1;9999999;8.186,72;8.186,72;DIVERSI-AMMINISTRATORI COM.LI; ;STIPENDI MESE DI SETTEMBRE 20;17/09/2020;30;99;0;1;Spese correnti;3;Acquisto di beni e servizi;2;Acquisto di servizi;1;Organi e incarichi istituzionali dell'amministrazione;1;Organi istituzionali dell'amministrazione - Indennità;24/09/2020
2856;1;9999999;200;200;OMESSO NOMINATIVO NEL RISPETTO DELLA NORMATIVA SULLA PROTEZIONE DATI PERSONALI; ;AGOSTO 2020  PROGETTO RIA;18/09/2020;3957;54;681;1;Spese correnti;4;Trasferimenti correnti;2;Trasferimenti correnti a Famiglie;5;Altri trasferimenti a famiglie;999;Altri trasferimenti a famiglie n.a.c.;22/09/2020
2857;1;9999999;200;200;OMESSO NOMINATIVO NEL RISPETTO DELLA NORMATIVA SULLA PROTEZIONE DATI PERSONALI; ;AGOSTO 2020 PROGETTO RIA;18/09/2020;3957;54;682;1;Spese correnti;4;Trasferimenti correnti;2;Trasferimenti correnti a Famiglie;5;Altri trasferimenti a famiglie;999;Altri trasferimenti a famiglie n.a.c.;22/09/2020
2858;1;9999999;200;200;OMESSO NOMINATIVO NEL RISPETTO DELLA NORMATIVA SULLA PROTEZIONE DATI PERSONALI; ;AGOSTO 2020 PROGETTO RIA;18/09/2020;3957;54;683;1;Spese correnti;4;Trasferimenti correnti;2;Trasferimenti correnti a Famiglie;5;Altri trasferimenti a famiglie;999;Altri trasferimenti a famiglie n.a.c.;22/09/2020
2859;1;9999999;200;200;OMESSO NOMINATIVO NEL RISPETTO DELLA NORMATIVA SULLA PROTEZIONE DATI PERSONALI; ;AGOSTO PROGETTO RIA;18/09/2020;3957;54;684;1;Spese correnti;4;Trasferimenti correnti;2;Trasferimenti correnti a Famiglie;5;Altri trasferimenti a famiglie;999;Altri trasferimenti a famiglie n.a.c.;06/10/2020
2860;1;9999999;200;200;OMESSO NOMINATIVO NEL RISPETTO DELLA NORMATIVA SULLA PROTEZIONE DATI PERSONALI; ;AGOSTO 2020 PROGETTO RIA;18/09/2020;3957;54;685;1;Spese correnti;4;Trasferimenti correnti;2;Trasferimenti correnti a Famiglie;5;Altri trasferimenti a famiglie;999;Altri trasferimenti a famiglie n.a.c.;22/09/2020
2862;1;9999999;1.069,40;1.069,40;TESORERIA CENTR.STATO BANCA D'ITALIA; ;RESTITUZIONE ECONOMIE SU CONTRIBUTI VIDEOSORVEGLIANZA CAP .7146 COMUNE DI SANTA MARIA DI SALA (VE);18/09/2020;8800;1;200;2;Spese in conto capitale;2;Investimenti fissi lordi e acquisto di terreni;1;Beni materiali;4;Impianti e macchinari;2;Impianti;23/09/2020
2863;1;9999999;7,05;7,05;ABACO S.P.A.;Z4B0FF1CA6;SALDO Fatt.n. 2020140003197  del 01/09/2020 RISCOSSIONE INCASSI CDS LOTTO 1 RENDICONTO DELLA GESTIONE AL 31.08.2020;18/09/2020;332;0;0;1;Spese correnti;3;Acquisto di beni e servizi;2;Acquisto di servizi;3;Aggi di riscossione;999;Altri aggi di riscossione n.a.c.;23/09/2020
2864;1;9999999;260,1;260,1;ABACO S.P.A.;5325258DE8;SALDO Fatt.n. 2020140003198  del 01/09/2020 RISCOSSIONE INCASSI ICI IMU TASI LOTTO 5 RENDICONTO DELLA GESTIONE AL 31.08.2020;18/09/2020;332;0;0;1;Spese correnti;3;Acquisto di beni e servizi;2;Acquisto di servizi;3;Aggi di riscossione;999;Altri aggi di riscossione n.a.c.;23/09/2020
2865;1;9999999;10,5;10,5;ABACO S.P.A.;5325258DE8;SALDO Fatt.n. 2020140003199  del 01/09/2020 RISCOSSIONE INCASSI ICI IMU TASI LOTTO 6 RENDICONTO DELLA GESTIONE AL 31.08.2020;18/09/2020;332;0;0;1;Spese correnti;3;Acquisto di beni e servizi;2;Acquisto di servizi;3;Aggi di riscossione;999;Altri aggi di riscossione n.a.c.;23/09/2020
2866;1;9999999;145;912;GIORDAN DEBORAH; ;SEGGIO N.1 LIQUIDAZIONE E PAGAMENTO ONORARI COMPONENTI SEGGI ELETTORALI CONSULTAZIONI ELETTORALI DEL 20/21 SETTEMBRE 2020;21/09/2020;649;0;678;1;Spese correnti;3;Acquisto di beni e servizi;2;Acquisto di servizi;99;Altri servizi;4;Altre spese per consultazioni elettorali dell'ente;23/09/2020
2866;2;9999999;145;912;PAVONE SUSAN WENDY; ;SEGGIO N.1 LIQUIDAZIONE E PAGAMENTO ONORARI COMPONENTI SEGGI ELETTORALI CONSULTAZIONI ELETTORALI DEL 20/21 SETTEMBRE 2020;21/09/2020;649;0;678;1;Spese correnti;3;Acquisto di beni e servizi;2;Acquisto di servizi;99;Altri servizi;4;Altre spese per consultazioni elettorali dell'ente;23/09/2020
2866;3;9999999;145;912;PENZO ALESSANDRA; ;SEGGIO N.1 LIQUIDAZIONE E PAGAMENTO ONORARI COMPONENTI SEGGI ELETTORALI CONSULTAZIONI ELETTORALI DEL 20/21 SETTEMBRE 2020;21/09/2020;649;0;678;1;Spese correnti;3;Acquisto di beni e servizi;2;Acquisto di servizi;99;Altri servizi;4;Altre spese per consultazioni elettorali dell'ente;29/09/2020
2866;4;9999999;145;912;STOCCO CHRISTIAN; ;SEGGIO N.1 LIQUIDAZIONE E PAGAMENTO ONORARI COMPONENTI SEGGI ELETTORALI CONSULTAZIONI ELETTORALI DEL 20/21 SETTEMBRE 2020;21/09/2020;649;0;678;1;Spese correnti;3;Acquisto di beni e servizi;2;Acquisto di servizi;99;Altri servizi;4;Altre spese per consultazioni elettorali dell'ente;23/09/2020
2866;5;9999999;187;912;VASSALLUZZO LUCIANO; ;SEGGIO N.1 LIQUIDAZIONE E PAGAMENTO ONORARI COMPONENTI SEGGI ELETTORALI CONSULTAZIONI ELETTORALI DEL 20/21 SETTEMBRE 2020;21/09/2020;649;0;678;1;Spese correnti;3;Acquisto di beni e servizi;2;Acquisto di servizi;99;Altri servizi;4;Altre spese per consultazioni elettorali dell'ente;23/09/2020
2866;6;9999999;145;912;VASSALLUZZO MATTIA; ;SEGGIO N.1 LIQUIDAZIONE E PAGAMENTO ONORARI COMPONENTI SEGGI ELETTORALI CONSULTAZIONI ELETTORALI DEL 20/21 SETTEMBRE 2020;21/09/2020;649;0;678;1;Spese correnti;3;Acquisto di beni e servizi;2;Acquisto di servizi;99;Altri servizi;4;Altre spese per consultazioni elettorali dell'ente;23/09/2020
2867;1;9999999;145;912;CAROLO DAVIDE; ;SEGGIO N.2 LIQUIDAZIONE E PAGAMENTO ONORARI COMPONENTI SEGGI ELETTORALI CONSULTAZIONI ELETTORALI DEL 20/21 SETTEMBRE 2020;21/09/2020;649;0;678;1;Spese correnti;3;Acquisto di beni e servizi;2;Acquisto di servizi;99;Altri servizi;4;Altre spese per consultazioni elettorali dell'ente;23/09/2020
2867;2;9999999;145;912;CASARIN MAURO; ;SEGGIO N.2 LIQUIDAZIONE E PAGAMENTO ONORARI COMPONENTI SEGGI ELETTORALI CONSULTAZIONI ELETTORALI DEL 20/21 SETTEMBRE 2020;21/09/2020;649;0;678;1;Spese correnti;3;Acquisto di beni e servizi;2;Acquisto di servizi;99;Altri servizi;4;Altre spese per consultazioni elettorali dell'ente;23/09/2020
2867;3;9999999;145;912;MASO LAURA; ;SEGGIO N.2 LIQUIDAZIONE E PAGAMENTO ONORARI COMPONENTI SEGGI ELETTORALI CONSULTAZIONI ELETTORALI DEL 20/21 SETTEMBRE 2020;21/09/2020;649;0;678;1;Spese correnti;3;Acquisto di beni e servizi;2;Acquisto di servizi;99;Altri servizi;4;Altre spese per consultazioni elettorali dell'ente;23/09/2020
2867;4;9999999;145;912;MUFFATTO MADDALENA; ;SEGGIO N.2 LIQUIDAZIONE E PAGAMENTO ONORARI COMPONENTI SEGGI ELETTORALI CONSULTAZIONI ELETTORALI DEL 20/21 SETTEMBRE 2020;21/09/2020;649;0;678;1;Spese correnti;3;Acquisto di beni e servizi;2;Acquisto di servizi;99;Altri servizi;4;Altre spese per consultazioni elettorali dell'ente;23/09/2020
2867;5;9999999;145;912;RAGNO ROSARIO; ;SEGGIO N.2 LIQUIDAZIONE E PAGAMENTO ONORARI COMPONENTI SEGGI ELETTORALI CONSULTAZIONI ELETTORALI DEL 20/21 SETTEMBRE 2020;21/09/2020;649;0;678;1;Spese correnti;3;Acquisto di beni e servizi;2;Acquisto di servizi;99;Altri servizi;4;Altre spese per consultazioni elettorali dell'ente;23/09/2020
2867;6;9999999;187;912;SARTORATO MIRIAN; ;SEGGIO N.2 LIQUIDAZIONE E PAGAMENTO ONORARI COMPONENTI SEGGI ELETTORALI CONSULTAZIONI ELETTORALI DEL 20/21 SETTEMBRE 2020;21/09/2020;649;0;678;1;Spese correnti;3;Acquisto di beni e servizi;2;Acquisto di servizi;99;Altri servizi;4;Altre spese per consultazioni elettorali dell'ente;24/09/2020
2868;1;9999999;187;912;CARRARO ALESSANDRO; ;SEGGIO N.3 LIQUIDAZIONE E PAGAMENTO ONORARI COMPONENTI SEGGI ELETTORALI CONSULTAZIONI ELETTORALI DEL 20/21 SETTEMBRE 2020;21/09/2020;649;0;678;1;Spese correnti;3;Acquisto di beni e servizi;2;Acquisto di servizi;99;Altri servizi;4;Altre spese per consultazioni elettorali dell'ente;23/09/2020
2868;2;9999999;145;912;DAL CORSO GIULIA; ;SEGGIO N.3 LIQUIDAZIONE E PAGAMENTO ONORARI COMPONENTI SEGGI ELETTORALI CONSULTAZIONI ELETTORALI DEL 20/21 SETTEMBRE 2020;21/09/2020;649;0;678;1;Spese correnti;3;Acquisto di beni e servizi;2;Acquisto di servizi;99;Altri servizi;4;Altre spese per consultazioni elettorali dell'ente;23/09/2020
2868;3;9999999;145;912;FAVERO SABRINA; ;SEGGIO N.3 LIQUIDAZIONE E PAGAMENTO ONORARI COMPONENTI SEGGI ELETTORALI CONSULTAZIONI ELETTORALI DEL 20/21 SETTEMBRE 2020;21/09/2020;649;0;678;1;Spese correnti;3;Acquisto di beni e servizi;2;Acquisto di servizi;99;Altri servizi;4;Altre spese per consultazioni elettorali dell'ente;23/09/2020
2868;4;9999999;145;912;SCARPA ALBERTO; ;SEGGIO N.3 LIQUIDAZIONE E PAGAMENTO ONORARI COMPONENTI SEGGI ELETTORALI CONSULTAZIONI ELETTORALI DEL 20/21 SETTEMBRE 2020;21/09/2020;649;0;678;1;Spese correnti;3;Acquisto di beni e servizi;2;Acquisto di servizi;99;Altri servizi;4;Altre spese per consultazioni elettorali dell'ente;23/09/2020
2868;5;9999999;145;912;SINA BASHKIM; ;SEGGIO N.3 LIQUIDAZIONE E PAGAMENTO ONORARI COMPONENTI SEGGI ELETTORALI CONSULTAZIONI ELETTORALI DEL 20/21 SETTEMBRE 2020;21/09/2020;649;0;678;1;Spese correnti;3;Acquisto di beni e servizi;2;Acquisto di servizi;99;Altri servizi;4;Altre spese per consultazioni elettorali dell'ente;23/09/2020
2868;6;9999999;145;912;TONINELLO SILVIA; ;SEGGIO N.3 LIQUIDAZIONE E PAGAMENTO ONORARI COMPONENTI SEGGI ELETTORALI CONSULTAZIONI ELETTORALI DEL 20/21 SETTEMBRE 2020;21/09/2020;649;0;678;1;Spese correnti;3;Acquisto di beni e servizi;2;Acquisto di servizi;99;Altri servizi;4;Altre spese per consultazioni elettorali dell'ente;23/09/2020
2869;1;9999999;145;912;BAGNULO VITA; ;SEGGIO N.4 LIQUIDAZIONE E PAGAMENTO ONORARI COMPONENTI SEGGI ELETTORALI CONSULTAZIONI ELETTORALI DEL 20/21 SETTEMBRE 2020;21/09/2020;649;0;678;1;Spese correnti;3;Acquisto di beni e servizi;2;Acquisto di servizi;99;Altri servizi;4;Altre spese per consultazioni elettorali dell'ente;23/09/2020
2869;2;9999999;145;912;LOLLO VALENTINO; ;SEGGIO N.4 LIQUIDAZIONE E PAGAMENTO ONORARI COMPONENTI SEGGI ELETTORALI CONSULTAZIONI ELETTORALI DEL 20/21 SETTEMBRE 2020;21/09/2020;649;0;678;1;Spese correnti;3;Acquisto di beni e servizi;2;Acquisto di servizi;99;Altri servizi;4;Altre spese per consultazioni elettorali dell'ente;23/09/2020
2869;3;9999999;187;912;LONGO FILIPPO; ;SEGGIO N.4 LIQUIDAZIONE E PAGAMENTO ONORARI COMPONENTI SEGGI ELETTORALI CONSULTAZIONI ELETTORALI DEL 20/21 SETTEMBRE 2020;21/09/2020;649;0;678;1;Spese correnti;3;Acquisto di beni e servizi;2;Acquisto di servizi;99;Altri servizi;4;Altre spese per consultazioni elettorali dell'ente;23/09/2020
2869;4;9999999;145;912;MAMPRIN ALESSANDRO; ;SEGGIO N.4 LIQUIDAZIONE E PAGAMENTO ONORARI COMPONENTI SEGGI ELETTORALI CONSULTAZIONI ELETTORALI DEL 20/21 SETTEMBRE 2020;21/09/2020;649;0;678;1;Spese correnti;3;Acquisto di beni e servizi;2;Acquisto di servizi;99;Altri servizi;4;Altre spese per consultazioni elettorali dell'ente;23/09/2020
2869;5;9999999;145;912;STECCA SIMONE; ;SEGGIO N.4 LIQUIDAZIONE E PAGAMENTO ONORARI COMPONENTI SEGGI ELETTORALI CONSULTAZIONI ELETTORALI DEL 20/21 SETTEMBRE 2020;21/09/2020;649;0;678;1;Spese correnti;3;Acquisto di beni e servizi;2;Acquisto di servizi;99;Altri servizi;4;Altre spese per consultazioni elettorali dell'ente;23/09/2020
2869;6;9999999;145;912;VECCHIATO VERONICA; ;SEGGIO N.4 LIQUIDAZIONE E PAGAMENTO ONORARI COMPONENTI SEGGI ELETTORALI CONSULTAZIONI ELETTORALI DEL 20/21 SETTEMBRE 2020;21/09/2020;649;0;678;1;Spese correnti;3;Acquisto di beni e servizi;2;Acquisto di servizi;99;Altri servizi;4;Altre spese per consultazioni elettorali dell'ente;23/09/2020
2870;1;9999999;145;912;BERTOLDO ALEXANDRA; ;SEGGIO N.5 LIQUIDAZIONE E PAGAMENTO ONORARI COMPONENTI SEGGI ELETTORALI CONSULTAZIONI ELETTORALI DEL 20/21 SETTEMBRE 2020;21/09/2020;649;0;678;1;Spese correnti;3;Acquisto di beni e servizi;2;Acquisto di servizi;99;Altri servizi;4;Altre spese per consultazioni elettorali dell'ente;23/09/2020
2870;2;9999999;145;912;BORDIN GIOVANNI; ;SEGGIO N.5 LIQUIDAZIONE E PAGAMENTO ONORARI COMPONENTI SEGGI ELETTORALI CONSULTAZIONI ELETTORALI DEL 20/21 SETTEMBRE 2020;21/09/2020;649;0;678;1;Spese correnti;3;Acquisto di beni e servizi;2;Acquisto di servizi;99;Altri servizi;4;Altre spese per consultazioni elettorali dell'ente;23/09/2020
2870;3;9999999;187;912;CALZAVARA SAMANTA; ;SEGGIO N.5 LIQUIDAZIONE E PAGAMENTO ONORARI COMPONENTI SEGGI ELETTORALI CONSULTAZIONI ELETTORALI DEL 20/21 SETTEMBRE 2020;21/09/2020;649;0;678;1;Spese correnti;3;Acquisto di beni e servizi;2;Acquisto di servizi;99;Altri servizi;4;Altre spese per consultazioni elettorali dell'ente;23/09/2020
2870;4;9999999;145;912;MARTIN BEATRICE MARIA; ;SEGGIO N.5 LIQUIDAZIONE E PAGAMENTO ONORARI COMPONENTI SEGGI ELETTORALI CONSULTAZIONI ELETTORALI DEL 20/21 SETTEMBRE 2020;21/09/2020;649;0;678;1;Spese correnti;3;Acquisto di beni e servizi;2;Acquisto di servizi;99;Altri servizi;4;Altre spese per consultazioni elettorali dell'ente;28/09/2020
2870;5;9999999;145;912;TOMMASI ELENA; ;SEGGIO N.5 LIQUIDAZIONE E PAGAMENTO ONORARI COMPONENTI SEGGI ELETTORALI CONSULTAZIONI ELETTORALI DEL 20/21 SETTEMBRE 2020;21/09/2020;649;0;678;1;Spese correnti;3;Acquisto di beni e servizi;2;Acquisto di servizi;99;Altri servizi;4;Altre spese per consultazioni elettorali dell'ente;23/09/2020
2870;6;9999999;145;912;VITTADELLO ELISA; ;SEGGIO N.5 LIQUIDAZIONE E PAGAMENTO ONORARI COMPONENTI SEGGI ELETTORALI CONSULTAZIONI ELETTORALI DEL 20/21 SETTEMBRE 2020;21/09/2020;649;0;678;1;Spese correnti;3;Acquisto di beni e servizi;2;Acquisto di servizi;99;Altri servizi;4;Altre spese per consultazioni elettorali dell'ente;29/09/2020
2871;1;9999999;145;912;ARTUSI STEFANO; ;SEGGIO N.6 LIQUIDAZIONE E PAGAMENTO ONORARI COMPONENTI SEGGI ELETTORALI CONSULTAZIONI ELETTORALI DEL 20/21 SETTEMBRE 2020;21/09/2020;649;0;678;1;Spese correnti;3;Acquisto di beni e servizi;2;Acquisto di servizi;99;Altri servizi;4;Altre spese per consultazioni elettorali dell'ente;23/09/2020
2871;2;9999999;145;912;BOSCARATO CINZIA; ;SEGGIO N.6 LIQUIDAZIONE E PAGAMENTO ONORARI COMPONENTI SEGGI ELETTORALI CONSULTAZIONI ELETTORALI DEL 20/21 SETTEMBRE 2020;21/09/2020;649;0;678;1;Spese correnti;3;Acquisto di beni e servizi;2;Acquisto di servizi;99;Altri servizi;4;Altre spese per consultazioni elettorali dell'ente;30/09/2020
2871;3;9999999;145;912;CORRAIN ELISA; ;SEGGIO N.6 LIQUIDAZIONE E PAGAMENTO ONORARI COMPONENTI SEGGI ELETTORALI CONSULTAZIONI ELETTORALI DEL 20/21 SETTEMBRE 2020;21/09/2020;649;0;678;1;Spese correnti;3;Acquisto di beni e servizi;2;Acquisto di servizi;99;Altri servizi;4;Altre spese per consultazioni elettorali dell'ente;23/09/2020
2871;4;9999999;145;912;GASPARINI GIULIA; ;SEGGIO N.6 LIQUIDAZIONE E PAGAMENTO ONORARI COMPONENTI SEGGI ELETTORALI CONSULTAZIONI ELETTORALI DEL 20/21 SETTEMBRE 2020;21/09/2020;649;0;678;1;Spese correnti;3;Acquisto di beni e servizi;2;Acquisto di servizi;99;Altri servizi;4;Altre spese per consultazioni elettorali dell'ente;23/09/2020
2871;5;9999999;187;912;GIORDAN MATTEO; ;SEGGIO N.6 LIQUIDAZIONE E PAGAMENTO ONORARI COMPONENTI SEGGI ELETTORALI CONSULTAZIONI ELETTORALI DEL 20/21 SETTEMBRE 2020;21/09/2020;649;0;678;1;Spese correnti;3;Acquisto di beni e servizi;2;Acquisto di servizi;99;Altri servizi;4;Altre spese per consultazioni elettorali dell'ente;23/09/2020
2871;6;9999999;145;912;PIZZO GIADA; ;SEGGIO N.6 LIQUIDAZIONE E PAGAMENTO ONORARI COMPONENTI SEGGI ELETTORALI CONSULTAZIONI ELETTORALI DEL 20/21 SETTEMBRE 2020;21/09/2020;649;0;678;1;Spese correnti;3;Acquisto di beni e servizi;2;Acquisto di servizi;99;Altri servizi;4;Altre spese per consultazioni elettorali dell'ente;23/09/2020
2872;1;9999999;145;912;BEGGIORA SIMONE; ;SEGGIO N.7 LIQUIDAZIONE E PAGAMENTO ONORARI COMPONENTI SEGGI ELETTORALI CONSULTAZIONI ELETTORALI DEL 20/21 SETTEMBRE 2020;21/09/2020;649;0;678;1;Spese correnti;3;Acquisto di beni e servizi;2;Acquisto di servizi;99;Altri servizi;4;Altre spese per consultazioni elettorali dell'ente;23/09/2020
2872;2;9999999;187;912;BETTIN CHIARA; ;SEGGIO N.7 LIQUIDAZIONE E PAGAMENTO ONORARI COMPONENTI SEGGI ELETTORALI CONSULTAZIONI ELETTORALI DEL 20/21 SETTEMBRE 2020;21/09/2020;649;0;678;1;Spese correnti;3;Acquisto di beni e servizi;2;Acquisto di servizi;99;Altri servizi;4;Altre spese per consultazioni elettorali dell'ente;23/09/2020
2872;3;9999999;145;912;DE LIBERALI SILVIA; ;SEGGIO N.7 LIQUIDAZIONE E PAGAMENTO ONORARI COMPONENTI SEGGI ELETTORALI CONSULTAZIONI ELETTORALI DEL 20/21 SETTEMBRE 2020;21/09/2020;649;0;678;1;Spese correnti;3;Acquisto di beni e servizi;2;Acquisto di servizi;99;Altri servizi;4;Altre spese per consultazioni elettorali dell'ente;23/09/2020
2872;4;9999999;145;912;ENZO FERNANDO; ;SEGGIO N.7 LIQUIDAZIONE E PAGAMENTO ONORARI COMPONENTI SEGGI ELETTORALI CONSULTAZIONI ELETTORALI DEL 20/21 SETTEMBRE 2020;21/09/2020;649;0;678;1;Spese correnti;3;Acquisto di beni e servizi;2;Acquisto di servizi;99;Altri servizi;4;Altre spese per consultazioni elettorali dell'ente;24/09/2020
2872;5;9999999;145;912;LORENZON MICHELA; ;SEGGIO N.7 LIQUIDAZIONE E PAGAMENTO ONORARI COMPONENTI SEGGI ELETTORALI CONSULTAZIONI ELETTORALI DEL 20/21 SETTEMBRE 2020;21/09/2020;649;0;678;1;Spese correnti;3;Acquisto di beni e servizi;2;Acquisto di servizi;99;Altri servizi;4;Altre spese per consultazioni elettorali dell'ente;23/09/2020
2872;6;9999999;145;912;MASIERO SERENA; ;SEGGIO N.7 LIQUIDAZIONE E PAGAMENTO ONORARI COMPONENTI SEGGI ELETTORALI CONSULTAZIONI ELETTORALI DEL 20/21 SETTEMBRE 2020;21/09/2020;649;0;678;1;Spese correnti;3;Acquisto di beni e servizi;2;Acquisto di servizi;99;Altri servizi;4;Altre spese per consultazioni elettorali dell'ente;23/09/2020
2873;1;9999999;145;912;BEDIN GIULIA; ;SEGGIO N.8 LIQUIDAZIONE E PAGAMENTO ONORARI COMPONENTI SEGGI ELETTORALI CONSULTAZIONI ELETTORALI DEL 20/21 SETTEMBRE 2020;21/09/2020;649;0;678;1;Spese correnti;3;Acquisto di beni e servizi;2;Acquisto di servizi;99;Altri servizi;4;Altre spese per consultazioni elettorali dell'ente;23/09/2020
2873;2;9999999;145;912;DE NAT MAURIZIO; ;SEGGIO N.8 LIQUIDAZIONE E PAGAMENTO ONORARI COMPONENTI SEGGI ELETTORALI CONSULTAZIONI ELETTORALI DEL 20/21 SETTEMBRE 2020;21/09/2020;649;0;678;1;Spese correnti;3;Acquisto di beni e servizi;2;Acquisto di servizi;99;Altri servizi;4;Altre spese per consultazioni elettorali dell'ente;23/09/2020
2873;3;9999999;145;912;DE SILVESTRO ENRICO; ;SEGGIO N.8 LIQUIDAZIONE E PAGAMENTO ONORARI COMPONENTI SEGGI ELETTORALI CONSULTAZIONI ELETTORALI DEL 20/21 SETTEMBRE 2020;21/09/2020;649;0;678;1;Spese correnti;3;Acquisto di beni e servizi;2;Acquisto di servizi;99;Altri servizi;4;Altre spese per consultazioni elettorali dell'ente;23/09/2020
2873;4;9999999;187;912;MUNARETTI MARTA; ;SEGGIO N.8 LIQUIDAZIONE E PAGAMENTO ONORARI COMPONENTI SEGGI ELETTORALI CONSULTAZIONI ELETTORALI DEL 20/21 SETTEMBRE 2020;21/09/2020;649;0;678;1;Spese correnti;3;Acquisto di beni e servizi;2;Acquisto di servizi;99;Altri servizi;4;Altre spese per consultazioni elettorali dell'ente;23/09/2020
2873;5;9999999;145;912;TOLOMIO ALESSANDRO; ;SEGGIO N.8 LIQUIDAZIONE E PAGAMENTO ONORARI COMPONENTI SEGGI ELETTORALI CONSULTAZIONI ELETTORALI DEL 20/21 SETTEMBRE 2020;21/09/2020;649;0;678;1;Spese correnti;3;Acquisto di beni e servizi;2;Acquisto di servizi;99;Altri servizi;4;Altre spese per consultazioni elettorali dell'ente;23/09/2020
2873;6;9999999;145;912;TOLOMIO STEFANO; ;SEGGIO N.8 LIQUIDAZIONE E PAGAMENTO ONORARI COMPONENTI SEGGI ELETTORALI CONSULTAZIONI ELETTORALI DEL 20/21 SETTEMBRE 2020;21/09/2020;649;0;678;1;Spese correnti;3;Acquisto di beni e servizi;2;Acquisto di servizi;99;Altri servizi;4;Altre spese per consultazioni elettorali dell'ente;23/09/2020
2874;1;9999999;145;912;BERTOLO GAIA; ;SEGGIO N.9 LIQUIDAZIONE E PAGAMENTO ONORARI COMPONENTI SEGGI ELETTORALI CONSULTAZIONI ELETTORALI DEL 20/21 SETTEMBRE 2020;21/09/2020;649;0;678;1;Spese correnti;3;Acquisto di beni e servizi;2;Acquisto di servizi;99;Altri servizi;4;Altre spese per consultazioni elettorali dell'ente;23/09/2020
2874;2;9999999;187;912;CAROLO ROSSELLA; ;SEGGIO N.9 LIQUIDAZIONE E PAGAMENTO ONORARI COMPONENTI SEGGI ELETTORALI CONSULTAZIONI ELETTORALI DEL 20/21 SETTEMBRE 2020;21/09/2020;649;0;678;1;Spese correnti;3;Acquisto di beni e servizi;2;Acquisto di servizi;99;Altri servizi;4;Altre spese per consultazioni elettorali dell'ente;23/09/2020
2874;3;9999999;145;912;DUDINE LUNA; ;SEGGIO N.9 LIQUIDAZIONE E PAGAMENTO ONORARI COMPONENTI SEGGI ELETTORALI CONSULTAZIONI ELETTORALI DEL 20/21 SETTEMBRE 2020;21/09/2020;649;0;678;1;Spese correnti;3;Acquisto di beni e servizi;2;Acquisto di servizi;99;Altri servizi;4;Altre spese per consultazioni elettorali dell'ente;23/09/2020
2874;4;9999999;145;912;MARTIGNON ANGELICA; ;SEGGIO N.9 LIQUIDAZIONE E PAGAMENTO ONORARI COMPONENTI SEGGI ELETTORALI CONSULTAZIONI ELETTORALI DEL 20/21 SETTEMBRE 2020;21/09/2020;649;0;678;1;Spese correnti;3;Acquisto di beni e servizi;2;Acquisto di servizi;99;Altri servizi;4;Altre spese per consultazioni elettorali dell'ente;23/09/2020
2874;5;9999999;145;912;MASIERO SILVIA; ;SEGGIO N.9 LIQUIDAZIONE E PAGAMENTO ONORARI COMPONENTI SEGGI ELETTORALI CONSULTAZIONI ELETTORALI DEL 20/21 SETTEMBRE 2020;21/09/2020;649;0;678;1;Spese correnti;3;Acquisto di beni e servizi;2;Acquisto di servizi;99;Altri servizi;4;Altre spese per consultazioni elettorali dell'ente;23/09/2020
2874;6;9999999;145;912;PETTENUZZO GLORIA; ;SEGGIO N.9 LIQUIDAZIONE E PAGAMENTO ONORARI COMPONENTI SEGGI ELETTORALI CONSULTAZIONI ELETTORALI DEL 20/21 SETTEMBRE 2020;21/09/2020;649;0;678;1;Spese correnti;3;Acquisto di beni e servizi;2;Acquisto di servizi;99;Altri servizi;4;Altre spese per consultazioni elettorali dell'ente;23/09/2020
2875;1;9999999;145;912;BOLZONELLA DOMIZIANO; ;SEGGIO N.10 LIQUIDAZIONE E PAGAMENTO ONORARI COMPONENTI SEGGI ELETTORALI CONSULTAZIONI ELETTORALI DEL 20/21 SETTEMBRE 2020;21/09/2020;649;0;678;1;Spese correnti;3;Acquisto di beni e servizi;2;Acquisto di servizi;99;Altri servizi;4;Altre spese per consultazioni elettorali dell'ente;07/10/2020
2875;2;9999999;187;912;BOLZONELLA SILVANO; ;SEGGIO N.10 LIQUIDAZIONE E PAGAMENTO ONORARI COMPONENTI SEGGI ELETTORALI CONSULTAZIONI ELETTORALI DEL 20/21 SETTEMBRE 2020;21/09/2020;649;0;678;1;Spese correnti;3;Acquisto di beni e servizi;2;Acquisto di servizi;99;Altri servizi;4;Altre spese per consultazioni elettorali dell'ente;13/11/2020
2875;3;9999999;145;912;CARMINATO VIOLA; ;SEGGIO N.10 LIQUIDAZIONE E PAGAMENTO ONORARI COMPONENTI SEGGI ELETTORALI CONSULTAZIONI ELETTORALI DEL 20/21 SETTEMBRE 2020;21/09/2020;649;0;678;1;Spese correnti;3;Acquisto di beni e servizi;2;Acquisto di servizi;99;Altri servizi;4;Altre spese per consultazioni elettorali dell'ente;23/09/2020
2875;4;9999999;145;912;DE NAT MARCO; ;SEGGIO N.10 LIQUIDAZIONE E PAGAMENTO ONORARI COMPONENTI SEGGI ELETTORALI CONSULTAZIONI ELETTORALI DEL 20/21 SETTEMBRE 2020;21/09/2020;649;0;678;1;Spese correnti;3;Acquisto di beni e servizi;2;Acquisto di servizi;99;Altri servizi;4;Altre spese per consultazioni elettorali dell'ente;23/09/2020
2875;5;9999999;145;912;LOLLO ANGELA; ;SEGGIO N.10 LIQUIDAZIONE E PAGAMENTO ONORARI COMPONENTI SEGGI ELETTORALI CONSULTAZIONI ELETTORALI DEL 20/21 SETTEMBRE 2020;21/09/2020;649;0;678;1;Spese correnti;3;Acquisto di beni e servizi;2;Acquisto di servizi;99;Altri servizi;4;Altre spese per consultazioni elettorali dell'ente;23/09/2020
2875;6;9999999;145;912;STEGAGNO LAURA; ;SEGGIO N.10 LIQUIDAZIONE E PAGAMENTO ONORARI COMPONENTI SEGGI ELETTORALI CONSULTAZIONI ELETTORALI DEL 20/21 SETTEMBRE 2020;21/09/2020;649;0;678;1;Spese correnti;3;Acquisto di beni e servizi;2;Acquisto di servizi;99;Altri servizi;4;Altre spese per consultazioni elettorali dell'ente;25/09/2020
2876;1;9999999;187;912;BORDIN ALESSIO; ;SEGGIO N.11 LIQUIDAZIONE E PAGAMENTO ONORARI COMPONENTI SEGGI ELETTORALI CONSULTAZIONI ELETTORALI DEL 20/21 SETTEMBRE 2020;21/09/2020;649;0;678;1;Spese correnti;3;Acquisto di beni e servizi;2;Acquisto di servizi;99;Altri servizi;4;Altre spese per consultazioni elettorali dell'ente;23/09/2020
2876;2;9999999;145;912;COLLINI ILARIA; ;SEGGIO N.11 LIQUIDAZIONE E PAGAMENTO ONORARI COMPONENTI SEGGI ELETTORALI CONSULTAZIONI ELETTORALI DEL 20/21 SETTEMBRE 2020;21/09/2020;649;0;678;1;Spese correnti;3;Acquisto di beni e servizi;2;Acquisto di servizi;99;Altri servizi;4;Altre spese per consultazioni elettorali dell'ente;23/09/2020
2876;3;9999999;145;912;DAL CORSO FRANCESCA; ;SEGGIO N.11 LIQUIDAZIONE E PAGAMENTO ONORARI COMPONENTI SEGGI ELETTORALI CONSULTAZIONI ELETTORALI DEL 20/21 SETTEMBRE 2020;21/09/2020;649;0;678;1;Spese correnti;3;Acquisto di beni e servizi;2;Acquisto di servizi;99;Altri servizi;4;Altre spese per consultazioni elettorali dell'ente;23/09/2020
2876;4;9999999;145;912;FABBRICATORE ANTONIO; ;SEGGIO N.11 LIQUIDAZIONE E PAGAMENTO ONORARI COMPONENTI SEGGI ELETTORALI CONSULTAZIONI ELETTORALI DEL 20/21 SETTEMBRE 2020;21/09/2020;649;0;678;1;Spese correnti;3;Acquisto di beni e servizi;2;Acquisto di servizi;99;Altri servizi;4;Altre spese per consultazioni elettorali dell'ente;23/09/2020
2876;5;9999999;145;912;FAVARO CHIARA; ;SEGGIO N.11 LIQUIDAZIONE E PAGAMENTO ONORARI COMPONENTI SEGGI ELETTORALI CONSULTAZIONI ELETTORALI DEL 20/21 SETTEMBRE 2020;21/09/2020;649;0;678;1;Spese correnti;3;Acquisto di beni e servizi;2;Acquisto di servizi;99;Altri servizi;4;Altre spese per consultazioni elettorali dell'ente;23/09/2020
2876;6;9999999;145;912;MORO ANTONELLA; ;SEGGIO N.11 LIQUIDAZIONE E PAGAMENTO ONORARI COMPONENTI SEGGI ELETTORALI CONSULTAZIONI ELETTORALI DEL 20/21 SETTEMBRE 2020;21/09/2020;649;0;678;1;Spese correnti;3;Acquisto di beni e servizi;2;Acquisto di servizi;99;Altri servizi;4;Altre spese per consultazioni elettorali dell'ente;23/09/2020
2877;1;9999999;145;912;BUGIN VANZETTO DENISE; ;SEGGIO N.12 LIQUIDAZIONE E PAGAMENTO ONORARI COMPONENTI SEGGI ELETTORALI CONSULTAZIONI ELETTORALI DEL 20/21 SETTEMBRE 2020;21/09/2020;649;0;678;1;Spese correnti;3;Acquisto di beni e servizi;2;Acquisto di servizi;99;Altri servizi;4;Altre spese per consultazioni elettorali dell'ente;06/10/2020
2877;2;9999999;145;912;CARRARO MATTEO; ;SEGGIO N.12 LIQUIDAZIONE E PAGAMENTO ONORARI COMPONENTI SEGGI ELETTORALI CONSULTAZIONI ELETTORALI DEL 20/21 SETTEMBRE 2020;21/09/2020;649;0;678;1;Spese correnti;3;Acquisto di beni e servizi;2;Acquisto di servizi;99;Altri servizi;4;Altre spese per consultazioni elettorali dell'ente;23/09/2020
2877;3;9999999;145;912;FAVARO MICHELE; ;SEGGIO N.12 LIQUIDAZIONE E PAGAMENTO ONORARI COMPONENTI SEGGI ELETTORALI CONSULTAZIONI ELETTORALI DEL 20/21 SETTEMBRE 2020;21/09/2020;649;0;678;1;Spese correnti;3;Acquisto di beni e servizi;2;Acquisto di servizi;99;Altri servizi;4;Altre spese per consultazioni elettorali dell'ente;23/09/2020
2877;4;9999999;145;912;GHION ELENA; ;SEGGIO N.12 LIQUIDAZIONE E PAGAMENTO ONORARI COMPONENTI SEGGI ELETTORALI CONSULTAZIONI ELETTORALI DEL 20/21 SETTEMBRE 2020;21/09/2020;649;0;678;1;Spese correnti;3;Acquisto di beni e servizi;2;Acquisto di servizi;99;Altri servizi;4;Altre spese per consultazioni elettorali dell'ente;23/09/2020
2877;5;9999999;187;912;GUIDOLIN MARCO; ;SEGGIO N.12 LIQUIDAZIONE E PAGAMENTO ONORARI COMPONENTI SEGGI ELETTORALI CONSULTAZIONI ELETTORALI DEL 20/21 SETTEMBRE 2020;21/09/2020;649;0;678;1;Spese correnti;3;Acquisto di beni e servizi;2;Acquisto di servizi;99;Altri servizi;4;Altre spese per consultazioni elettorali dell'ente;23/09/2020
2877;6;9999999;145;912;MASIERO MARCO; ;SEGGIO N.12 LIQUIDAZIONE E PAGAMENTO ONORARI COMPONENTI SEGGI ELETTORALI CONSULTAZIONI ELETTORALI DEL 20/21 SETTEMBRE 2020;21/09/2020;649;0;678;1;Spese correnti;3;Acquisto di beni e servizi;2;Acquisto di servizi;99;Altri servizi;4;Altre spese per consultazioni elettorali dell'ente;23/09/2020
2878;1;9999999;187;912;BARTENOR ANDREA; ;SEGGIO N.13 LIQUIDAZIONE E PAGAMENTO ONORARI COMPONENTI SEGGI ELETTORALI CONSULTAZIONI ELETTORALI DEL 20/21 SETTEMBRE 2020;21/09/2020;649;0;678;1;Spese correnti;3;Acquisto di beni e servizi;2;Acquisto di servizi;99;Altri servizi;4;Altre spese per consultazioni elettorali dell'ente;23/09/2020
2878;2;9999999;145;912;CACCIN ANNA; ;SEGGIO N.13 LIQUIDAZIONE E PAGAMENTO ONORARI COMPONENTI SEGGI ELETTORALI CONSULTAZIONI ELETTORALI DEL 20/21 SETTEMBRE 2020;21/09/2020;649;0;678;1;Spese correnti;3;Acquisto di beni e servizi;2;Acquisto di servizi;99;Altri servizi;4;Altre spese per consultazioni elettorali dell'ente;28/09/2020
2878;3;9999999;145;912;DE GRANDIS DEBORA; ;SEGGIO N.13 LIQUIDAZIONE E PAGAMENTO ONORARI COMPONENTI SEGGI ELETTORALI CONSULTAZIONI ELETTORALI DEL 20/21 SETTEMBRE 2020;21/09/2020;649;0;678;1;Spese correnti;3;Acquisto di beni e servizi;2;Acquisto di servizi;99;Altri servizi;4;Altre spese per consultazioni elettorali dell'ente;23/09/2020
2878;4;9999999;145;912;MEZZALIRA GIANLUCA; ;SEGGIO N.13 LIQUIDAZIONE E PAGAMENTO ONORARI COMPONENTI SEGGI ELETTORALI CONSULTAZIONI ELETTORALI DEL 20/21 SETTEMBRE 2020;21/09/2020;649;0;678;1;Spese correnti;3;Acquisto di beni e servizi;2;Acquisto di servizi;99;Altri servizi;4;Altre spese per consultazioni elettorali dell'ente;23/09/2020
2878;5;9999999;145;912;ONGARATO ERICA; ;SEGGIO N.13 LIQUIDAZIONE E PAGAMENTO ONORARI COMPONENTI SEGGI ELETTORALI CONSULTAZIONI ELETTORALI DEL 20/21 SETTEMBRE 2020;21/09/2020;649;0;678;1;Spese correnti;3;Acquisto di beni e servizi;2;Acquisto di servizi;99;Altri servizi;4;Altre spese per consultazioni elettorali dell'ente;23/09/2020
2878;6;9999999;145;912;PIGNATELLO GIOVANNI LUCA FRANCESCO; ;SEGGIO N.13 LIQUIDAZIONE E PAGAMENTO ONORARI COMPONENTI SEGGI ELETTORALI CONSULTAZIONI ELETTORALI DEL 20/21 SETTEMBRE 2020;21/09/2020;649;0;678;1;Spese correnti;3;Acquisto di beni e servizi;2;Acquisto di servizi;99;Altri servizi;4;Altre spese per consultazioni elettorali dell'ente;23/09/2020
2879;1;9999999;187;912;BALLAN ROBERTO; ;SEGGIO N.14 LIQUIDAZIONE E PAGAMENTO ONORARI COMPONENTI SEGGI ELETTORALI CONSULTAZIONI ELETTORALI DEL 20/21 SETTEMBRE 2020;21/09/2020;649;0;678;1;Spese correnti;3;Acquisto di beni e servizi;2;Acquisto di servizi;99;Altri servizi;4;Altre spese per consultazioni elettorali dell'ente;23/09/2020
2879;2;9999999;145;912;BERTOLDO FRANCESCA; ;SEGGIO N.14 LIQUIDAZIONE E PAGAMENTO ONORARI COMPONENTI SEGGI ELETTORALI CONSULTAZIONI ELETTORALI DEL 20/21 SETTEMBRE 2020;21/09/2020;649;0;678;1;Spese correnti;3;Acquisto di beni e servizi;2;Acquisto di servizi;99;Altri servizi;4;Altre spese per consultazioni elettorali dell'ente;23/09/2020
2879;3;9999999;145;912;BONANNO SOFIA; ;SEGGIO N.14 LIQUIDAZIONE E PAGAMENTO ONORARI COMPONENTI SEGGI ELETTORALI CONSULTAZIONI ELETTORALI DEL 20/21 SETTEMBRE 2020;21/09/2020;649;0;678;1;Spese correnti;3;Acquisto di beni e servizi;2;Acquisto di servizi;99;Altri servizi;4;Altre spese per consultazioni elettorali dell'ente;23/09/2020
2879;4;9999999;145;912;CARRARO LISA; ;SEGGIO N.14 LIQUIDAZIONE E PAGAMENTO ONORARI COMPONENTI SEGGI ELETTORALI CONSULTAZIONI ELETTORALI DEL 20/21 SETTEMBRE 2020;21/09/2020;649;0;678;1;Spese correnti;3;Acquisto di beni e servizi;2;Acquisto di servizi;99;Altri servizi;4;Altre spese per consultazioni elettorali dell'ente;23/09/2020
2879;5;9999999;145;912;GARDAN ELEONORA SOFIA; ;SEGGIO N.14 LIQUIDAZIONE E PAGAMENTO ONORARI COMPONENTI SEGGI ELETTORALI CONSULTAZIONI ELETTORALI DEL 20/21 SETTEMBRE 2020;21/09/2020;649;0;678;1;Spese correnti;3;Acquisto di beni e servizi;2;Acquisto di servizi;99;Altri servizi;4;Altre spese per consultazioni elettorali dell'ente;23/09/2020
2879;6;9999999;145;912;STOCCO ROBERTO; ;SEGGIO N.14 LIQUIDAZIONE E PAGAMENTO ONORARI COMPONENTI SEGGI ELETTORALI CONSULTAZIONI ELETTORALI DEL 20/21 SETTEMBRE 2020;21/09/2020;649;0;678;1;Spese correnti;3;Acquisto di beni e servizi;2;Acquisto di servizi;99;Altri servizi;4;Altre spese per consultazioni elettorali dell'ente;23/09/2020
2880;1;9999999;145;912;BERTAN KETTY; ;SEGGIO N.15 LIQUIDAZIONE E PAGAMENTO ONORARI COMPONENTI SEGGI ELETTORALI CONSULTAZIONI ELETTORALI DEL 20/21 SETTEMBRE 2020;21/09/2020;649;0;678;1;Spese correnti;3;Acquisto di beni e servizi;2;Acquisto di servizi;99;Altri servizi;4;Altre spese per consultazioni elettorali dell'ente;23/09/2020
2880;2;9999999;145;912;CESTER GRETA; ;SEGGIO N.15 LIQUIDAZIONE E PAGAMENTO ONORARI COMPONENTI SEGGI ELETTORALI CONSULTAZIONI ELETTORALI DEL 20/21 SETTEMBRE 2020;21/09/2020;649;0;678;1;Spese correnti;3;Acquisto di beni e servizi;2;Acquisto di servizi;99;Altri servizi;4;Altre spese per consultazioni elettorali dell'ente;23/09/2020
2880;3;9999999;145;912;DONATI CINZIA; ;SEGGIO N.15 LIQUIDAZIONE E PAGAMENTO ONORARI COMPONENTI SEGGI ELETTORALI CONSULTAZIONI ELETTORALI DEL 20/21 SETTEMBRE 2020;21/09/2020;649;0;678;1;Spese correnti;3;Acquisto di beni e servizi;2;Acquisto di servizi;99;Altri servizi;4;Altre spese per consultazioni elettorali dell'ente;23/09/2020
2880;4;9999999;145;912;MINTO GIORGIA; ;SEGGIO N.15 LIQUIDAZIONE E PAGAMENTO ONORARI COMPONENTI SEGGI ELETTORALI CONSULTAZIONI ELETTORALI DEL 20/21 SETTEMBRE 2020;21/09/2020;649;0;678;1;Spese correnti;3;Acquisto di beni e servizi;2;Acquisto di servizi;99;Altri servizi;4;Altre spese per consultazioni elettorali dell'ente;28/09/2020
2880;5;9999999;187;912;RIGHETTO ALESSIA; ;SEGGIO N.15 LIQUIDAZIONE E PAGAMENTO ONORARI COMPONENTI SEGGI ELETTORALI CONSULTAZIONI ELETTORALI DEL 20/21 SETTEMBRE 2020;21/09/2020;649;0;678;1;Spese correnti;3;Acquisto di beni e servizi;2;Acquisto di servizi;99;Altri servizi;4;Altre spese per consultazioni elettorali dell'ente;23/09/2020
2880;6;9999999;145;912;SIMIONATO MICHAEL; ;SEGGIO N.15 LIQUIDAZIONE E PAGAMENTO ONORARI COMPONENTI SEGGI ELETTORALI CONSULTAZIONI ELETTORALI DEL 20/21 SETTEMBRE 2020;21/09/2020;649;0;678;1;Spese correnti;3;Acquisto di beni e servizi;2;Acquisto di servizi;99;Altri servizi;4;Altre spese per consultazioni elettorali dell'ente;23/09/2020
2881;1;9999999;145;912;COSTANZO MARTA; ;SEGGIO N.16 LIQUIDAZIONE E PAGAMENTO ONORARI COMPONENTI SEGGI ELETTORALI CONSULTAZIONI ELETTORALI DEL 20/21 SETTEMBRE 2020;21/09/2020;649;0;678;1;Spese correnti;3;Acquisto di beni e servizi;2;Acquisto di servizi;99;Altri servizi;4;Altre spese per consultazioni elettorali dell'ente;23/09/2020
2881;2;9999999;145;912;FAVERO BRUNO; ;SEGGIO N.16 LIQUIDAZIONE E PAGAMENTO ONORARI COMPONENTI SEGGI ELETTORALI CONSULTAZIONI ELETTORALI DEL 20/21 SETTEMBRE 2020;21/09/2020;649;0;678;1;Spese correnti;3;Acquisto di beni e servizi;2;Acquisto di servizi;99;Altri servizi;4;Altre spese per consultazioni elettorali dell'ente;23/09/2020
2881;3;9999999;145;912;GERVASUTTI PIETROBON ARIANNA; ;SEGGIO N.16 LIQUIDAZIONE E PAGAMENTO ONORARI COMPONENTI SEGGI ELETTORALI CONSULTAZIONI ELETTORALI DEL 20/21 SETTEMBRE 2020;21/09/2020;649;0;678;1;Spese correnti;3;Acquisto di beni e servizi;2;Acquisto di servizi;99;Altri servizi;4;Altre spese per consultazioni elettorali dell'ente;30/09/2020
2881;4;9999999;145;912;PERIN VERONICA; ;SEGGIO N.16 LIQUIDAZIONE E PAGAMENTO ONORARI COMPONENTI SEGGI ELETTORALI CONSULTAZIONI ELETTORALI DEL 20/21 SETTEMBRE 2020;21/09/2020;649;0;678;1;Spese correnti;3;Acquisto di beni e servizi;2;Acquisto di servizi;99;Altri servizi;4;Altre spese per consultazioni elettorali dell'ente;23/09/2020
2881;5;9999999;145;912;STECCA LUCA; ;SEGGIO N.16 LIQUIDAZIONE E PAGAMENTO ONORARI COMPONENTI SEGGI ELETTORALI CONSULTAZIONI ELETTORALI DEL 20/21 SETTEMBRE 2020;21/09/2020;649;0;678;1;Spese correnti;3;Acquisto di beni e servizi;2;Acquisto di servizi;99;Altri servizi;4;Altre spese per consultazioni elettorali dell'ente;23/09/2020
2881;6;9999999;187;912;STECCA RICCARDO; ;SEGGIO N.16 LIQUIDAZIONE E PAGAMENTO ONORARI COMPONENTI SEGGI ELETTORALI CONSULTAZIONI ELETTORALI DEL 20/21 SETTEMBRE 2020;21/09/2020;649;0;678;1;Spese correnti;3;Acquisto di beni e servizi;2;Acquisto di servizi;99;Altri servizi;4;Altre spese per consultazioni elettorali dell'ente;23/09/2020
2882;1;9999999;145;912;BOZZA NICOLO' MARIA; ;SEGGIO N.17 LIQUIDAZIONE E PAGAMENTO ONORARI COMPONENTI SEGGI ELETTORALI CONSULTAZIONI ELETTORALI DEL 20/21 SETTEMBRE 2020;21/09/2020;649;0;678;1;Spese correnti;3;Acquisto di beni e servizi;2;Acquisto di servizi;99;Altri servizi;4;Altre spese per consultazioni elettorali dell'ente;23/09/2020
2882;2;9999999;187;912;CARRARO MARCO; ;SEGGIO N.17 LIQUIDAZIONE E PAGAMENTO ONORARI COMPONENTI SEGGI ELETTORALI CONSULTAZIONI ELETTORALI DEL 20/21 SETTEMBRE 2020;21/09/2020;649;0;678;1;Spese correnti;3;Acquisto di beni e servizi;2;Acquisto di servizi;99;Altri servizi;4;Altre spese per consultazioni elettorali dell'ente;23/09/2020
2882;3;9999999;145;912;FERRARI ELEONORA; ;SEGGIO N.17 LIQUIDAZIONE E PAGAMENTO ONORARI COMPONENTI SEGGI ELETTORALI CONSULTAZIONI ELETTORALI DEL 20/21 SETTEMBRE 2020;21/09/2020;649;0;678;1;Spese correnti;3;Acquisto di beni e servizi;2;Acquisto di servizi;99;Altri servizi;4;Altre spese per consultazioni elettorali dell'ente;23/09/2020
2882;4;9999999;145;912;LOMI MARGHERITA; ;SEGGIO N.17 LIQUIDAZIONE E PAGAMENTO ONORARI COMPONENTI SEGGI ELETTORALI CONSULTAZIONI ELETTORALI DEL 20/21 SETTEMBRE 2020;21/09/2020;649;0;678;1;Spese correnti;3;Acquisto di beni e servizi;2;Acquisto di servizi;99;Altri servizi;4;Altre spese per consultazioni elettorali dell'ente;23/09/2020
2882;5;9999999;145;912;PASTORIN DIEGO; ;SEGGIO N.17 LIQUIDAZIONE E PAGAMENTO ONORARI COMPONENTI SEGGI ELETTORALI CONSULTAZIONI ELETTORALI DEL 20/21 SETTEMBRE 2020;21/09/2020;649;0;678;1;Spese correnti;3;Acquisto di beni e servizi;2;Acquisto di servizi;99;Altri servizi;4;Altre spese per consultazioni elettorali dell'ente;23/09/2020
2882;6;9999999;145;912;ZAVAN LAURA; ;SEGGIO N.17 LIQUIDAZIONE E PAGAMENTO ONORARI COMPONENTI SEGGI ELETTORALI CONSULTAZIONI ELETTORALI DEL 20/21 SETTEMBRE 2020;21/09/2020;649;0;678;1;Spese correnti;3;Acquisto di beni e servizi;2;Acquisto di servizi;99;Altri servizi;4;Altre spese per consultazioni elettorali dell'ente;23/09/2020
2883;1;9999999;145;912;BARIZZA SARA RENATA; ;SEGGIO N.18 LIQUIDAZIONE E PAGAMENTO ONORARI COMPONENTI SEGGI ELETTORALI CONSULTAZIONI ELETTORALI DEL 20/21 SETTEMBRE 2020;21/09/2020;649;0;678;1;Spese correnti;3;Acquisto di beni e servizi;2;Acquisto di servizi;99;Altri servizi;4;Altre spese per consultazioni elettorali dell'ente;23/09/2020
2883;2;9999999;187;912;BETTIN MATTEO; ;SEGGIO N.18 LIQUIDAZIONE E PAGAMENTO ONORARI COMPONENTI SEGGI ELETTORALI CONSULTAZIONI ELETTORALI DEL 20/21 SETTEMBRE 2020;21/09/2020;649;0;678;1;Spese correnti;3;Acquisto di beni e servizi;2;Acquisto di servizi;99;Altri servizi;4;Altre spese per consultazioni elettorali dell'ente;23/09/2020
2883;3;9999999;145;912;BUSATTO LORETTA; ;SEGGIO N.18 LIQUIDAZIONE E PAGAMENTO ONORARI COMPONENTI SEGGI ELETTORALI CONSULTAZIONI ELETTORALI DEL 20/21 SETTEMBRE 2020;21/09/2020;649;0;678;1;Spese correnti;3;Acquisto di beni e servizi;2;Acquisto di servizi;99;Altri servizi;4;Altre spese per consultazioni elettorali dell'ente;23/09/2020
2883;4;9999999;145;912;MANENTI MARCO; ;SEGGIO N.18 LIQUIDAZIONE E PAGAMENTO ONORARI COMPONENTI SEGGI ELETTORALI CONSULTAZIONI ELETTORALI DEL 20/21 SETTEMBRE 2020;21/09/2020;649;0;678;1;Spese correnti;3;Acquisto di beni e servizi;2;Acquisto di servizi;99;Altri servizi;4;Altre spese per consultazioni elettorali dell'ente;23/09/2020
2883;5;9999999;145;912;MARESCOTTI CLARISSA; ;SEGGIO N.18 LIQUIDAZIONE E PAGAMENTO ONORARI COMPONENTI SEGGI ELETTORALI CONSULTAZIONI ELETTORALI DEL 20/21 SETTEMBRE 2020;21/09/2020;649;0;678;1;Spese correnti;3;Acquisto di beni e servizi;2;Acquisto di servizi;99;Altri servizi;4;Altre spese per consultazioni elettorali dell'ente;23/09/2020
2883;6;9999999;145;912;SACCON ILARIA; ;SEGGIO N.18 LIQUIDAZIONE E PAGAMENTO ONORARI COMPONENTI SEGGI ELETTORALI CONSULTAZIONI ELETTORALI DEL 20/21 SETTEMBRE 2020;21/09/2020;649;0;678;1;Spese correnti;3;Acquisto di beni e servizi;2;Acquisto di servizi;99;Altri servizi;4;Altre spese per consultazioni elettorali dell'ente;23/09/2020
2884;1;9999999;97,6;97,6;ECOLOGY COOP SPA;Z952CA2711;SALDO Fatt.n. 208PA  del 27/08/2020 LUGLIO 2020 - INTERVENTI A CHIAMATA DI PULIZIA UFFICI COMUNALI;22/09/2020;142;0;441;1;Spese correnti;3;Acquisto di beni e servizi;2;Acquisto di servizi;13;Servizi ausiliari per il funzionamento dell'ente;2;Servizi di pulizia e lavanderia;30/09/2020
2885;1;9999999;134,36;134,36;C.E.I.F. DI BESSEGA VANNI;Z182BDA094;ACCONTO Fatt.n. 1-8  del 31/08/2020 MATERIALE VARIO DI FERRAMENTA PER MANUTENZIONI;22/09/2020;522;0;113;1;Spese correnti;3;Acquisto di beni e servizi;1;Acquisto di beni;2;Altri beni di consumo;999;Altri beni e materiali di consumo n.a.c.;30/09/2020
2886;1;9999999;266,25;266,25;C.E.I.F. DI BESSEGA VANNI;Z182BDA094;SALDO Fatt.n. 1-8  del 31/08/2020 MATERIALE VARIO DI FERRAMENTA PER MANUTENZIONI;22/09/2020;522;0;629;1;Spese correnti;3;Acquisto di beni e servizi;1;Acquisto di beni;2;Altri beni di consumo;999;Altri beni e materiali di consumo n.a.c.;30/09/2020
2887;1;9999999;12.642,51;12.642,51;L'ISOLA SOC. COOPERATIVA SOCIALE;ZD62C76405;SALDO Fatt.n. 18/PA  del 04/09/2020 MANUTENZIONE VERDE PUBBLICO -  SAL N. 3;22/09/2020;2549;0;373;1;Spese correnti;3;Acquisto di beni e servizi;2;Acquisto di servizi;99;Altri servizi;9;Acquisto di sevizi per verde e arredo urbano;30/09/2020
2888;1;9999999;55,49;55,49;MEB SRL;Z012C19516;SALDO Fatt.n. 040268  del 31/08/2020 MATERIALE ELETTRICO PER MANUTENZIONI;22/09/2020;3538;0;188;1;Spese correnti;3;Acquisto di beni e servizi;2;Acquisto di servizi;9;Manutenzione ordinaria e riparazioni;4;Manutenzione ordinaria e riparazioni di impianti e macchinari;30/09/2020
2889;1;9999999;17,62;168,73;SONEPAR ITALIA  SPA;Z072C194BE;SALDO Fatt.n. 0031167284  del 31/08/2020 MATERIALE ELETTRICO PER MANUTENZIONI;22/09/2020;3538;0;192;1;Spese correnti;3;Acquisto di beni e servizi;2;Acquisto di servizi;9;Manutenzione ordinaria e riparazioni;4;Manutenzione ordinaria e riparazioni di impianti e macchinari;30/09/2020
2889;2;9999999;20,2;168,73;SONEPAR ITALIA  SPA;Z072C194BE;SALDO Fatt.n. 0031167286  del 31/08/2020 MATERIALE ELETTRICO PER MANUTENZIONI;22/09/2020;3538;0;192;1;Spese correnti;3;Acquisto di beni e servizi;2;Acquisto di servizi;9;Manutenzione ordinaria e riparazioni;4;Manutenzione ordinaria e riparazioni di impianti e macchinari;30/09/2020
2889;3;9999999;24,01;168,73;SONEPAR ITALIA  SPA;Z072C194BE;SALDO Fatt.n. 0031167285  del 31/08/2020 MATERIALE ELETTRICO PER MANUTENZIONI;22/09/2020;3538;0;192;1;Spese correnti;3;Acquisto di beni e servizi;2;Acquisto di servizi;9;Manutenzione ordinaria e riparazioni;4;Manutenzione ordinaria e riparazioni di impianti e macchinari;30/09/2020
2889;4;9999999;106,9;168,73;SONEPAR ITALIA  SPA;Z072C194BE;SALDO Fatt.n. 0031167287  del 31/08/2020 MATERIALE ELETTRICO PER MANUTENZIONI;22/09/2020;3538;0;192;1;Spese correnti;3;Acquisto di beni e servizi;2;Acquisto di servizi;9;Manutenzione ordinaria e riparazioni;4;Manutenzione ordinaria e riparazioni di impianti e macchinari;30/09/2020
2890;1;9999999;207,9;207,9;EPIU' SRL - COSTRUIRE INSIEME;ZA72C6C92F;SALDO Fatt.n. 14631  del 31/08/2020 MATERIALI EDILI PER MANUTENZIONI;22/09/2020;3538;0;367;1;Spese correnti;3;Acquisto di beni e servizi;2;Acquisto di servizi;9;Manutenzione ordinaria e riparazioni;8;Manutenzione ordinaria e riparazioni di beni immobili;30/09/2020
2891;1;9999999;39,75;39,75;IDRONORD SRL;ZA22C6C8D1;SALDO Fatt.n. 1016/1  del 31/08/2020 LA FORNITURA DI MATERIALE EDILE - STRADALE;22/09/2020;3538;0;369;1;Spese correnti;3;Acquisto di beni e servizi;2;Acquisto di servizi;9;Manutenzione ordinaria e riparazioni;8;Manutenzione ordinaria e riparazioni di beni immobili;30/09/2020
2892;1;9999999;778,97;778,97;P. & G. AUTOSERVICE SNC;Z0C2E07A8D;SALDO Fatt.n. 3PA  del 04/09/2020 MANUTENZIONE AUTOMEZZI;22/09/2020;3538;0;669;1;Spese correnti;3;Acquisto di beni e servizi;2;Acquisto di servizi;9;Manutenzione ordinaria e riparazioni;1;Manutenzione ordinaria e riparazioni di mezzi di trasporto ad uso civile, di sicurezza e ordine pubblico;30/09/2020
2893;1;9999999;19.419,17;19.419,17;SE.M.PRE SRL - SERVIZI-MULTIPRESTAZIONI;ZF42D3BA5A;SALDO Fatt.n. 257/50  del 31/08/2020 LAVORI DI MANUTENZIONE STRAORDINARIA E MIGLIORAMENTO DELLA SEGNALETICA STRADALE VERTICALE E ORIZZONTALE NEL TERRITORIO COMUNALE;22/09/2020;8565;0;494;2;Spese in conto capitale;2;Investimenti fissi lordi e acquisto di terreni;1;Beni materiali;9;Beni immobili;12;Infrastrutture stradali;30/09/2020
2894;1;9999999;270;270;OMESSO NOMINATIVO NEL RISPETTO DELLA NORMATIVA SULLA PROTEZIONE DATI PERSONALI; ;SETTEMBRE 2020 INT.RETTA CASA DI RIPOSO;22/09/2020;3844;0;666;1;Spese correnti;3;Acquisto di beni e servizi;2;Acquisto di servizi;15;Contratti di servizio pubblico;8;Contratti di servizio di assistenza sociale residenziale e semiresidenziale;30/09/2020
2895;1;9999999;456;456;OMESSO NOMINATIVO NEL RISPETTO DELLA NORMATIVA SULLA PROTEZIONE DATI PERSONALI; ;SETTEMBRE 2020 INT.RETTA CASA DI RIPOSO;22/09/2020;3844;0;541;1;Spese correnti;3;Acquisto di beni e servizi;2;Acquisto di servizi;15;Contratti di servizio pubblico;8;Contratti di servizio di assistenza sociale residenziale e semiresidenziale;30/09/2020
2896;1;9999999;380;380;OMESSO NOMINATIVO NEL RISPETTO DELLA NORMATIVA SULLA PROTEZIONE DATI PERSONALI; ;SETTEMBRE 2020 INT.RETTA CASA DI RIPOSO DON ORIONE DI TREBASELEGHE;22/09/2020;3844;0;545;1;Spese correnti;3;Acquisto di beni e servizi;2;Acquisto di servizi;15;Contratti di servizio pubblico;8;Contratti di servizio di assistenza sociale residenziale e semiresidenziale;30/09/2020
2897;1;9999999;300;300;OMESSO NOMINATIVO NEL RISPETTO DELLA NORMATIVA SULLA PROTEZIONE DATI PERSONALI; ;SETTEMBRE 2020 INT.RETTA CASA DI RIPOSO;22/09/2020;3844;0;590;1;Spese correnti;3;Acquisto di beni e servizi;2;Acquisto di servizi;15;Contratti di servizio pubblico;8;Contratti di servizio di assistenza sociale residenziale e semiresidenziale;30/09/2020
2898;1;9999999;588;588;OMESSO NOMINATIVO NEL RISPETTO DELLA NORMATIVA SULLA PROTEZIONE DATI PERSONALI; ;SETTEMBRE 2020 INTEGRAZIONE RETTA CASA DI RIPOSO RELAXXI DI NOALE -;22/09/2020;3844;0;546;1;Spese correnti;3;Acquisto di beni e servizi;2;Acquisto di servizi;15;Contratti di servizio pubblico;8;Contratti di servizio di assistenza sociale residenziale e semiresidenziale;30/09/2020
2899;1;9999999;887;887;OMESSO NOMINATIVO NEL RISPETTO DELLA NORMATIVA SULLA PROTEZIONE DATI PERSONALI; ;SETTEMBRE 2020 INTEGRAZIONE RETTA CASA DI RIPOSO IPAB L.MARIUTTO DI MIRANO A FAVORE DI UTENTE;22/09/2020;3844;0;544;1;Spese correnti;3;Acquisto di beni e servizi;2;Acquisto di servizi;15;Contratti di servizio pubblico;8;Contratti di servizio di assistenza sociale residenziale e semiresidenziale;30/09/2020
2900;1;9999999;558;5.022,00;OMESSO NOMINATIVO NEL RISPETTO DELLA NORMATIVA SULLA PROTEZIONE DATI PERSONALI; ;SETTEMBRE 2020 INT.RETTA CASA DI RIPOSO;23/09/2020;3844;0;796;1;Spese correnti;3;Acquisto di beni e servizi;2;Acquisto di servizi;15;Contratti di servizio pubblico;8;Contratti di servizio di assistenza sociale residenziale e semiresidenziale;30/09/2020
2900;2;9999999;4.464,00;5.022,00;OMESSO NOMINATIVO NEL RISPETTO DELLA NORMATIVA SULLA PROTEZIONE DATI PERSONALI; ;GENNAIO AGOSTO 2020/ INT.RETTA CASA DI RIPOSO;23/09/2020;3844;0;796;1;Spese correnti;3;Acquisto di beni e servizi;2;Acquisto di servizi;15;Contratti di servizio pubblico;8;Contratti di servizio di assistenza sociale residenziale e semiresidenziale;30/09/2020
2901;1;9999999;658;658;OMESSO NOMINATIVO NEL RISPETTO DELLA NORMATIVA SULLA PROTEZIONE DATI PERSONALI; ;SETTEMBRE 21020 INT.RETTA;23/09/2020;3844;0;798;1;Spese correnti;3;Acquisto di beni e servizi;2;Acquisto di servizi;15;Contratti di servizio pubblico;8;Contratti di servizio di assistenza sociale residenziale e semiresidenziale;30/09/2020
2902;1;9999999;500;500;SARV ANTINCENDI SRL;Z0A238DAD1;SALDO Fatt.n. PA0000009  del 24/08/2020 SALDO PRIMO SEMESTRE 2020 CONTROLLO  ESTINTORI PORTATILI;24/09/2020;1938;0;372;1;Spese correnti;3;Acquisto di beni e servizi;2;Acquisto di servizi;9;Manutenzione ordinaria e riparazioni;11;Manutenzione ordinaria e riparazioni di altri beni materiali;30/09/2020
2903;1;9999999;165,87;165,87;SOENERGY S.R.L.;8300710A94;SALDO Fatt.n. 201282888  del 11/09/2020 AGOSTO 2020 - CONSUMI ALLOGGIO VIA OLIMPIA SMS;24/09/2020;134;31;451;1;Spese correnti;3;Acquisto di beni e servizi;2;Acquisto di servizi;5;Utenze e canoni;6;Gas;30/09/2020
2904;1;9999999;1.314,99;1.314,99;SOENERGY S.R.L.;8300710A94;SALDO Fatt.n. 201275414  del 11/09/2020 AGOSTO 2020 - CONSUMI SEDE MUNICIPALE;24/09/2020;134;31;451;1;Spese correnti;3;Acquisto di beni e servizi;2;Acquisto di servizi;5;Utenze e canoni;6;Gas;30/09/2020
2905;1;9999999;11,85;11,85;SOENERGY S.R.L.;8300710A94;SALDO Fatt.n. 201275407  del 11/09/2020 AGOSTO 2020 - CONSUMI ALLOGGIO VIA DON GALLERANI CALTANA;24/09/2020;134;31;451;1;Spese correnti;3;Acquisto di beni e servizi;2;Acquisto di servizi;5;Utenze e canoni;6;Gas;30/09/2020
2906;1;9999999;14;14;SOENERGY S.R.L.;8300710A94;ACCONTO Fatt.n. 201275402  del 11/09/2020 AGOSTO 2020 - CONSUMI SC. ELEM - PALESTRA STIGLIANO;24/09/2020;1334;30;452;1;Spese correnti;3;Acquisto di beni e servizi;2;Acquisto di servizi;5;Utenze e canoni;6;Gas;30/09/2020
2907;1;9999999;11,88;11,88;SOENERGY S.R.L.;8300710A94;ACCONTO Fatt.n. 201275402  del 11/09/2020 AGOSTO 2020 - CONSUMI SC. ELEM - PALESTRA STIGLIANO;24/09/2020;1334;30;452;1;Spese correnti;3;Acquisto di beni e servizi;2;Acquisto di servizi;5;Utenze e canoni;6;Gas;30/09/2020
2908;1;9999999;39,88;39,88;SOENERGY S.R.L.;8300710A94;SALDO Fatt.n. 201275406  del 11/09/2020 AGOSTO 2020 - CONSUMI SC. ELEM. CALTANA;24/09/2020;1334;30;452;1;Spese correnti;3;Acquisto di beni e servizi;2;Acquisto di servizi;5;Utenze e canoni;6;Gas;30/09/2020
2909;1;9999999;8;8;SOENERGY S.R.L.;8300710A94;ACCONTO Fatt.n. 201275410  del 11/09/2020 AGOSTO 2020 - CONSUMI SC. ELEM-PALESTRA-ASILO S.ANGELO;24/09/2020;1334;30;452;1;Spese correnti;3;Acquisto di beni e servizi;2;Acquisto di servizi;5;Utenze e canoni;6;Gas;30/09/2020
2910;1;9999999;23,88;23,88;SOENERGY S.R.L.;8300710A94;ACCONTO Fatt.n. 201275410  del 11/09/2020 AGOSTO 2020 - CONSUMI SC. ELEM-PALESTRA-ASILO S.ANGELO;24/09/2020;1334;30;452;1;Spese correnti;3;Acquisto di beni e servizi;2;Acquisto di servizi;5;Utenze e canoni;6;Gas;30/09/2020
2911;1;9999999;39,88;39,88;SOENERGY S.R.L.;8300710A94;SALDO Fatt.n. 201275404  del 11/09/2020 AGOSTO 2020 - CONSUMI SC. ELEM-SC. MEDIA SMS;24/09/2020;1334;30;452;1;Spese correnti;3;Acquisto di beni e servizi;2;Acquisto di servizi;5;Utenze e canoni;6;Gas;30/09/2020
2912;1;9999999;19,94;19,94;SOENERGY S.R.L.;8300710A94;ACCONTO Fatt.n. 201275412  del 11/09/2020 AGOSTO 2020 - CONSUMI PALESTRA CALTANA;24/09/2020;1334;30;452;1;Spese correnti;3;Acquisto di beni e servizi;2;Acquisto di servizi;5;Utenze e canoni;6;Gas;30/09/2020
2913;1;9999999;8;8;SOENERGY S.R.L.;8300710A94;ACCONTO Fatt.n. 201275409  del 11/09/2020 AGOSTO 2020 - CONSUMI SC. ELEM - PALESTRA CASELLE;24/09/2020;1334;30;452;1;Spese correnti;3;Acquisto di beni e servizi;2;Acquisto di servizi;5;Utenze e canoni;6;Gas;30/09/2020
2914;1;9999999;23,88;23,88;SOENERGY S.R.L.;8300710A94;ACCONTO Fatt.n. 201275409  del 11/09/2020 AGOSTO 2020 - CONSUMI SC. ELEM - PALESTRA CASELLE;24/09/2020;1334;30;452;1;Spese correnti;3;Acquisto di beni e servizi;2;Acquisto di servizi;5;Utenze e canoni;6;Gas;30/09/2020
2915;1;9999999;0,8;0,8;SOENERGY S.R.L.;8300710A94;ACCONTO Fatt.n. 201275411  del 11/09/2020 AGOSTO 2020 - CONSUMISC. ELEM - PALESTRA VETERNIGO;24/09/2020;1334;30;452;1;Spese correnti;3;Acquisto di beni e servizi;2;Acquisto di servizi;5;Utenze e canoni;6;Gas;30/09/2020
2916;1;9999999;1,36;1,36;SOENERGY S.R.L.;8300710A94;ACCONTO Fatt.n. 201275411  del 11/09/2020 AGOSTO 2020 - CONSUMISC. ELEM - PALESTRA VETERNIGO;24/09/2020;1334;30;452;1;Spese correnti;3;Acquisto di beni e servizi;2;Acquisto di servizi;5;Utenze e canoni;6;Gas;30/09/2020
2917;1;9999999;19,94;19,94;SOENERGY S.R.L.;8300710A94;ACCONTO Fatt.n. 201275403  del 11/09/2020 AGOSTO 2020 - CONSUMI PALESTRA SMS;24/09/2020;1334;30;452;1;Spese correnti;3;Acquisto di beni e servizi;2;Acquisto di servizi;5;Utenze e canoni;6;Gas;30/09/2020
2918;1;9999999;14;14;SOENERGY S.R.L.;8300710A94;SALDO Fatt.n. 201275402  del 11/09/2020 AGOSTO 2020 - CONSUMI SC. ELEM - PALESTRA STIGLIANO;24/09/2020;1934;0;454;1;Spese correnti;3;Acquisto di beni e servizi;2;Acquisto di servizi;5;Utenze e canoni;6;Gas;30/09/2020
2919;1;9999999;8;8;SOENERGY S.R.L.;8300710A94;SALDO Fatt.n. 201275410  del 11/09/2020 AGOSTO 2020 - CONSUMI SC. ELEM-PALESTRA-ASILO S.ANGELO;24/09/2020;1934;0;454;1;Spese correnti;3;Acquisto di beni e servizi;2;Acquisto di servizi;5;Utenze e canoni;6;Gas;30/09/2020
2920;1;9999999;19,94;19,94;SOENERGY S.R.L.;8300710A94;SALDO Fatt.n. 201275412  del 11/09/2020 AGOSTO 2020 - CONSUMI PALESTRA CALTANA;24/09/2020;1934;0;454;1;Spese correnti;3;Acquisto di beni e servizi;2;Acquisto di servizi;5;Utenze e canoni;6;Gas;30/09/2020
2921;1;9999999;49,26;49,26;SOENERGY S.R.L.;8300710A94;SALDO Fatt.n. 201275408  del 11/09/2020 AGOSTO 2020 - CONSUMI IMP. SPORT. CASELLE;24/09/2020;1934;0;454;1;Spese correnti;3;Acquisto di beni e servizi;2;Acquisto di servizi;5;Utenze e canoni;6;Gas;30/09/2020
2922;1;9999999;8;8;SOENERGY S.R.L.;8300710A94;SALDO Fatt.n. 201275409  del 11/09/2020 AGOSTO 2020 - CONSUMI SC. ELEM - PALESTRA CASELLE;24/09/2020;1934;0;454;1;Spese correnti;3;Acquisto di beni e servizi;2;Acquisto di servizi;5;Utenze e canoni;6;Gas;30/09/2020
2923;1;9999999;0,8;0,8;SOENERGY S.R.L.;8300710A94;SALDO Fatt.n. 201275411  del 11/09/2020 AGOSTO 2020 - CONSUMISC. ELEM - PALESTRA VETERNIGO;24/09/2020;1934;0;454;1;Spese correnti;3;Acquisto di beni e servizi;2;Acquisto di servizi;5;Utenze e canoni;6;Gas;30/09/2020
2924;1;9999999;19,94;19,94;SOENERGY S.R.L.;8300710A94;SALDO Fatt.n. 201275403  del 11/09/2020 AGOSTO 2020 - CONSUMI PALESTRA SMS;24/09/2020;1934;0;454;1;Spese correnti;3;Acquisto di beni e servizi;2;Acquisto di servizi;5;Utenze e canoni;6;Gas;30/09/2020
2925;1;9999999;15,97;15,97;SOENERGY S.R.L.;8300710A94;SALDO Fatt.n. 201275413  del 11/09/2020 AGOSTO 2020 - CONSUMI MAGAZZINO COMUNALE;24/09/2020;3534;0;455;1;Spese correnti;3;Acquisto di beni e servizi;2;Acquisto di servizi;5;Utenze e canoni;6;Gas;30/09/2020
2926;1;9999999;39,88;39,88;SOENERGY S.R.L.;8300710A94;SALDO Fatt.n. 201275405  del 11/09/2020 AGOSTO 2020 - CONSUMI VILLA FARSETTI;24/09/2020;4234;0;456;1;Spese correnti;3;Acquisto di beni e servizi;2;Acquisto di servizi;5;Utenze e canoni;6;Gas;30/09/2020
2927;1;9999999;904,2;904,2;VALEX SPA; ;LIQUIDAZIONE DITTA VALEX RIMBORSO ASSENZE RETRIBUITE VICE SINDACO ARPI ALESSANDRO MESI DI LUGLIO E AGOSTO 2020.;24/09/2020;30;99;28;1;Spese correnti;3;Acquisto di beni e servizi;2;Acquisto di servizi;1;Organi e incarichi istituzionali dell'amministrazione;1;Organi istituzionali dell'amministrazione - Indennità;30/09/2020
2928;1;9999999;687,2;687,2;RANDSTAD ITALIA SPA SOC.UNIPERSONALE; ;SALDO Fatt.n. 20FVRM000650  del 10/09/2020 ESPLETAMENTO CARICHE ELETTIVE MOROSIN LUCA - GENNAIO - GIUGNO 2020;24/09/2020;30;99;29;1;Spese correnti;3;Acquisto di beni e servizi;2;Acquisto di servizi;1;Organi e incarichi istituzionali dell'amministrazione;1;Organi istituzionali dell'amministrazione - Indennità;30/09/2020
2929;1;9999999;62,22;62,22;MAGGIOLI SPA;ZED2DBF37E;SALDO Fatt.n. 0002131012  del 31/08/2020 FORNITURA N. 100 CARTOLINE AVVISO DI RICEVIMENTO PER NOTIFICA ATTI GIUDIZIARI A MEZZO POSTA CON CODICE A BARRE;24/09/2020;121;6;598;1;Spese correnti;3;Acquisto di beni e servizi;1;Acquisto di beni;2;Altri beni di consumo;1;Carta, cancelleria e stampati;30/09/2020
2930;1;9999999;1.257,38;1.257,38;FORATO CANCELLERIA S.R.L.;Z802DBD427;SALDO Fatt.n. 540/14  del 31/08/2020 FORNITURA MATERIALE DI CANCELLERIA PER GLI UFFICI COMUNALI 2020;24/09/2020;121;6;605;1;Spese correnti;3;Acquisto di beni e servizi;1;Acquisto di beni;2;Altri beni di consumo;1;Carta, cancelleria e stampati;30/09/2020
2931;1;9999999;3.589,13;3.589,13;ECOLOGY COOP SPA;Z952CA2711;SALDO Fatt.n. 212PA  del 04/09/2020 AGOSTO 2020 -  SERVIZIO ORDINARIO DI PULIZIA UFFICI COMUNALI;24/09/2020;142;0;441;1;Spese correnti;3;Acquisto di beni e servizi;2;Acquisto di servizi;13;Servizi ausiliari per il funzionamento dell'ente;2;Servizi di pulizia e lavanderia;30/09/2020
2932;1;9999999;521,55;521,55;MYO SPA;ZEF2E13F0A;SALDO Fatt.n. 2040/200022994  del 11/09/2020 KIT ELEZIONI SEGNALETICA COVID-19;24/09/2020;649;0;675;1;Spese correnti;3;Acquisto di beni e servizi;2;Acquisto di servizi;99;Altri servizi;4;Altre spese per consultazioni elettorali dell'ente;30/09/2020
2933;1;9999999;854;854;ACCATRE SRL;ZDB25C4D80;SALDO Fatt.n. 200656/1  del 09/09/2020 CONVENZIONE PER IL SERVIZIO DI BILANCIO CONSOLIDATO ANNO 2020;24/09/2020;748;0;1244;1;Spese correnti;3;Acquisto di beni e servizi;2;Acquisto di servizi;19;Servizi informatici e di telecomunicazioni;7;Servizi di gestione documentale;30/09/2020
2934;1;9999999;3.294,73;3.294,73;ARTEA  SNC DI LION & SALVIATO;Z1F2C953D6;SALDO Fatt.n. 26-2020/PA  del 05/09/2020 LUGLIO 2020 - OPERAZIONI EFFETTUATE NEI CIMITERI DEL COMUNE DI SANTA MARIA DI SALA;24/09/2020;4438;0;388;1;Spese correnti;3;Acquisto di beni e servizi;2;Acquisto di servizi;9;Manutenzione ordinaria e riparazioni;8;Manutenzione ordinaria e riparazioni di beni immobili;30/09/2020
2936;1;9999999;390;390;OMESSO NOMINATIVO NEL RISPETTO DELLA NORMATIVA SULLA PROTEZIONE DATI PERSONALI; ;TERZA TRANCHE 2020 ASSEGNI DI SOLLIEVO;28/09/2020;3957;50;811;1;Spese correnti;4;Trasferimenti correnti;2;Trasferimenti correnti a Famiglie;2;Interventi assistenziali;999;Altri assegni e sussidi assistenziali;30/09/2020
2937;1;9999999;660;660;OMESSO NOMINATIVO NEL RISPETTO DELLA NORMATIVA SULLA PROTEZIONE DATI PERSONALI; ;TERZA TRANCHE 2020 ASSEGNI DI SOLLIEVO;28/09/2020;3957;50;812;1;Spese correnti;4;Trasferimenti correnti;2;Trasferimenti correnti a Famiglie;2;Interventi assistenziali;999;Altri assegni e sussidi assistenziali;30/09/2020
2938;1;9999999;390;390;OMESSO NOMINATIVO NEL RISPETTO DELLA NORMATIVA SULLA PROTEZIONE DATI PERSONALI; ;TERZA TRANCHE 2020 ASSEGNI DI SOLLIEVO;28/09/2020;3957;50;813;1;Spese correnti;4;Trasferimenti correnti;2;Trasferimenti correnti a Famiglie;2;Interventi assistenziali;999;Altri assegni e sussidi assistenziali;30/09/2020
2939;1;9999999;660;660;OMESSO NOMINATIVO NEL RISPETTO DELLA NORMATIVA SULLA PROTEZIONE DATI PERSONALI; ;TERZA TRANCHE 2020 ASSEGNI DI SOLLIEVO;28/09/2020;3957;50;814;1;Spese correnti;4;Trasferimenti correnti;2;Trasferimenti correnti a Famiglie;2;Interventi assistenziali;999;Altri assegni e sussidi assistenziali;30/09/2020
2940;1;9999999;1.930,75;1.930,75;OMESSO NOMINATIVO NEL RISPETTO DELLA NORMATIVA SULLA PROTEZIONE DATI PERSONALI;7841279C1F;AGOSTO 2020 RETTA;28/09/2020;3844;0;599;1;Spese correnti;3;Acquisto di beni e servizi;2;Acquisto di servizi;15;Contratti di servizio pubblico;8;Contratti di servizio di assistenza sociale residenziale e semiresidenziale;29/09/2020
2941;1;9999999;366;366;EUREKA SRL UNIPERSONALE;ZB82CD227B;SALDO Fatt.n. 157  del 10/09/2020 CARTUCCIA DI RICAMBIO PER EVERPURE S100;28/09/2020;548;0;625;1;Spese correnti;3;Acquisto di beni e servizi;2;Acquisto di servizi;9;Manutenzione ordinaria e riparazioni;4;Manutenzione ordinaria e riparazioni di impianti e macchinari;30/09/2020
2942;1;9999999;341,6;9.125,60;ITALSIA SRL;ZF82E136AE;SALDO Fatt.n. 38/PA  del 10/09/2020 FORNITURA DI STERINAL PER SANIFICAZIONE LOCALI SCOLASTICI E COMUNALI;28/09/2020;1321;0;673;1;Spese correnti;3;Acquisto di beni e servizi;1;Acquisto di beni;2;Altri beni di consumo;999;Altri beni e materiali di consumo n.a.c.;30/09/2020
2942;2;9999999;8.784,00;9.125,60;ITALSIA SRL;ZF82E136AE;SALDO Fatt.n. 39/PA  del 10/09/2020 ACQUISTO NEBULIZZATORI ULV A MOTORE ELETTRICO PER SANIFICAZIONE LOCALI SCOLASTICI E COMUNALI;28/09/2020;1321;0;673;1;Spese correnti;3;Acquisto di beni e servizi;1;Acquisto di beni;2;Altri beni di consumo;999;Altri beni e materiali di consumo n.a.c.;30/09/2020
2943;1;9999999;24,3;48,6;E-DISTRIBUZIONE SPA;ZDB2E5D236;SALDO Fatt.n. 0000920900021923  del 08/09/2020 SERVIZIO DI MISURA COMPETENZA ANNO 2019;28/09/2020;1334;30;815;1;Spese correnti;3;Acquisto di beni e servizi;2;Acquisto di servizi;5;Utenze e canoni;4;Energia elettrica;30/09/2020
2943;2;9999999;24,3;48,6;E-DISTRIBUZIONE SPA;ZDB2E5D236;SALDO Fatt.n. 0000920900021857  del 08/09/2020 SERVIZIO DI MISURA COMPETENZA ANNO 2019;28/09/2020;1334;30;815;1;Spese correnti;3;Acquisto di beni e servizi;2;Acquisto di servizi;5;Utenze e canoni;4;Energia elettrica;30/09/2020
2944;1;9999999;1.910,89;1.910,89;ARTEA  SNC DI LION & SALVIATO;Z1F2C953D6;SALDO Fatt.n. 27-2020/PA  del 12/09/2020 OPERAZIONI EFFETTUATE NEI CIMITERI DEL COMUNE DI SANTA MARIA DI SALA NEL MESE DI AGOSTO 2020;28/09/2020;4438;0;388;1;Spese correnti;3;Acquisto di beni e servizi;2;Acquisto di servizi;9;Manutenzione ordinaria e riparazioni;8;Manutenzione ordinaria e riparazioni di beni immobili;30/09/2020
2945;1;9999999;658,8;658,8;JOLLY BOX SRL;Z642E237DF;SALDO Fatt.n. 3198-V0-2020  del 10/09/2020 CONSEGNA E NOLEGGIO DI N° 2 CONTAINER NAVALI DA DESTINARE ALLE SCUOLE COMUNALI MESE DI SETTEMBRE 2020;28/09/2020;1336;0;679;1;Spese correnti;3;Acquisto di beni e servizi;2;Acquisto di servizi;7;Utilizzo di beni di terzi;8;Noleggi di impianti e macchinari;30/09/2020
2949;1;9999999;5,5;5,5;INFOCERT SPA; ;ACCONTO Fatt.n. 1204458653  del 15/09/2020 RINNOVO CERTIFICATO DI FIRMA DIGITALE  DIP. MASO CARLO;29/09/2020;748;0;133;1;Spese correnti;3;Acquisto di beni e servizi;2;Acquisto di servizi;19;Servizi informatici e di telecomunicazioni;999;Altri servizi informatici e di telecomunicazioni n.a.c.;02/10/2020
2950;1;9999999;2.000,00;2.000,00;IL GRANELLO IN ZUCCA S.C.A.R.L.;Z042E2F1C7;SALDO Fatt.n. 51  del 25/09/2020 FORNITURA VOLUMI PER BIBLIOTECA;29/09/2020;1820;0;799;1;Spese correnti;3;Acquisto di beni e servizi;1;Acquisto di beni;1;Giornali, riviste e pubblicazioni;1;Giornali e riviste;02/10/2020
2951;1;9999999;2.000,00;2.000,00;EMMEDUE SAS DI MAMPRIN ANDREA & C.;Z082E2CC9E;SALDO Fatt.n. 10/2020  del 18/09/2020 FORNITURA VOLUMI PER BIBLIOTECA;29/09/2020;1820;0;800;1;Spese correnti;3;Acquisto di beni e servizi;1;Acquisto di beni;1;Giornali, riviste e pubblicazioni;1;Giornali e riviste;02/10/2020
2952;1;9999999;2.001,90;2.001,90;ALFANUI SRL LIBRERIA;Z1E2E2CF9B;SALDO Fatt.n. 130-20  del 14/09/2020 FORNITURA VOLUMI PER BIBLIOTECA;29/09/2020;1820;0;801;1;Spese correnti;3;Acquisto di beni e servizi;1;Acquisto di beni;1;Giornali, riviste e pubblicazioni;1;Giornali e riviste;02/10/2020
2953;1;9999999;4.000,00;4.000,00;TRIDE SRL;Z1E2E2CBAF;SALDO Fatt.n. 34/PA  del 25/09/2020 FORNITURA VOLUMI PER BIBLIOTECA;29/09/2020;1820;0;802;1;Spese correnti;3;Acquisto di beni e servizi;1;Acquisto di beni;1;Giornali, riviste e pubblicazioni;1;Giornali e riviste;02/10/2020
2954;1;9999999;860,1;860,1;COLIBRI SYSTEM SPA;Z752E41AEC;SALDO Fatt.n. 20600201  del 21/09/2020 FORNITURA DI COPERTINE MODELLO COLIBRI COVER SYSTEM PER LA CONSERVAZIONE E PROTEZIONE DEI VOLUMI;29/09/2020;1821;0;783;1;Spese correnti;3;Acquisto di beni e servizi;1;Acquisto di beni;2;Altri beni di consumo;999;Altri beni e materiali di consumo n.a.c.;02/10/2020
2956;1;9999999;20,9;20,9;ENI SPA DIVISIONE REFINING & MARKETING;Z7A2B73F0F;ACCONTO Fatt.n. 29926831  del 31/08/2020 AGOSTO 2020 - FORNITURA METANO;02/10/2020;521;0;77;1;Spese correnti;3;Acquisto di beni e servizi;1;Acquisto di beni;2;Altri beni di consumo;2;Carburanti, combustibili e lubrificanti;06/10/2020
2957;1;9999999;4,6;4,6;ENI SPA DIVISIONE REFINING & MARKETING;Z7A2B73F0F;SALDO Fatt.n. 29926831  del 31/08/2020 AGOSTO 2020 - FORNITURA METANO;02/10/2020;521;0;77;1;Spese correnti;3;Acquisto di beni e servizi;1;Acquisto di beni;2;Altri beni di consumo;2;Carburanti, combustibili e lubrificanti;07/10/2020
2958;1;9999999;34;34;C/C/P 15453301 SERVIZIO DI TESORERIA COM; ;PRELEVAMENTO N. 12-2020 - SETTEMBRE 2020;05/10/2020;146;0;0;1;Spese correnti;3;Acquisto di beni e servizi;2;Acquisto di servizi;17;Servizi finanziari;999;Spese per servizi finanziari n.a.c.;08/10/2020
2959;1;9999999;200;200;C/C/P 10299303 POLIZIA LOCALE SERVIZIO D; ;SPESE E COMMISSIONI CONTO CORRENTE POSTALE;05/10/2020;1145;0;0;1;Spese correnti;3;Acquisto di beni e servizi;2;Acquisto di servizi;16;Servizi amministrativi;999;Altre spese per servizi amministrativi;08/10/2020
2960;1;9999999;200;200;DIVERSI CCP LAMPADE VOTIVE C/C/P 19041300; ;SPESE E COMMISSIONI CONTO CORRENTE POSTALE;05/10/2020;1145;0;0;1;Spese correnti;3;Acquisto di beni e servizi;2;Acquisto di servizi;16;Servizi amministrativi;999;Altre spese per servizi amministrativi;08/10/2020
2962;1;9999999;47,86;855,72;ENEL ENERGIA SPA;77999756FD;SALDO Fatt.n. 004057525006  del 05/09/2020 AGOSTO 2020 - CONSUMI ALLOGGIO VIA DON GALLERANI CALTANA;05/10/2020;134;30;115;1;Spese correnti;3;Acquisto di beni e servizi;2;Acquisto di servizi;5;Utenze e canoni;4;Energia elettrica;08/10/2020
2962;2;9999999;56,38;855,72;ENEL ENERGIA SPA;77999756FD;SALDO Fatt.n. 004057524969  del 05/09/2020 AGOSTO 2020 - CONSUMI ALLOGGIO VIA OLIMPIA SMS;05/10/2020;134;30;115;1;Spese correnti;3;Acquisto di beni e servizi;2;Acquisto di servizi;5;Utenze e canoni;4;Energia elettrica;08/10/2020
2962;3;9999999;60,4;855,72;ENEL ENERGIA SPA;77999756FD;SALDO Fatt.n. 004062303734  del 10/09/2020 AGOSTO 2020 - CONSUMI PARCHEGGIO C.C. PRISMA CASELLE;05/10/2020;134;30;115;1;Spese correnti;3;Acquisto di beni e servizi;2;Acquisto di servizi;5;Utenze e canoni;4;Energia elettrica;08/10/2020
2962;4;9999999;85,02;855,72;ENEL ENERGIA SPA;77999756FD;SALDO Fatt.n. 004060108229  del 08/09/2020 AGOSTO 2020 - CONSUMI MERCATO CALTANA;05/10/2020;134;30;115;1;Spese correnti;3;Acquisto di beni e servizi;2;Acquisto di servizi;5;Utenze e canoni;4;Energia elettrica;08/10/2020
2962;5;9999999;100,72;855,72;ENEL ENERGIA SPA;77999756FD;SALDO Fatt.n. 004060108212  del 08/09/2020 AGOSTO 2020 - CONSUMI PARCHEGGIO OVALE SMS;05/10/2020;134;30;115;1;Spese correnti;3;Acquisto di beni e servizi;2;Acquisto di servizi;5;Utenze e canoni;4;Energia elettrica;08/10/2020
2962;6;9999999;103,11;855,72;ENEL ENERGIA SPA;77999756FD;SALDO Fatt.n. 004057524986  del 05/09/2020 AGOSTO 2020 - CONSUMI FONTANA VETERNIGO;05/10/2020;134;30;115;1;Spese correnti;3;Acquisto di beni e servizi;2;Acquisto di servizi;5;Utenze e canoni;4;Energia elettrica;08/10/2020
2962;7;9999999;120,5;855,72;ENEL ENERGIA SPA;77999756FD;SALDO Fatt.n. 004063508753  del 11/09/2020 AGOSTO 2020 - CONSUMI PIAZZA S.D.A.;05/10/2020;134;30;115;1;Spese correnti;3;Acquisto di beni e servizi;2;Acquisto di servizi;5;Utenze e canoni;4;Energia elettrica;08/10/2020
2962;8;9999999;131,02;855,72;ENEL ENERGIA SPA;77999756FD;SALDO Fatt.n. 004057524998  del 05/09/2020 AGOSTO 2020 - CONSUMI MERCATO CASELLE;05/10/2020;134;30;115;1;Spese correnti;3;Acquisto di beni e servizi;2;Acquisto di servizi;5;Utenze e canoni;4;Energia elettrica;08/10/2020
2962;9;9999999;150,71;855,72;ENEL ENERGIA SPA;77999756FD;SALDO Fatt.n. 004062303722  del 10/09/2020 AGOSTO 2020 - CONSUMI MERCATO SMS;05/10/2020;134;30;115;1;Spese correnti;3;Acquisto di beni e servizi;2;Acquisto di servizi;5;Utenze e canoni;4;Energia elettrica;08/10/2020
2963;1;9999999;644,28;644,28;ENEL ENERGIA SPA;77999756FD;ACCONTO Fatt.n. 004063508743  del 11/09/2020 AGOSTO 2020 - CONSUMI VILLA FARSETTI;05/10/2020;134;30;115;1;Spese correnti;3;Acquisto di beni e servizi;2;Acquisto di servizi;5;Utenze e canoni;4;Energia elettrica;08/10/2020
2964;1;9999999;681,58;681,58;ENEL ENERGIA SPA;77999756FD;SALDO Fatt.n. 004063508743  del 11/09/2020 AGOSTO 2020 - CONSUMI VILLA FARSETTI;05/10/2020;134;31;116;1;Spese correnti;3;Acquisto di beni e servizi;2;Acquisto di servizi;5;Utenze e canoni;4;Energia elettrica;08/10/2020
2965;1;9999999;112,07;112,07;ENEL ENERGIA SPA;77999756FD;ACCONTO Fatt.n. 004060108240  del 08/09/2020 AGOSTO 2020 - CONSUMI SEDE MUNICIPALE;05/10/2020;134;31;116;1;Spese correnti;3;Acquisto di beni e servizi;2;Acquisto di servizi;5;Utenze e canoni;4;Energia elettrica;08/10/2020
2966;1;9999999;45,64;558,95;ENEL ENERGIA SPA;77999756FD;SALDO Fatt.n. 004063508747  del 11/09/2020 AGOSTO 2020 - CONSUMI SC. ELEM. CALTANA;05/10/2020;1334;30;117;1;Spese correnti;3;Acquisto di beni e servizi;2;Acquisto di servizi;5;Utenze e canoni;4;Energia elettrica;08/10/2020
2966;2;9999999;108,34;558,95;ENEL ENERGIA SPA;77999756FD;SALDO Fatt.n. 004062303697  del 10/09/2020 AGOSTO 2020 - CONSUMI SC. ELEM. SMS;05/10/2020;1334;30;117;1;Spese correnti;3;Acquisto di beni e servizi;2;Acquisto di servizi;5;Utenze e canoni;4;Energia elettrica;08/10/2020
2966;3;9999999;154,85;558,95;ENEL ENERGIA SPA;77999756FD;SALDO Fatt.n. 004062303728  del 10/09/2020 AGOSTO 2020 - CONSUMI SC. ELEM. CASELLE;05/10/2020;1334;30;117;1;Spese correnti;3;Acquisto di beni e servizi;2;Acquisto di servizi;5;Utenze e canoni;4;Energia elettrica;08/10/2020
2966;4;9999999;250,12;558,95;ENEL ENERGIA SPA;77999756FD;SALDO Fatt.n. 004057525002  del 05/09/2020 AGOSTO 2020 - CONSUMI SCUOLA MEDIA SMS;05/10/2020;1334;30;117;1;Spese correnti;3;Acquisto di beni e servizi;2;Acquisto di servizi;5;Utenze e canoni;4;Energia elettrica;08/10/2020
2967;1;9999999;297,11;297,11;ENEL ENERGIA SPA;77999756FD;ACCONTO Fatt.n. 004057525011  del 05/09/2020 AGOSTO 2020 - CONSUMI MAGAZZINO COMUNALE;05/10/2020;1334;30;117;1;Spese correnti;3;Acquisto di beni e servizi;2;Acquisto di servizi;5;Utenze e canoni;4;Energia elettrica;08/10/2020
2968;1;9999999;1.473,84;1.473,84;ENEL ENERGIA SPA;77999756FD;SALDO Fatt.n. 004060108240  del 08/09/2020 AGOSTO 2020 - CONSUMI SEDE MUNICIPALE;05/10/2020;1334;30;117;1;Spese correnti;3;Acquisto di beni e servizi;2;Acquisto di servizi;5;Utenze e canoni;4;Energia elettrica;08/10/2020
2969;1;9999999;46,76;46,76;ENEL ENERGIA SPA;77999756FD;SALDO Fatt.n. 004060108221  del 08/09/2020 AGOSTO 2020 - CONSUMI ECOCENTRO COMUNALE;05/10/2020;1334;30;117;1;Spese correnti;3;Acquisto di beni e servizi;2;Acquisto di servizi;5;Utenze e canoni;4;Energia elettrica;08/10/2020
2970;1;9999999;661,17;661,17;ENEL ENERGIA SPA;77999756FD;SALDO Fatt.n. 004057524985  del 05/09/2020 AGOSTO 2020 - CONSUMI VILLA FARSETTI;05/10/2020;1334;30;117;1;Spese correnti;3;Acquisto di beni e servizi;2;Acquisto di servizi;5;Utenze e canoni;4;Energia elettrica;08/10/2020
2971;1;9999999;132,59;132,59;ENEL ENERGIA SPA;77999756FD;SALDO Fatt.n. 004057524972  del 05/09/2020 AGOSTO 2020 - CONSUMI IMP.SPORT. CASELLE;05/10/2020;1334;30;117;1;Spese correnti;3;Acquisto di beni e servizi;2;Acquisto di servizi;5;Utenze e canoni;4;Energia elettrica;08/10/2020
2972;1;9999999;126,33;126,33;ENEL ENERGIA SPA;77999756FD;SALDO Fatt.n. 004062303714  del 10/09/2020 AGOSTO 2020 - CONSUMI IMP.SPORT.SMS;05/10/2020;1334;30;117;1;Spese correnti;3;Acquisto di beni e servizi;2;Acquisto di servizi;5;Utenze e canoni;4;Energia elettrica;08/10/2020
2973;1;9999999;55;55;ENEL ENERGIA SPA;77999756FD;ACCONTO Fatt.n. 004057524977  del 05/09/2020 AGOSTO 2020 - CONSUMI SC. ELEM - PALESTRA VETERNIGO;05/10/2020;1334;30;117;1;Spese correnti;3;Acquisto di beni e servizi;2;Acquisto di servizi;5;Utenze e canoni;4;Energia elettrica;08/10/2020
2974;1;9999999;55;55;ENEL ENERGIA SPA;77999756FD;ACCONTO Fatt.n. 004057524977  del 05/09/2020 AGOSTO 2020 - CONSUMI SC. ELEM - PALESTRA VETERNIGO;05/10/2020;1334;30;117;1;Spese correnti;3;Acquisto di beni e servizi;2;Acquisto di servizi;5;Utenze e canoni;4;Energia elettrica;08/10/2020
2975;1;9999999;89,76;89,76;ENEL ENERGIA SPA;77999756FD;SALDO Fatt.n. 004057524977  del 05/09/2020 AGOSTO 2020 - CONSUMI SC. ELEM - PALESTRA VETERNIGO;05/10/2020;1334;30;117;1;Spese correnti;3;Acquisto di beni e servizi;2;Acquisto di servizi;5;Utenze e canoni;4;Energia elettrica;08/10/2020
2976;1;9999999;67,65;67,65;ENEL ENERGIA SPA;77999756FD;ACCONTO Fatt.n. 004057525005  del 05/09/2020 AGOSTO 2020 - CONSUMI PALESTRA CASELLE;05/10/2020;1334;30;117;1;Spese correnti;3;Acquisto di beni e servizi;2;Acquisto di servizi;5;Utenze e canoni;4;Energia elettrica;08/10/2020
2977;1;9999999;67,65;67,65;ENEL ENERGIA SPA;77999756FD;SALDO Fatt.n. 004057525005  del 05/09/2020 AGOSTO 2020 - CONSUMI PALESTRA CASELLE;05/10/2020;1334;30;117;1;Spese correnti;3;Acquisto di beni e servizi;2;Acquisto di servizi;5;Utenze e canoni;4;Energia elettrica;08/10/2020
2978;1;9999999;136,37;136,37;ENEL ENERGIA SPA;77999756FD;ACCONTO Fatt.n. 004057525004  del 05/09/2020 AGOSTO 2020 - CONSUMI PALESTRA SMS;05/10/2020;1334;30;117;1;Spese correnti;3;Acquisto di beni e servizi;2;Acquisto di servizi;5;Utenze e canoni;4;Energia elettrica;08/10/2020
2979;1;9999999;136,37;136,37;ENEL ENERGIA SPA;77999756FD;SALDO Fatt.n. 004057525004  del 05/09/2020 AGOSTO 2020 - CONSUMI PALESTRA SMS;05/10/2020;1334;30;117;1;Spese correnti;3;Acquisto di beni e servizi;2;Acquisto di servizi;5;Utenze e canoni;4;Energia elettrica;08/10/2020
2980;1;9999999;65;65;ENEL ENERGIA SPA;77999756FD;ACCONTO Fatt.n. 004057524994  del 05/09/2020 AGOSTO 2020 - CONSUMI SC. ELEM-PALESTRA-ASILO S.ANGELO;05/10/2020;1334;30;117;1;Spese correnti;3;Acquisto di beni e servizi;2;Acquisto di servizi;5;Utenze e canoni;4;Energia elettrica;08/10/2020
2981;1;9999999;65;65;ENEL ENERGIA SPA;77999756FD;ACCONTO Fatt.n. 004057524994  del 05/09/2020 AGOSTO 2020 - CONSUMI SC. ELEM-PALESTRA-ASILO S.ANGELO;05/10/2020;1334;30;117;1;Spese correnti;3;Acquisto di beni e servizi;2;Acquisto di servizi;5;Utenze e canoni;4;Energia elettrica;08/10/2020
2982;1;9999999;192,89;192,89;ENEL ENERGIA SPA;77999756FD;SALDO Fatt.n. 004057524994  del 05/09/2020 AGOSTO 2020 - CONSUMI SC. ELEM-PALESTRA-ASILO S.ANGELO;05/10/2020;1334;30;117;1;Spese correnti;3;Acquisto di beni e servizi;2;Acquisto di servizi;5;Utenze e canoni;4;Energia elettrica;12/10/2020
2983;1;9999999;105,34;105,34;ENEL ENERGIA SPA;77999756FD;ACCONTO Fatt.n. 004062303718  del 10/09/2020 AGOSTO 2020 - CONSUMI PALESTRA CALTANA;05/10/2020;1334;30;117;1;Spese correnti;3;Acquisto di beni e servizi;2;Acquisto di servizi;5;Utenze e canoni;4;Energia elettrica;08/10/2020
2984;1;9999999;105,34;105,34;ENEL ENERGIA SPA;77999756FD;SALDO Fatt.n. 004062303718  del 10/09/2020 AGOSTO 2020 - CONSUMI PALESTRA CALTANA;05/10/2020;1334;30;117;1;Spese correnti;3;Acquisto di beni e servizi;2;Acquisto di servizi;5;Utenze e canoni;4;Energia elettrica;08/10/2020
2985;1;9999999;47;47;ENEL ENERGIA SPA;77999756FD;ACCONTO Fatt.n. 004057524973  del 05/09/2020 AGOSTO 2020 - CONSUMI CIMITERO S.ANGELO - LAMPADE VOTIVE;05/10/2020;1334;30;117;1;Spese correnti;3;Acquisto di beni e servizi;2;Acquisto di servizi;5;Utenze e canoni;4;Energia elettrica;08/10/2020
2986;1;9999999;6,13;6,13;ENEL ENERGIA SPA;77999756FD;SALDO Fatt.n. 004057524973  del 05/09/2020 AGOSTO 2020 - CONSUMI CIMITERO S.ANGELO - LAMPADE VOTIVE;05/10/2020;1334;30;117;1;Spese correnti;3;Acquisto di beni e servizi;2;Acquisto di servizi;5;Utenze e canoni;4;Energia elettrica;08/10/2020
2987;1;9999999;39;39;ENEL ENERGIA SPA;77999756FD;ACCONTO Fatt.n. 004057524984  del 05/09/2020 AGOSTO 2020 - CONSUMI CIMITERO VETERNIGO - LAMPADE VOTIVE;05/10/2020;1334;30;117;1;Spese correnti;3;Acquisto di beni e servizi;2;Acquisto di servizi;5;Utenze e canoni;4;Energia elettrica;08/10/2020
2988;1;9999999;5,82;5,82;ENEL ENERGIA SPA;77999756FD;SALDO Fatt.n. 004057524984  del 05/09/2020 AGOSTO 2020 - CONSUMI CIMITERO VETERNIGO - LAMPADE VOTIVE;05/10/2020;1334;30;117;1;Spese correnti;3;Acquisto di beni e servizi;2;Acquisto di servizi;5;Utenze e canoni;4;Energia elettrica;08/10/2020
2989;1;9999999;49;49;ENEL ENERGIA SPA;77999756FD;ACCONTO Fatt.n. 004060108220  del 08/09/2020 AGOSTO 2020 - CONSUMI CIMITERO SMS - LAMPADE VOTIVE;05/10/2020;1334;30;117;1;Spese correnti;3;Acquisto di beni e servizi;2;Acquisto di servizi;5;Utenze e canoni;4;Energia elettrica;08/10/2020
2990;1;9999999;5,13;5,13;ENEL ENERGIA SPA;77999756FD;SALDO Fatt.n. 004060108220  del 08/09/2020 AGOSTO 2020 - CONSUMI CIMITERO SMS - LAMPADE VOTIVE;05/10/2020;1334;30;117;1;Spese correnti;3;Acquisto di beni e servizi;2;Acquisto di servizi;5;Utenze e canoni;4;Energia elettrica;08/10/2020
2991;1;9999999;48;48;ENEL ENERGIA SPA;77999756FD;ACCONTO Fatt.n. 004060108223  del 08/09/2020 AGOSTO 2020 - CONSUMI CIMITERO CASELLE  - LAMPADE VOTIVE;05/10/2020;1334;30;117;1;Spese correnti;3;Acquisto di beni e servizi;2;Acquisto di servizi;5;Utenze e canoni;4;Energia elettrica;08/10/2020
2992;1;9999999;5,81;5,81;ENEL ENERGIA SPA;77999756FD;SALDO Fatt.n. 004060108223  del 08/09/2020 AGOSTO 2020 - CONSUMI CIMITERO CASELLE  - LAMPADE VOTIVE;05/10/2020;1334;30;117;1;Spese correnti;3;Acquisto di beni e servizi;2;Acquisto di servizi;5;Utenze e canoni;4;Energia elettrica;08/10/2020
2993;1;9999999;82;82;ENEL ENERGIA SPA;77999756FD;ACCONTO Fatt.n. 004062303731  del 10/09/2020 AGOSTO 2020 - CONSUMI CIMITERO CALTANA - LAMPADE VOTIVE;05/10/2020;1334;30;117;1;Spese correnti;3;Acquisto di beni e servizi;2;Acquisto di servizi;5;Utenze e canoni;4;Energia elettrica;08/10/2020
2994;1;9999999;19,7;19,7;ENEL ENERGIA SPA;77999756FD;SALDO Fatt.n. 004062303731  del 10/09/2020 AGOSTO 2020 - CONSUMI CIMITERO CALTANA - LAMPADE VOTIVE;05/10/2020;1334;30;117;1;Spese correnti;3;Acquisto di beni e servizi;2;Acquisto di servizi;5;Utenze e canoni;4;Energia elettrica;08/10/2020
2995;1;9999999;46,2;46,2;ENEL ENERGIA SPA;77999756FD;SALDO Fatt.n. 004062303694  del 10/09/2020 AGOSTO 2020 - CONSUMI CIMITERO STIGLIANO - LAMPADE VOTIVE;05/10/2020;1334;30;117;1;Spese correnti;3;Acquisto di beni e servizi;2;Acquisto di servizi;5;Utenze e canoni;4;Energia elettrica;08/10/2020
2996;1;9999999;54;54;ENEL ENERGIA SPA;77999756FD;ACCONTO Fatt.n. 004062303712  del 10/09/2020 AGOSTO 2020 - CONSUMISC. ELEM-PALESTRA STIGLIANO;05/10/2020;1334;30;117;1;Spese correnti;3;Acquisto di beni e servizi;2;Acquisto di servizi;5;Utenze e canoni;4;Energia elettrica;08/10/2020
2997;1;9999999;54;54;ENEL ENERGIA SPA;77999756FD;ACCONTO Fatt.n. 004062303712  del 10/09/2020 AGOSTO 2020 - CONSUMISC. ELEM-PALESTRA STIGLIANO;05/10/2020;1334;30;117;1;Spese correnti;3;Acquisto di beni e servizi;2;Acquisto di servizi;5;Utenze e canoni;4;Energia elettrica;08/10/2020
2998;1;9999999;47,03;47,03;ENEL ENERGIA SPA;77999756FD;SALDO Fatt.n. 004062303712  del 10/09/2020 AGOSTO 2020 - CONSUMISC. ELEM-PALESTRA STIGLIANO;05/10/2020;1334;30;117;1;Spese correnti;3;Acquisto di beni e servizi;2;Acquisto di servizi;5;Utenze e canoni;4;Energia elettrica;08/10/2020
2999;1;9999999;9,61;9,61;ENEL ENERGIA SPA;77999756FD;SALDO Fatt.n. 004057525011  del 05/09/2020 AGOSTO 2020 - CONSUMI MAGAZZINO COMUNALE;05/10/2020;2734;0;120;1;Spese correnti;3;Acquisto di beni e servizi;2;Acquisto di servizi;5;Utenze e canoni;4;Energia elettrica;08/10/2020
3000;1;9999999;8;871,65;ENEL ENERGIA SPA;77999756FD;SALDO Fatt.n. 004057524970  del 05/09/2020 AGOSTO 2020 - CONSUMI ILLUMINAZIONE PUBBLICA;05/10/2020;3544;0;588;1;Spese correnti;3;Acquisto di beni e servizi;2;Acquisto di servizi;15;Contratti di servizio pubblico;15;Contratti di servizio per l'illuminazione pubblica;08/10/2020
3000;2;9999999;9,76;871,65;ENEL ENERGIA SPA;77999756FD;SALDO Fatt.n. 004057524980  del 05/09/2020 AGOSTO 2020 - CONSUMI ILLUMINAZIONE PUBBLICA;05/10/2020;3544;0;588;1;Spese correnti;3;Acquisto di beni e servizi;2;Acquisto di servizi;15;Contratti di servizio pubblico;15;Contratti di servizio per l'illuminazione pubblica;08/10/2020
3000;3;9999999;13,16;871,65;ENEL ENERGIA SPA;77999756FD;SALDO Fatt.n. 004057524978  del 05/09/2020 AGOSTO 2020 - CONSUMI ILLUMINAZIONE PUBBLICA;05/10/2020;3544;0;588;1;Spese correnti;3;Acquisto di beni e servizi;2;Acquisto di servizi;15;Contratti di servizio pubblico;15;Contratti di servizio per l'illuminazione pubblica;08/10/2020
3000;4;9999999;20,75;871,65;ENEL ENERGIA SPA;77999756FD;SALDO Fatt.n. 004057524981  del 05/09/2020 AGOSTO 2020 - CONSUMI ILLUMINAZIONE PUBBLICA;05/10/2020;3544;0;588;1;Spese correnti;3;Acquisto di beni e servizi;2;Acquisto di servizi;15;Contratti di servizio pubblico;15;Contratti di servizio per l'illuminazione pubblica;08/10/2020
3000;5;9999999;37,38;871,65;ENEL ENERGIA SPA;77999756FD;SALDO Fatt.n. 004057524971  del 05/09/2020 AGOSTO 2020 - CONSUMI ILLUMINAZIONE PUBBLICA;05/10/2020;3544;0;588;1;Spese correnti;3;Acquisto di beni e servizi;2;Acquisto di servizi;15;Contratti di servizio pubblico;15;Contratti di servizio per l'illuminazione pubblica;08/10/2020
3000;6;9999999;46,49;871,65;ENEL ENERGIA SPA;77999756FD;SALDO Fatt.n. 004057524979  del 05/09/2020 AGOSTO 2020 - CONSUMI ILLUMINAZIONE PUBBLICA;05/10/2020;3544;0;588;1;Spese correnti;3;Acquisto di beni e servizi;2;Acquisto di servizi;15;Contratti di servizio pubblico;15;Contratti di servizio per l'illuminazione pubblica;08/10/2020
3000;7;9999999;68,32;871,65;ENEL ENERGIA SPA;77999756FD;SALDO Fatt.n. 004057524974  del 05/09/2020 AGOSTO 2020 - CONSUMI ILLUMINAZIONE PUBBLICA;05/10/2020;3544;0;588;1;Spese correnti;3;Acquisto di beni e servizi;2;Acquisto di servizi;15;Contratti di servizio pubblico;15;Contratti di servizio per l'illuminazione pubblica;08/10/2020
3000;8;9999999;116,1;871,65;ENEL ENERGIA SPA;77999756FD;SALDO Fatt.n. 004057524976  del 05/09/2020 AGOSTO 2020 - CONSUMI ILLUMINAZIONE PUBBLICA;05/10/2020;3544;0;588;1;Spese correnti;3;Acquisto di beni e servizi;2;Acquisto di servizi;15;Contratti di servizio pubblico;15;Contratti di servizio per l'illuminazione pubblica;08/10/2020
3000;9;9999999;132,52;871,65;ENEL ENERGIA SPA;77999756FD;SALDO Fatt.n. 004057524982  del 05/09/2020 AGOSTO 2020 - CONSUMI ILLUMINAZIONE PUBBLICA;05/10/2020;3544;0;588;1;Spese correnti;3;Acquisto di beni e servizi;2;Acquisto di servizi;15;Contratti di servizio pubblico;15;Contratti di servizio per l'illuminazione pubblica;08/10/2020
3000;10;9999999;419,17;871,65;ENEL ENERGIA SPA;77999756FD;SALDO Fatt.n. 004057524975  del 05/09/2020 AGOSTO 2020 - CONSUMI ILLUMINAZIONE PUBBLICA;05/10/2020;3544;0;588;1;Spese correnti;3;Acquisto di beni e servizi;2;Acquisto di servizi;15;Contratti di servizio pubblico;15;Contratti di servizio per l'illuminazione pubblica;08/10/2020
3001;1;9999999;33,9;3.225,91;ENEL ENERGIA SPA;77999756FD;SALDO Fatt.n. 004057524987  del 05/09/2020 AGOSTO 2020 - CONSUMI ILLUMINAZIONE PUBBLICA;05/10/2020;3544;0;588;1;Spese correnti;3;Acquisto di beni e servizi;2;Acquisto di servizi;15;Contratti di servizio pubblico;15;Contratti di servizio per l'illuminazione pubblica;08/10/2020
3001;2;9999999;42,54;3.225,91;ENEL ENERGIA SPA;77999756FD;SALDO Fatt.n. 004057524993  del 05/09/2020 AGOSTO 2020 - CONSUMI ILLUMINAZIONE PUBBLICA;05/10/2020;3544;0;588;1;Spese correnti;3;Acquisto di beni e servizi;2;Acquisto di servizi;15;Contratti di servizio pubblico;15;Contratti di servizio per l'illuminazione pubblica;08/10/2020
3001;3;9999999;125,15;3.225,91;ENEL ENERGIA SPA;77999756FD;SALDO Fatt.n. 004057524988  del 05/09/2020 AGOSTO 2020 - CONSUMI ILLUMINAZIONE PUBBLICA;05/10/2020;3544;0;588;1;Spese correnti;3;Acquisto di beni e servizi;2;Acquisto di servizi;15;Contratti di servizio pubblico;15;Contratti di servizio per l'illuminazione pubblica;08/10/2020
3001;4;9999999;184,42;3.225,91;ENEL ENERGIA SPA;77999756FD;SALDO Fatt.n. 004057524996  del 05/09/2020 AGOSTO 2020 - CONSUMI ILLUMINAZIONE PUBBLICA;05/10/2020;3544;0;588;1;Spese correnti;3;Acquisto di beni e servizi;2;Acquisto di servizi;15;Contratti di servizio pubblico;15;Contratti di servizio per l'illuminazione pubblica;08/10/2020
3001;5;9999999;185,16;3.225,91;ENEL ENERGIA SPA;77999756FD;SALDO Fatt.n. 004057524990  del 05/09/2020 AGOSTO 2020 - CONSUMI ILLUMINAZIONE PUBBLICA;05/10/2020;3544;0;588;1;Spese correnti;3;Acquisto di beni e servizi;2;Acquisto di servizi;15;Contratti di servizio pubblico;15;Contratti di servizio per l'illuminazione pubblica;08/10/2020
3001;6;9999999;197,97;3.225,91;ENEL ENERGIA SPA;77999756FD;SALDO Fatt.n. 004057524991  del 05/09/2020 AGOSTO 2020 - CONSUMI ILLUMINAZIONE PUBBLICA;05/10/2020;3544;0;588;1;Spese correnti;3;Acquisto di beni e servizi;2;Acquisto di servizi;15;Contratti di servizio pubblico;15;Contratti di servizio per l'illuminazione pubblica;08/10/2020
3001;7;9999999;508,24;3.225,91;ENEL ENERGIA SPA;77999756FD;SALDO Fatt.n. 004057524983  del 05/09/2020 AGOSTO 2020 - CONSUMI ILLUMINAZIONE PUBBLICA;05/10/2020;3544;0;588;1;Spese correnti;3;Acquisto di beni e servizi;2;Acquisto di servizi;15;Contratti di servizio pubblico;15;Contratti di servizio per l'illuminazione pubblica;08/10/2020
3001;8;9999999;545,16;3.225,91;ENEL ENERGIA SPA;77999756FD;SALDO Fatt.n. 004057524992  del 05/09/2020 AGOSTO 2020 - CONSUMI ILLUMINAZIONE PUBBLICA;05/10/2020;3544;0;588;1;Spese correnti;3;Acquisto di beni e servizi;2;Acquisto di servizi;15;Contratti di servizio pubblico;15;Contratti di servizio per l'illuminazione pubblica;08/10/2020
3001;9;9999999;587,08;3.225,91;ENEL ENERGIA SPA;77999756FD;SALDO Fatt.n. 004057524989  del 05/09/2020 AGOSTO 2020 - CONSUMI ILLUMINAZIONE PUBBLICA;05/10/2020;3544;0;588;1;Spese correnti;3;Acquisto di beni e servizi;2;Acquisto di servizi;15;Contratti di servizio pubblico;15;Contratti di servizio per l'illuminazione pubblica;08/10/2020
3001;10;9999999;816,29;3.225,91;ENEL ENERGIA SPA;77999756FD;SALDO Fatt.n. 004057524995  del 05/09/2020 AGOSTO 2020 - CONSUMI ILLUMINAZIONE PUBBLICA;05/10/2020;3544;0;588;1;Spese correnti;3;Acquisto di beni e servizi;2;Acquisto di servizi;15;Contratti di servizio pubblico;15;Contratti di servizio per l'illuminazione pubblica;08/10/2020
3002;1;9999999;0,83;811,58;ENEL ENERGIA SPA;77999756FD;SALDO Fatt.n. 004057525003  del 05/09/2020 AGOSTO 2020 - CONSUMI ILLUMINAZIONE PUBBLICA;05/10/2020;3544;0;588;1;Spese correnti;3;Acquisto di beni e servizi;2;Acquisto di servizi;15;Contratti di servizio pubblico;15;Contratti di servizio per l'illuminazione pubblica;08/10/2020
3002;2;9999999;11,77;811,58;ENEL ENERGIA SPA;77999756FD;SALDO Fatt.n. 004057525013  del 05/09/2020 AGOSTO 2020 - CONSUMI ILLUMINAZIONE PUBBLICA;05/10/2020;3544;0;588;1;Spese correnti;3;Acquisto di beni e servizi;2;Acquisto di servizi;15;Contratti di servizio pubblico;15;Contratti di servizio per l'illuminazione pubblica;08/10/2020
3002;3;9999999;12,11;811,58;ENEL ENERGIA SPA;77999756FD;SALDO Fatt.n. 004057525000  del 05/09/2020 AGOSTO 2020 - CONSUMI ILLUMINAZIONE PUBBLICA;05/10/2020;3544;0;588;1;Spese correnti;3;Acquisto di beni e servizi;2;Acquisto di servizi;15;Contratti di servizio pubblico;15;Contratti di servizio per l'illuminazione pubblica;08/10/2020
3002;4;9999999;16,63;811,58;ENEL ENERGIA SPA;77999756FD;SALDO Fatt.n. 004057524997  del 05/09/2020 AGOSTO 2020 - CONSUMI ILLUMINAZIONE PUBBLICA;05/10/2020;3544;0;588;1;Spese correnti;3;Acquisto di beni e servizi;2;Acquisto di servizi;15;Contratti di servizio pubblico;15;Contratti di servizio per l'illuminazione pubblica;08/10/2020
3002;5;9999999;44,91;811,58;ENEL ENERGIA SPA;77999756FD;SALDO Fatt.n. 004057524999  del 05/09/2020 AGOSTO 2020 - CONSUMI ILLUMINAZIONE PUBBLICA;05/10/2020;3544;0;588;1;Spese correnti;3;Acquisto di beni e servizi;2;Acquisto di servizi;15;Contratti di servizio pubblico;15;Contratti di servizio per l'illuminazione pubblica;08/10/2020
3002;6;9999999;83,64;811,58;ENEL ENERGIA SPA;77999756FD;SALDO Fatt.n. 004057525009  del 05/09/2020 AGOSTO 2020 - CONSUMI ILLUMINAZIONE PUBBLICA;05/10/2020;3544;0;588;1;Spese correnti;3;Acquisto di beni e servizi;2;Acquisto di servizi;15;Contratti di servizio pubblico;15;Contratti di servizio per l'illuminazione pubblica;08/10/2020
3002;7;9999999;87,11;811,58;ENEL ENERGIA SPA;77999756FD;SALDO Fatt.n. 004057525007  del 05/09/2020 AGOSTO 2020 - CONSUMI ILLUMINAZIONE PUBBLICA;05/10/2020;3544;0;588;1;Spese correnti;3;Acquisto di beni e servizi;2;Acquisto di servizi;15;Contratti di servizio pubblico;15;Contratti di servizio per l'illuminazione pubblica;08/10/2020
3002;8;9999999;147,63;811,58;ENEL ENERGIA SPA;77999756FD;SALDO Fatt.n. 004057525001  del 05/09/2020 AGOSTO 2020 - CONSUMI ILLUMINAZIONE PUBBLICA;05/10/2020;3544;0;588;1;Spese correnti;3;Acquisto di beni e servizi;2;Acquisto di servizi;15;Contratti di servizio pubblico;15;Contratti di servizio per l'illuminazione pubblica;08/10/2020
3002;9;9999999;153,39;811,58;ENEL ENERGIA SPA;77999756FD;SALDO Fatt.n. 004057525008  del 05/09/2020 AGOSTO 2020 - CONSUMI ILLUMINAZIONE PUBBLICA;05/10/2020;3544;0;588;1;Spese correnti;3;Acquisto di beni e servizi;2;Acquisto di servizi;15;Contratti di servizio pubblico;15;Contratti di servizio per l'illuminazione pubblica;08/10/2020
3002;10;9999999;253,56;811,58;ENEL ENERGIA SPA;77999756FD;SALDO Fatt.n. 004057525010  del 05/09/2020 AGOSTO 2020 - CONSUMI ILLUMINAZIONE PUBBLICA;05/10/2020;3544;0;588;1;Spese correnti;3;Acquisto di beni e servizi;2;Acquisto di servizi;15;Contratti di servizio pubblico;15;Contratti di servizio per l'illuminazione pubblica;08/10/2020
3003;1;9999999;25,03;1.866,38;ENEL ENERGIA SPA;77999756FD;SALDO Fatt.n. 004058077368  del 06/09/2020 AGOSTO 2020 - CONSUMI ILLUMINAZIONE PUBBLICA;05/10/2020;3544;0;588;1;Spese correnti;3;Acquisto di beni e servizi;2;Acquisto di servizi;15;Contratti di servizio pubblico;15;Contratti di servizio per l'illuminazione pubblica;08/10/2020
3003;2;9999999;65,23;1.866,38;ENEL ENERGIA SPA;77999756FD;SALDO Fatt.n. 004058640141  del 07/09/2020 AGOSTO 2020 - CONSUMI ILLUMINAZIONE PUBBLICA;05/10/2020;3544;0;588;1;Spese correnti;3;Acquisto di beni e servizi;2;Acquisto di servizi;15;Contratti di servizio pubblico;15;Contratti di servizio per l'illuminazione pubblica;08/10/2020
3003;3;9999999;72,85;1.866,38;ENEL ENERGIA SPA;77999756FD;SALDO Fatt.n. 004058640145  del 07/09/2020 AGOSTO 2020 - CONSUMI ILLUMINAZIONE PUBBLICA;05/10/2020;3544;0;588;1;Spese correnti;3;Acquisto di beni e servizi;2;Acquisto di servizi;15;Contratti di servizio pubblico;15;Contratti di servizio per l'illuminazione pubblica;08/10/2020
3003;4;9999999;91;1.866,38;ENEL ENERGIA SPA;77999756FD;SALDO Fatt.n. 004058640144  del 07/09/2020 AGOSTO 2020 - CONSUMI ILLUMINAZIONE PUBBLICA;05/10/2020;3544;0;588;1;Spese correnti;3;Acquisto di beni e servizi;2;Acquisto di servizi;15;Contratti di servizio pubblico;15;Contratti di servizio per l'illuminazione pubblica;08/10/2020
3003;5;9999999;136,41;1.866,38;ENEL ENERGIA SPA;77999756FD;SALDO Fatt.n. 004058640140  del 07/09/2020 AGOSTO 2020 - CONSUMI ILLUMINAZIONE PUBBLICA;05/10/2020;3544;0;588;1;Spese correnti;3;Acquisto di beni e servizi;2;Acquisto di servizi;15;Contratti di servizio pubblico;15;Contratti di servizio per l'illuminazione pubblica;08/10/2020
3003;6;9999999;139,19;1.866,38;ENEL ENERGIA SPA;77999756FD;SALDO Fatt.n. 004058640147  del 07/09/2020 AGOSTO 2020 - CONSUMI ILLUMINAZIONE PUBBLICA;05/10/2020;3544;0;588;1;Spese correnti;3;Acquisto di beni e servizi;2;Acquisto di servizi;15;Contratti di servizio pubblico;15;Contratti di servizio per l'illuminazione pubblica;08/10/2020
3003;7;9999999;151,27;1.866,38;ENEL ENERGIA SPA;77999756FD;SALDO Fatt.n. 004058077367  del 06/09/2020 AGOSTO 2020 - CONSUMI ILLUMINAZIONE PUBBLICA;05/10/2020;3544;0;588;1;Spese correnti;3;Acquisto di beni e servizi;2;Acquisto di servizi;15;Contratti di servizio pubblico;15;Contratti di servizio per l'illuminazione pubblica;08/10/2020
3003;8;9999999;316,22;1.866,38;ENEL ENERGIA SPA;77999756FD;SALDO Fatt.n. 004058640143  del 07/09/2020 AGOSTO 2020 - CONSUMI ILLUMINAZIONE PUBBLICA;05/10/2020;3544;0;588;1;Spese correnti;3;Acquisto di beni e servizi;2;Acquisto di servizi;15;Contratti di servizio pubblico;15;Contratti di servizio per l'illuminazione pubblica;08/10/2020
